Workbook

Sheet Ferienkalender 2024-2025 (hidden)
C2: 2024-01-01 | AH2: 2024-02-01 | BK2: 2024-03-01 | CP2: 2024-04-01 | DT2: 2024-05-01 | EY2: 2024-06-01 | GC2: 2024-07-01 | HH2: 2024-08-01 | IM2: 2024-09-01 | JQ2: 2024-10-01 | KV2: 2024-11-01 | LZ2: 2024-12-01 | NE2: 2025-01-01 | OJ2: 2025-02-01 | PL2: 2025-03-01 | QQ2: 2025-04-01 | RU2: 2025-05-01 | SZ2: 2025-06-01 | UD2: 2025-07-01 | VI2: 2025-08-01 | WN2: 2025-09-01 | XR2: 2025-10-01 | YW2: 2025-11-01 | AAA2: 2025-12-01 | ABF2: Jan.25
C3: =UPPER(C4) -> MO | D3: =UPPER(D4) -> DI | E3: MI | F3: DO | G3: FR | H3: SA | I3: SO | J3: MO | K3: DI | L3: MI | M3: DO | N3: FR | O3: SA | P3: SO | Q3: MO | R3: DI | S3: MI | T3: DO | U3: FR | V3: SA | W3: SO | X3: MO | Y3: DI | Z3: MI | AA3: DO | AB3: FR | AC3: SA | AD3: SO | AE3: MO | AF3: DI | AG3: =UPPER(AG4) -> MI | AH3: =UPPER(AH4) -> DO | AI3: =UPPER(AI4) -> FR | AJ3: =UPPER(AJ4) -> SA | AK3: SO | AL3: MO | AM3: DI | AN3: MI | AO3: DO | AP3: FR | AQ3: SA | AR3: SO | AS3: MO | AT3: DI | AU3: MI | AV3: DO | AW3: FR | AX3: SA | AY3: SO | AZ3: MO | BA3: DI | BB3: MI | BC3: DO | BD3: FR | BE3: =UPPER(BE4) -> SA | BF3: =UPPER(BF4) -> SO | BG3: =UPPER(BG4) -> MO | BH3: =UPPER(BH4) -> DI | BI3: =UPPER(BI4) -> MI | BJ3: =UPPER(BJ4) -> DO | BK3: =UPPER(BK4) -> FR | BL3: =UPPER(BL4) -> SA | BM3: SO | BN3: MO | BO3: DI | BP3: MI | BQ3: DO | BR3: FR | BS3: SA | BT3: SO | BU3: MO | BV3: DI | BW3: MI | BX3: DO | BY3: FR | BZ3: SA | CA3: SO | CB3: MO | CC3: DI | CD3: MI | CE3: DO | CF3: FR | CG3: SA | CH3: SO | CI3: MO | CJ3: DI | CK3: MI | CL3: DO | CM3: FR | CN3: SA | CO3: SO | CP3: =UPPER(CP4) -> MO | CQ3: =UPPER(CQ4) -> DI | CR3: =UPPER(CR4) -> MI | CS3: DO | CT3: FR | CU3: SA | CV3: SO | CW3: MO | CX3: DI | CY3: MI | CZ3: DO | DA3: FR | DB3: SA | DC3: SO | DD3: MO | DE3: DI | DF3: MI | DG3: DO | DH3: FR | DI3: SA | DJ3: SO | DK3: MO | DL3: DI | DM3: MI | DN3: DO | DO3: FR | DP3: SA | DQ3: SO | DR3: MO | DS3: =UPPER(DS4) -> DI | DT3: =UPPER(DT4) -> MI | DU3: =UPPER(DU4) -> DO | DV3: =UPPER(DV4) -> FR | DW3: =UPPER(DW4) -> SA | DX3: =UPPER(DX4) -> SO | DY3: =UPPER(DY4) -> MO | DZ3: =UPPER(DZ4) -> DI | EA3: =UPPER(EA4) -> MI | EB3: =UPPER(EB4) -> DO | EC3: =UPPER(EC4) -> FR | ED3: =UPPER(ED4) -> SA | EE3: =UPPER(EE4) -> SO | EF3: =UPPER(EF4) -> MO | EG3: =UPPER(EG4) -> DI | EH3: =UPPER(EH4) -> MI | EI3: =UPPER(EI4) -> DO | EJ3: =UPPER(EJ4) -> FR | EK3: =UPPER(EK4) -> SA | EL3: =UPPER(EL4) -> SO | EM3: =UPPER(EM4) -> MO | EN3: =UPPER(EN4) -> DI | EO3: =UPPER(EO4) -> MI | EP3: =UPPER(EP4) -> DO | EQ3: =UPPER(EQ4) -> FR | ER3: =UPPER(ER4) -> SA | ES3: =UPPER(ES4) -> SO | ET3: =UPPER(ET4) -> MO | EU3: =UPPER(EU4) -> DI | EV3: =UPPER(EV4) -> MI | EW3: =UPPER(EW4) -> DO | EX3: =UPPER(EX4) -> FR | EY3: =UPPER(EY4) -> SA | EZ3: =UPPER(EZ4) -> SO | FA3: MO | FB3: DI | FC3: MI | FD3: DO | FE3: FR | FF3: SA | FG3: SO | FH3: MO | FI3: DI | FJ3: MI | FK3: DO | FL3: FR | FM3: SA | FN3: SO | FO3: MO | FP3: DI | FQ3: MI | FR3: DO | FS3: FR | FT3: SA | FU3: SO | FV3: MO | FW3: DI | FX3: MI | FY3: DO | FZ3: FR | GA3: SA | GB3: SO | GC3: =UPPER(GC4) -> MO | GD3: =UPPER(GD4) -> DI | GE3: MI | GF3: DO | GG3: FR | GH3: SA | GI3: SO | GJ3: MO | GK3: DI | GL3: MI | GM3: DO | GN3: FR | GO3: SA | GP3: SO | GQ3: MO | GR3: DI | GS3: MI | GT3: DO | GU3: FR | GV3: SA | GW3: SO | GX3: MO | GY3: DI | GZ3: MI | HA3: DO | HB3: FR | HC3: SA | HD3: SO | HE3: MO | HF3: DI | HG3: MI | HH3: =UPPER(HH4) -> DO | HI3: =UPPER(HI4) -> FR | HJ3: SA | HK3: SO | HL3: MO | HM3: DI | HN3: MI | HO3: DO | HP3: FR | HQ3: SA | HR3: SO | HS3: MO | HT3: DI | HU3: MI | HV3: DO | HW3: FR | HX3: SA | HY3: SO | HZ3: MO | IA3: DI | IB3: MI | IC3: DO | ID3: FR | IE3: SA | IF3: SO | IG3: MO | IH3: DI | II3: MI | IJ3: DO | IK3: FR | IL3: SA | IM3: =UPPER(IM4) -> SO | IN3: =UPPER(IN4) -> MO | IO3: DI | IP3: MI | IQ3: DO | IR3: FR | IS3: SA | IT3: SO | IU3: MO | IV3: DI | IW3: MI | IX3: DO | IY3: FR | IZ3: SA | JA3: SO | JB3: MO | JC3: DI | JD3: MI | JE3: DO | JF3: FR | JG3: SA | JH3: SO | JI3: MO | JJ3: DI | JK3: MI | JL3: DO | JM3: FR | JN3: SA | JO3: SO | JP3: MO | JQ3: =UPPER(JQ4) -> DI | JR3: =UPPER(JR4) -> MI | JS3: DO | JT3: FR | JU3: SA | JV3: SO | JW3: MO | JX3: DI | JY3: MI | JZ3: DO | KA3: FR | KB3: SA | KC3: SO | KD3: MO | KE3: DI | KF3: MI | KG3: DO | KH3: FR | KI3: SA | KJ3: SO | KK3: MO | KL3: DI | KM3: MI | KN3: DO | KO3: FR | KP3: SA | KQ3: SO | KR3: MO | KS3: DI | KT3: MI | KU3: DO | KV3: =UPPER(KV4) -> FR | KW3: =UPPER(KW4) -> SA | KX3: SO | KY3: MO | KZ3: DI | LA3: MI | LB3: DO | LC3: FR | LD3: SA | LE3: SO | LF3: MO | LG3: DI | LH3: MI | LI3: DO | LJ3: FR | LK3: SA | LL3: SO | LM3: MO | LN3: DI | LO3: MI | LP3: DO | LQ3: FR | LR3: SA | LS3: SO | LT3: MO | LU3: DI | LV3: MI | LW3: DO | LX3: FR | LY3: SA | LZ3: =UPPER(LZ4) -> SO | MA3: =UPPER(MA4) -> MO | MB3: DI | MC3: MI | MD3: DO | ME3: FR | MF3: SA | MG3: SO | MH3: MO | MI3: DI | MJ3: MI | MK3: DO | ML3: FR | MM3: SA | MN3: SO | MO3: MO | MP3: DI | MQ3: MI | MR3: DO | MS3: FR | MT3: SA | MU3: SO | MV3: MO | MW3: DI | MX3: MI | MY3: DO | MZ3: FR | NA3: SA | NB3: SO | NC3: MO | ND3: DI | NE3: =UPPER(NE4) -> MI | NF3: =UPPER(NF4) -> DO | NG3: FR | NH3: SA | NI3: SO | NJ3: MO | NK3: DI | NL3: MI | NM3: DO | NN3: FR | NO3: SA | NP3: SO | NQ3: MO | NR3: DI | NS3: MI | NT3: DO | NU3: FR | NV3: SA | NW3: SO | NX3: MO | NY3: DI | NZ3: MI | OA3: DO | OB3: FR | OC3: SA | OD3: SO | OE3: MO | OF3: DI | OG3: MI | OH3: DO | OI3: FR | OJ3: =UPPER(OJ4) -> SA | OK3: =UPPER(OK4) -> SO | OL3: =UPPER(OL4) -> MO | OM3: =UPPER(OM4) -> DI | ON3: =UPPER(ON4) -> MI | OO3: =UPPER(OO4) -> DO | OP3: =UPPER(OP4) -> FR | OQ3: =UPPER(OQ4) -> SA | OR3: =UPPER(OR4) -> SO | OS3: =UPPER(OS4) -> MO | OT3: =UPPER(OT4) -> DI | OU3: =UPPER(OU4) -> MI | OV3: =UPPER(OV4) -> DO | OW3: =UPPER(OW4) -> FR | OX3: =UPPER(OX4) -> SA | OY3: =UPPER(OY4) -> SO | OZ3: =UPPER(OZ4) -> MO | PA3: =UPPER(PA4) -> DI | PB3: =UPPER(PB4) -> MI | PC3: =UPPER(PC4) -> DO | PD3: =UPPER(PD4) -> FR | PE3: =UPPER(PE4) -> SA | PF3: =UPPER(PF4) -> SO | PG3: =UPPER(PG4) -> MO | PH3: =UPPER(PH4) -> DI | PI3: =UPPER(PI4) -> MI | PJ3: =UPPER(PJ4) -> DO | PK3: =UPPER(PK4) -> FR | PL3: =UPPER(PL4) -> SA | PM3: =UPPER(PM4) -> SO | PN3: =UPPER(PN4) -> MO | PO3: =UPPER(PO4) -> DI | PP3: =UPPER(PP4) -> MI | PQ3: =UPPER(PQ4) -> DO | PR3: =UPPER(PR4) -> FR | PS3: =UPPER(PS4) -> SA | PT3: =UPPER(PT4) -> SO | PU3: =UPPER(PU4) -> MO | PV3: =UPPER(PV4) -> DI | PW3: =UPPER(PW4) -> MI | PX3: =UPPER(PX4) -> DO | PY3: =UPPER(PY4) -> FR | PZ3: =UPPER(PZ4) -> SA | QA3: =UPPER(QA4) -> SO | QB3: =UPPER(QB4) -> MO | QC3: =UPPER(QC4) -> DI | QD3: =UPPER(QD4) -> MI | QE3: =UPPER(QE4) -> DO | QF3: =UPPER(QF4) -> FR | QG3: =UPPER(QG4) -> SA | QH3: =UPPER(QH4) -> SO | QI3: =UPPER(QI4) -> MO | QJ3: =UPPER(QJ4) -> DI | QK3: =UPPER(QK4) -> MI | QL3: =UPPER(QL4) -> DO | QM3: =UPPER(QM4) -> FR | QN3: =UPPER(QN4) -> SA | QO3: =UPPER(QO4) -> SO | QP3: =UPPER(QP4) -> MO | QQ3: =UPPER(QQ4) -> DI | QR3: =UPPER(QR4) -> MI | QS3: =UPPER(QS4) -> DO | QT3: =UPPER(QT4) -> FR | QU3: =UPPER(QU4) -> SA | QV3: =UPPER(QV4) -> SO | QW3: =UPPER(QW4) -> MO | QX3: =UPPER(QX4) -> DI | QY3: =UPPER(QY4) -> MI | QZ3: =UPPER(QZ4) -> DO | RA3: =UPPER(RA4) -> FR | RB3: =UPPER(RB4) -> SA | RC3: =UPPER(RC4) -> SO | RD3: =UPPER(RD4) -> MO | RE3: =UPPER(RE4) -> DI | RF3: =UPPER(RF4) -> MI | RG3: =UPPER(RG4) -> DO | RH3: =UPPER(RH4) -> FR | RI3: =UPPER(RI4) -> SA | RJ3: =UPPER(RJ4) -> SO | RK3: =UPPER(RK4) -> MO | RL3: =UPPER(RL4) -> DI | RM3: =UPPER(RM4) -> MI | RN3: =UPPER(RN4) -> DO | RO3: =UPPER(RO4) -> FR | RP3: =UPPER(RP4) -> SA | RQ3: =UPPER(RQ4) -> SO | RR3: =UPPER(RR4) -> MO | RS3: =UPPER(RS4) -> DI | RT3: =UPPER(RT4) -> MI | RU3: =UPPER(RU4) -> DO | RV3: =UPPER(RV4) -> FR | RW3: =UPPER(RW4) -> SA | RX3: =UPPER(RX4) -> SO | RY3: =UPPER(RY4) -> MO | RZ3: =UPPER(RZ4) -> DI | SA3: =UPPER(SA4) -> MI | SB3: =UPPER(SB4) -> DO | SC3: =UPPER(SC4) -> FR | SD3: =UPPER(SD4) -> SA | SE3: =UPPER(SE4) -> SO | SF3: =UPPER(SF4) -> MO | SG3: =UPPER(SG4) -> DI | SH3: =UPPER(SH4) -> MI | SI3: =UPPER(SI4) -> DO | SJ3: =UPPER(SJ4) -> FR | SK3: =UPPER(SK4) -> SA | SL3: =UPPER(SL4) -> SO | SM3: =UPPER(SM4) -> MO | SN3: =UPPER(SN4) -> DI | SO3: =UPPER(SO4) -> MI | SP3: =UPPER(SP4) -> DO | SQ3: =UPPER(SQ4) -> FR | SR3: =UPPER(SR4) -> SA | SS3: =UPPER(SS4) -> SO | ST3: =UPPER(ST4) -> MO | SU3: =UPPER(SU4) -> DI | SV3: =UPPER(SV4) -> MI | SW3: =UPPER(SW4) -> DO | SX3: =UPPER(SX4) -> FR | SY3: =UPPER(SY4) -> SA | SZ3: SO | TA3: MO. | TB3: DI. | TC3: MI. | TD3: DO. | TE3: FR. | TF3: SA. | TG3: SO. | TH3: MO. | TI3: DI. | TJ3: MI. | TK3: DO. | TL3: FR. | TM3: SA. | TN3: SO. | TO3: MO. | TP3: DI. | TQ3: MI. | TR3: DO. | TS3: FR. | TT3: SA. | TU3: SO. | TV3: MO. | TW3: DI. | TX3: MI. | TY3: DO. | TZ3: FR. | UA3: SA. | UB3: SO. | UC3: MO. | UD3: DI. | UE3: MI. | UF3: DO. | UG3: FR. | UH3: SA. | UI3: SO. | UJ3: MO. | UK3: DI. | UL3: MI. | UM3: DO. | UN3: FR. | UO3: SA. | UP3: SO. | UQ3: MO. | UR3: DI. | US3: MI. | UT3: DO. | UU3: FR. | UV3: SA. | UW3: SO. | UX3: MO. | UY3: DI. | UZ3: MI. | VA3: DO. | VB3: FR. | VC3: SA. | VD3: SO. | VE3: MO. | VF3: DI. | VG3: MI. | VH3: DO. | VI3: FR. | VJ3: SA. | VK3: SO. | VL3: MO. | VM3: DI. | VN3: MI. | VO3: DO. | VP3: FR. | VQ3: SA. | VR3: SO. | VS3: MO. | VT3: DI. | VU3: MI. | VV3: DO. | VW3: FR. | VX3: SA. | VY3: SO. | VZ3: MO. | WA3: DI. | WB3: MI. | WC3: DO. | WD3: FR. | WE3: SA. | WF3: SO. | WG3: MO. | WH3: DI. | WI3: MI. | WJ3: DO. | WK3: FR. | WL3: SA. | WM3: SO. | WN3: MO. | WO3: DI. | WP3: MI. | WQ3: DO. | WR3: FR. | WS3: SA. | WT3: SO. | WU3: MO. | WV3: DI. | WW3: MI. | WX3: DO. | WY3: FR. | WZ3: SA. | XA3: SO. | XB3: MO. | XC3: DI. | XD3: MI. | XE3: DO. | XF3: FR. | XG3: SA. | XH3: SO. | XI3: MO. | XJ3: DI. | XK3: MI. | XL3: DO. | XM3: FR. | XN3: SA. | XO3: SO. | XP3: MO. | XQ3: DI. | XR3: MI. | XS3: DO. | XT3: FR. | XU3: SA. | XV3: SO. | XW3: MO. | XX3: DI. | XY3: MI. | XZ3: DO. | YA3: FR. | YB3: SA. | YC3: SO. | YD3: MO. | YE3: DI. | YF3: MI. | YG3: DO. | YH3: FR. | YI3: SA. | YJ3: SO. | YK3: MO. | YL3: DI. | YM3: MI. | YN3: DO. | YO3: FR. | YP3: SA. | YQ3: SO. | YR3: MO. | YS3: DI. | YT3: MI. | YU3: DO. | YV3: FR. | YW3: SA. | YX3: SO. | YY3: MO. | YZ3: DI. | ZA3: MI. | ZB3: DO. | ZC3: FR. | ZD3: SA. | ZE3: SO. | ZF3: MO. | ZG3: DI. | ZH3: MI. | ZI3: DO. | ZJ3: FR. | ZK3: SA. | ZL3: SO. | ZM3: MO. | ZN3: DI. | ZO3: MI. | ZP3: DO. | ZQ3: FR. | ZR3: SA. | ZS3: SO. | ZT3: MO. | ZU3: DI. | ZV3: MI. | ZW3: DO. | ZX3: FR. | ZY3: SA. | ZZ3: SO. | AAA3: MO. | AAB3: DI. | AAC3: MI. | AAD3: DO. | AAE3: FR. | AAF3: SA. | AAG3: SO. | AAH3: MO. | AAI3: DI. | AAJ3: MI. | AAK3: DO. | AAL3: FR. | AAM3: SA. | AAN3: SO. | AAO3: MO. | AAP3: DI. | AAQ3: MI. | AAR3: DO. | AAS3: FR. | AAT3: SA. | AAU3: SO. | AAV3: MO. | AAW3: DI. | AAX3: MI. | AAY3: DO. | AAZ3: FR. | ABA3: SA. | ABB3: SO. | ABC3: MO. | ABD3: DI. | ABE3: MI. | ABF3: DO. | ABG3: FR. | ABH3: SA. | ABI3: SO. | ABJ3: MO. | ABK3: DI. | ABL3: MI. | ABM3: DO. | ABN3: FR. | ABO3: SA. | ABP3: SO. | ABQ3: MO. | ABR3: DI. | ABS3: MI. | ABT3: DO. | ABU3: FR. | ABV3: SA. | ABW3: SO. | ABX3: MO. | ABY3: DI. | ABZ3: MI. | ACA3: DO. | ACB3: FR. | ACC3: SA. | ACD3: SO. | ACE3: MO. | ACF3: DI. | ACG3: MI. | ACH3: DO. | ACI3: FR.
C4: =TEXT(C5,"TTT") -> Mo | D4: =TEXT(D5,"TTT") -> Di | E4: =TEXT(E5,"TTT") -> Mi | F4: Do | G4: =TEXT(G5,"TTT") -> Fr | H4: =TEXT(H5,"TTT") -> Sa | I4: So | J4: =TEXT(J5,"TTT") -> Mo | K4: =TEXT(K5,"TTT") -> Di | L4: Mi | M4: =TEXT(M5,"TTT") -> Do | N4: =TEXT(N5,"TTT") -> Fr | O4: Sa | P4: =TEXT(P5,"TTT") -> So | Q4: =TEXT(Q5,"TTT") -> Mo | R4: Di | S4: =TEXT(S5,"TTT") -> Mi | T4: =TEXT(T5,"TTT") -> Do | U4: Fr | V4: =TEXT(V5,"TTT") -> Sa | W4: =TEXT(W5,"TTT") -> So | X4: Mo | Y4: =TEXT(Y5,"TTT") -> Di | Z4: =TEXT(Z5,"TTT") -> Mi | AA4: Do | AB4: =TEXT(AB5,"TTT") -> Fr | AC4: =TEXT(AC5,"TTT") -> Sa | AD4: So | AE4: =TEXT(AE5,"TTT") -> Mo | AF4: =TEXT(AF5,"TTT") -> Di | AG4: Mi | AH4: =TEXT(AH5,"TTT") -> Do | AI4: =TEXT(AI5,"TTT") -> Fr | AJ4: Sa | AK4: =TEXT(AK5,"TTT") -> So | AL4: =TEXT(AL5,"TTT") -> Mo | AM4: Di | AN4: =TEXT(AN5,"TTT") -> Mi | AO4: =TEXT(AO5,"TTT") -> Do | AP4: Fr | AQ4: =TEXT(AQ5,"TTT") -> Sa | AR4: =TEXT(AR5,"TTT") -> So | AS4: Mo | AT4: =TEXT(AT5,"TTT") -> Di | AU4: =TEXT(AU5,"TTT") -> Mi | AV4: Do | AW4: =TEXT(AW5,"TTT") -> Fr | AX4: =TEXT(AX5,"TTT") -> Sa | AY4: So | AZ4: =TEXT(AZ5,"TTT") -> Mo | BA4: =TEXT(BA5,"TTT") -> Di | BB4: Mi | BC4: =TEXT(BC5,"TTT") -> Do | BD4: =TEXT(BD5,"TTT") -> Fr | BE4: Sa | BF4: =TEXT(BF5,"TTT") -> So | BG4: =TEXT(BG5,"TTT") -> Mo | BH4: Di | BI4: Mi | BJ4: Do | BK4: =TEXT(BK5,"TTT") -> Fr | BL4: =TEXT(BL5,"TTT") -> Sa | BM4: So | BN4: Mo | BO4: Di | BP4: Mi | BQ4: Do | BR4: Fr | BS4: Sa | BT4: So | BU4: Mo | BV4: Di | BW4: Mi | BX4: Do | BY4: Fr | BZ4: Sa | CA4: So | CB4: Mo | CC4: Di | CD4: Mi | CE4: Do | CF4: Fr | CG4: Sa | CH4: So | CI4: Mo | CJ4: Di | CK4: Mi | CL4: Do | CM4: Fr | CN4: Sa | CO4: So | CP4: =TEXT(CP5,"TTT") -> Mo | CQ4: =TEXT(CQ5,"TTT") -> Di | CR4: =TEXT(CR5,"TTT") -> Mi | CS4: Do | CT4: =TEXT(CT5,"TTT") -> Fr | CU4: =TEXT(CU5,"TTT") -> Sa | CV4: So | CW4: =TEXT(CW5,"TTT") -> Mo | CX4: =TEXT(CX5,"TTT") -> Di | CY4: Mi | CZ4: =TEXT(CZ5,"TTT") -> Do | DA4: =TEXT(DA5,"TTT") -> Fr | DB4: Sa | DC4: =TEXT(DC5,"TTT") -> So | DD4: =TEXT(DD5,"TTT") -> Mo | DE4: Di | DF4: =TEXT(DF5,"TTT") -> Mi | DG4: =TEXT(DG5,"TTT") -> Do | DH4: Fr | DI4: =TEXT(DI5,"TTT") -> Sa | DJ4: =TEXT(DJ5,"TTT") -> So | DK4: Mo | DL4: =TEXT(DL5,"TTT") -> Di | DM4: =TEXT(DM5,"TTT") -> Mi | DN4: Do | DO4: =TEXT(DO5,"TTT") -> Fr | DP4: =TEXT(DP5,"TTT") -> Sa | DQ4: So | DR4: =TEXT(DR5,"TTT") -> Mo | DS4: Di | DT4: =TEXT(DT5,"TTT") -> Mi | DU4: =TEXT(DU5,"TTT") -> Do | DV4: Fr | DW4: Sa | DX4: So | DY4: Mo | DZ4: Di | EA4: Mi | EB4: Do | EC4: Fr | ED4: Sa | EE4: So | EF4: Mo | EG4: Di | EH4: Mi | EI4: Do | EJ4: Fr | EK4: Sa | EL4: So | EM4: Mo | EN4: Di | EO4: Mi | EP4: Do | EQ4: Fr | ER4: Sa | ES4: So | ET4: Mo | EU4: Di | EV4: Mi | EW4: Do | EX4: Fr | EY4: Sa | EZ4: So | FA4: Mo | FB4: Di | FC4: Mi | FD4: Do | FE4: Fr | FF4: Sa | FG4: So | FH4: Mo | FI4: Di | FJ4: Mi | FK4: Do | FL4: Fr | FM4: Sa | FN4: So | FO4: Mo | FP4: Di | FQ4: Mi | FR4: Do | FS4: Fr | FT4: Sa | FU4: So | FV4: Mo | FW4: Di | FX4: Mi | FY4: Do | FZ4: Fr | GA4: Sa | GB4: So | GC4: =TEXT(GC5,"TTT") -> Mo | GD4: Di | GE4: Mi | GF4: Do | GG4: =TEXT(GG5,"TTT") -> Fr | GH4: Sa | GI4: So | GJ4: Mo | GK4: Di | GL4: Mi | GM4: Do | GN4: Fr | GO4: Sa | GP4: So | GQ4: Mo | GR4: Di | GS4: Mi | GT4: Do | GU4: Fr | GV4: Sa | GW4: So | GX4: Mo | GY4: Di | GZ4: Mi | HA4: Do | HB4: Fr | HC4: Sa | HD4: So | HE4: Mo | HF4: Di | HG4: Mi | HH4: Do | HI4: =TEXT(HI5,"TTT") -> Fr | HJ4: =TEXT(HJ5,"TTT") -> Sa | HK4: =TEXT(HK5,"TTT") -> So | HL4: =TEXT(HL5,"TTT") -> Mo | HM4: =TEXT(HM5,"TTT") -> Di | HN4: =TEXT(HN5,"TTT") -> Mi | HO4: =TEXT(HO5,"TTT") -> Do | HP4: =TEXT(HP5,"TTT") -> Fr | HQ4: =TEXT(HQ5,"TTT") -> Sa | HR4: =TEXT(HR5,"TTT") -> So | HS4: =TEXT(HS5,"TTT") -> Mo | HT4: =TEXT(HT5,"TTT") -> Di | HU4: =TEXT(HU5,"TTT") -> Mi | HV4: =TEXT(HV5,"TTT") -> Do | HW4: =TEXT(HW5,"TTT") -> Fr | HX4: =TEXT(HX5,"TTT") -> Sa | HY4: =TEXT(HY5,"TTT") -> So | HZ4: =TEXT(HZ5,"TTT") -> Mo | IA4: =TEXT(IA5,"TTT") -> Di | IB4: =TEXT(IB5,"TTT") -> Mi | IC4: =TEXT(IC5,"TTT") -> Do | ID4: =TEXT(ID5,"TTT") -> Fr | IE4: =TEXT(IE5,"TTT") -> Sa | IF4: =TEXT(IF5,"TTT") -> So | IG4: =TEXT(IG5,"TTT") -> Mo | IH4: =TEXT(IH5,"TTT") -> Di | II4: =TEXT(II5,"TTT") -> Mi | IJ4: =TEXT(IJ5,"TTT") -> Do | IK4: =TEXT(IK5,"TTT") -> Fr | IL4: =TEXT(IL5,"TTT") -> Sa | IM4: =TEXT(IM5,"TTT") -> So | IN4: =TEXT(IN5,"TTT") -> Mo | IO4: =TEXT(IO5,"TTT") -> Di | IP4: =TEXT(IP5,"TTT") -> Mi | IQ4: =TEXT(IQ5,"TTT") -> Do | IR4: =TEXT(IR5,"TTT") -> Fr | IS4: =TEXT(IS5,"TTT") -> Sa | IT4: =TEXT(IT5,"TTT") -> So | IU4: =TEXT(IU5,"TTT") -> Mo | IV4: =TEXT(IV5,"TTT") -> Di | IW4: =TEXT(IW5,"TTT") -> Mi | IX4: =TEXT(IX5,"TTT") -> Do | IY4: =TEXT(IY5,"TTT") -> Fr | IZ4: =TEXT(IZ5,"TTT") -> Sa | JA4: =TEXT(JA5,"TTT") -> So | JB4: =TEXT(JB5,"TTT") -> Mo | JC4: =TEXT(JC5,"TTT") -> Di | JD4: =TEXT(JD5,"TTT") -> Mi | JE4: =TEXT(JE5,"TTT") -> Do | JF4: =TEXT(JF5,"TTT") -> Fr | JG4: =TEXT(JG5,"TTT") -> Sa | JH4: =TEXT(JH5,"TTT") -> So | JI4: =TEXT(JI5,"TTT") -> Mo | JJ4: =TEXT(JJ5,"TTT") -> Di | JK4: =TEXT(JK5,"TTT") -> Mi | JL4: =TEXT(JL5,"TTT") -> Do | JM4: =TEXT(JM5,"TTT") -> Fr | JN4: =TEXT(JN5,"TTT") -> Sa | JO4: =TEXT(JO5,"TTT") -> So | JP4: =TEXT(JP5,"TTT") -> Mo | JQ4: =TEXT(JQ5,"TTT") -> Di | JR4: =TEXT(JR5,"TTT") -> Mi | JS4: =TEXT(JS5,"TTT") -> Do | JT4: =TEXT(JT5,"TTT") -> Fr | JU4: =TEXT(JU5,"TTT") -> Sa | JV4: =TEXT(JV5,"TTT") -> So | JW4: =TEXT(JW5,"TTT") -> Mo | JX4: =TEXT(JX5,"TTT") -> Di | JY4: =TEXT(JY5,"TTT") -> Mi | JZ4: =TEXT(JZ5,"TTT") -> Do | KA4: =TEXT(KA5,"TTT") -> Fr | KB4: =TEXT(KB5,"TTT") -> Sa | KC4: =TEXT(KC5,"TTT") -> So | KD4: =TEXT(KD5,"TTT") -> Mo | KE4: =TEXT(KE5,"TTT") -> Di | KF4: =TEXT(KF5,"TTT") -> Mi | KG4: =TEXT(KG5,"TTT") -> Do | KH4: =TEXT(KH5,"TTT") -> Fr | KI4: =TEXT(KI5,"TTT") -> Sa | KJ4: =TEXT(KJ5,"TTT") -> So | KK4: =TEXT(KK5,"TTT") -> Mo | KL4: =TEXT(KL5,"TTT") -> Di | KM4: =TEXT(KM5,"TTT") -> Mi | KN4: =TEXT(KN5,"TTT") -> Do | KO4: =TEXT(KO5,"TTT") -> Fr | KP4: =TEXT(KP5,"TTT") -> Sa | KQ4: =TEXT(KQ5,"TTT") -> So | KR4: =TEXT(KR5,"TTT") -> Mo | KS4: =TEXT(KS5,"TTT") -> Di | KT4: =TEXT(KT5,"TTT") -> Mi | KU4: =TEXT(KU5,"TTT") -> Do | KV4: =TEXT(KV5,"TTT") -> Fr | KW4: =TEXT(KW5,"TTT") -> Sa | KX4: =TEXT(KX5,"TTT") -> So | KY4: =TEXT(KY5,"TTT") -> Mo | KZ4: =TEXT(KZ5,"TTT") -> Di | LA4: =TEXT(LA5,"TTT") -> Mi | LB4: =TEXT(LB5,"TTT") -> Do | LC4: =TEXT(LC5,"TTT") -> Fr | LD4: =TEXT(LD5,"TTT") -> Sa | LE4: =TEXT(LE5,"TTT") -> So | LF4: =TEXT(LF5,"TTT") -> Mo | LG4: =TEXT(LG5,"TTT") -> Di | LH4: =TEXT(LH5,"TTT") -> Mi | LI4: =TEXT(LI5,"TTT") -> Do | LJ4: =TEXT(LJ5,"TTT") -> Fr | LK4: =TEXT(LK5,"TTT") -> Sa | LL4: =TEXT(LL5,"TTT") -> So | LM4: =TEXT(LM5,"TTT") -> Mo | LN4: =TEXT(LN5,"TTT") -> Di | LO4: =TEXT(LO5,"TTT") -> Mi | LP4: =TEXT(LP5,"TTT") -> Do | LQ4: =TEXT(LQ5,"TTT") -> Fr | LR4: =TEXT(LR5,"TTT") -> Sa | LS4: =TEXT(LS5,"TTT") -> So | LT4: =TEXT(LT5,"TTT") -> Mo | LU4: =TEXT(LU5,"TTT") -> Di | LV4: =TEXT(LV5,"TTT") -> Mi | LW4: =TEXT(LW5,"TTT") -> Do | LX4: =TEXT(LX5,"TTT") -> Fr | LY4: =TEXT(LY5,"TTT") -> Sa | LZ4: =TEXT(LZ5,"TTT") -> So | MA4: =TEXT(MA5,"TTT") -> Mo | MB4: =TEXT(MB5,"TTT") -> Di | MC4: =TEXT(MC5,"TTT") -> Mi | MD4: =TEXT(MD5,"TTT") -> Do | ME4: =TEXT(ME5,"TTT") -> Fr | MF4: =TEXT(MF5,"TTT") -> Sa | MG4: =TEXT(MG5,"TTT") -> So | MH4: =TEXT(MH5,"TTT") -> Mo | MI4: =TEXT(MI5,"TTT") -> Di | MJ4: =TEXT(MJ5,"TTT") -> Mi | MK4: =TEXT(MK5,"TTT") -> Do | ML4: =TEXT(ML5,"TTT") -> Fr | MM4: =TEXT(MM5,"TTT") -> Sa | MN4: =TEXT(MN5,"TTT") -> So | MO4: =TEXT(MO5,"TTT") -> Mo | MP4: =TEXT(MP5,"TTT") -> Di | MQ4: =TEXT(MQ5,"TTT") -> Mi | MR4: =TEXT(MR5,"TTT") -> Do | MS4: =TEXT(MS5,"TTT") -> Fr | MT4: =TEXT(MT5,"TTT") -> Sa | MU4: =TEXT(MU5,"TTT") -> So | MV4: =TEXT(MV5,"TTT") -> Mo | MW4: =TEXT(MW5,"TTT") -> Di | MX4: =TEXT(MX5,"TTT") -> Mi | MY4: =TEXT(MY5,"TTT") -> Do | MZ4: =TEXT(MZ5,"TTT") -> Fr | NA4: =TEXT(NA5,"TTT") -> Sa | NB4: =TEXT(NB5,"TTT") -> So | NC4: =TEXT(NC5,"TTT") -> Mo | ND4: =TEXT(ND5,"TTT") -> Di | NE4: =TEXT(NE5,"TTT") -> Mi | NF4: =TEXT(NF5,"TTT") -> Do | NG4: =TEXT(NG5,"TTT") -> Fr | NH4: =TEXT(NH5,"TTT") -> Sa | NI4: =TEXT(NI5,"TTT") -> So | NJ4: =TEXT(NJ5,"TTT") -> Mo | NK4: =TEXT(NK5,"TTT") -> Di | NL4: =TEXT(NL5,"TTT") -> Mi | NM4: =TEXT(NM5,"TTT") -> Do | NN4: =TEXT(NN5,"TTT") -> Fr | NO4: =TEXT(NO5,"TTT") -> Sa | NP4: =TEXT(NP5,"TTT") -> So | NQ4: =TEXT(NQ5,"TTT") -> Mo | NR4: =TEXT(NR5,"TTT") -> Di | NS4: =TEXT(NS5,"TTT") -> Mi | NT4: =TEXT(NT5,"TTT") -> Do | NU4: =TEXT(NU5,"TTT") -> Fr | NV4: =TEXT(NV5,"TTT") -> Sa | NW4: =TEXT(NW5,"TTT") -> So | NX4: =TEXT(NX5,"TTT") -> Mo | NY4: =TEXT(NY5,"TTT") -> Di | NZ4: =TEXT(NZ5,"TTT") -> Mi | OA4: =TEXT(OA5,"TTT") -> Do | OB4: =TEXT(OB5,"TTT") -> Fr | OC4: =TEXT(OC5,"TTT") -> Sa | OD4: =TEXT(OD5,"TTT") -> So | OE4: =TEXT(OE5,"TTT") -> Mo | OF4: =TEXT(OF5,"TTT") -> Di | OG4: =TEXT(OG5,"TTT") -> Mi | OH4: =TEXT(OH5,"TTT") -> Do | OI4: =TEXT(OI5,"TTT") -> Fr | OJ4: =TEXT(OJ5,"TTT") -> Sa | OK4: =TEXT(OK5,"TTT") -> So | OL4: =TEXT(OL5,"TTT") -> Mo | OM4: =TEXT(OM5,"TTT") -> Di | ON4: =TEXT(ON5,"TTT") -> Mi | OO4: =TEXT(OO5,"TTT") -> Do | OP4: =TEXT(OP5,"TTT") -> Fr | OQ4: =TEXT(OQ5,"TTT") -> Sa | OR4: =TEXT(OR5,"TTT") -> So | OS4: =TEXT(OS5,"TTT") -> Mo | OT4: =TEXT(OT5,"TTT") -> Di | OU4: =TEXT(OU5,"TTT") -> Mi | OV4: =TEXT(OV5,"TTT") -> Do | OW4: =TEXT(OW5,"TTT") -> Fr | OX4: =TEXT(OX5,"TTT") -> Sa | OY4: =TEXT(OY5,"TTT") -> So | OZ4: =TEXT(OZ5,"TTT") -> Mo | PA4: =TEXT(PA5,"TTT") -> Di | PB4: =TEXT(PB5,"TTT") -> Mi | PC4: =TEXT(PC5,"TTT") -> Do | PD4: =TEXT(PD5,"TTT") -> Fr | PE4: =TEXT(PE5,"TTT") -> Sa | PF4: =TEXT(PF5,"TTT") -> So | PG4: =TEXT(PG5,"TTT") -> Mo | PH4: =TEXT(PH5,"TTT") -> Di | PI4: =TEXT(PI5,"TTT") -> Mi | PJ4: =TEXT(PJ5,"TTT") -> Do | PK4: =TEXT(PK5,"TTT") -> Fr | PL4: =TEXT(PL5,"TTT") -> Sa | PM4: =TEXT(PM5,"TTT") -> So | PN4: =TEXT(PN5,"TTT") -> Mo | PO4: =TEXT(PO5,"TTT") -> Di | PP4: =TEXT(PP5,"TTT") -> Mi | PQ4: =TEXT(PQ5,"TTT") -> Do | PR4: =TEXT(PR5,"TTT") -> Fr | PS4: =TEXT(PS5,"TTT") -> Sa | PT4: =TEXT(PT5,"TTT") -> So | PU4: =TEXT(PU5,"TTT") -> Mo | PV4: =TEXT(PV5,"TTT") -> Di | PW4: =TEXT(PW5,"TTT") -> Mi | PX4: =TEXT(PX5,"TTT") -> Do | PY4: =TEXT(PY5,"TTT") -> Fr | PZ4: =TEXT(PZ5,"TTT") -> Sa | QA4: =TEXT(QA5,"TTT") -> So | QB4: =TEXT(QB5,"TTT") -> Mo | QC4: =TEXT(QC5,"TTT") -> Di | QD4: =TEXT(QD5,"TTT") -> Mi | QE4: =TEXT(QE5,"TTT") -> Do | QF4: =TEXT(QF5,"TTT") -> Fr | QG4: =TEXT(QG5,"TTT") -> Sa | QH4: =TEXT(QH5,"TTT") -> So | QI4: =TEXT(QI5,"TTT") -> Mo | QJ4: =TEXT(QJ5,"TTT") -> Di | QK4: =TEXT(QK5,"TTT") -> Mi | QL4: =TEXT(QL5,"TTT") -> Do | QM4: =TEXT(QM5,"TTT") -> Fr | QN4: =TEXT(QN5,"TTT") -> Sa | QO4: =TEXT(QO5,"TTT") -> So | QP4: =TEXT(QP5,"TTT") -> Mo | QQ4: =TEXT(QQ5,"TTT") -> Di | QR4: =TEXT(QR5,"TTT") -> Mi | QS4: =TEXT(QS5,"TTT") -> Do | QT4: =TEXT(QT5,"TTT") -> Fr | QU4: =TEXT(QU5,"TTT") -> Sa | QV4: =TEXT(QV5,"TTT") -> So | QW4: =TEXT(QW5,"TTT") -> Mo | QX4: =TEXT(QX5,"TTT") -> Di | QY4: =TEXT(QY5,"TTT") -> Mi | QZ4: =TEXT(QZ5,"TTT") -> Do | RA4: =TEXT(RA5,"TTT") -> Fr | RB4: =TEXT(RB5,"TTT") -> Sa | RC4: =TEXT(RC5,"TTT") -> So | RD4: =TEXT(RD5,"TTT") -> Mo | RE4: =TEXT(RE5,"TTT") -> Di | RF4: =TEXT(RF5,"TTT") -> Mi | RG4: =TEXT(RG5,"TTT") -> Do | RH4: =TEXT(RH5,"TTT") -> Fr | RI4: =TEXT(RI5,"TTT") -> Sa | RJ4: =TEXT(RJ5,"TTT") -> So | RK4: =TEXT(RK5,"TTT") -> Mo | RL4: =TEXT(RL5,"TTT") -> Di | RM4: =TEXT(RM5,"TTT") -> Mi | RN4: =TEXT(RN5,"TTT") -> Do | RO4: =TEXT(RO5,"TTT") -> Fr | RP4: =TEXT(RP5,"TTT") -> Sa | RQ4: =TEXT(RQ5,"TTT") -> So | RR4: =TEXT(RR5,"TTT") -> Mo | RS4: =TEXT(RS5,"TTT") -> Di | RT4: =TEXT(RT5,"TTT") -> Mi | RU4: Do | RV4: Fr | RW4: Sa | RX4: So | RY4: Mo | RZ4: Di | SA4: Mi | SB4: Do | SC4: Fr | SD4: Sa | SE4: So | SF4: Mo | SG4: Di | SH4: Mi | SI4: Do | SJ4: Fr | SK4: Sa | SL4: So | SM4: Mo | SN4: Di | SO4: Mi | SP4: Do | SQ4: Fr | SR4: Sa | SS4: So | ST4: Mo | SU4: Di | SV4: Mi | SW4: Do | SX4: Fr | SY4: Sa
C5: 2024-01-01 | D5: 2024-01-02 | E5: 2024-01-03 | F5: 2024-01-04 | G5: 2024-01-05 | H5: 2024-01-06 | I5: 2024-01-07 | J5: 2024-01-08 | K5: 2024-01-09 | L5: 2024-01-10 | M5: 2024-01-11 | N5: 2024-01-12 | O5: 2024-01-13 | P5: 2024-01-14 | Q5: 2024-01-15 | R5: 2024-01-16 | S5: 2024-01-17 | T5: 2024-01-18 | U5: 2024-01-19 | V5: 2024-01-20 | W5: 2024-01-21 | X5: 2024-01-22 | Y5: 2024-01-23 | Z5: 2024-01-24 | AA5: 2024-01-25 | AB5: 2024-01-26 | AC5: 2024-01-27 | AD5: 2024-01-28 | AE5: 2024-01-29 | AF5: 2024-01-30 | AG5: 2024-01-31 | AH5: 2024-02-01 | AI5: 2024-02-02 | AJ5: 2024-02-03 | AK5: 2024-02-04 | AL5: 2024-02-05 | AM5: 2024-02-06 | AN5: 2024-02-07 | AO5: 2024-02-08 | AP5: 2024-02-09 | AQ5: 2024-02-10 | AR5: 2024-02-11 | AS5: 2024-02-12 | AT5: 2024-02-13 | AU5: 2024-02-14 | AV5: 2024-02-15 | AW5: 2024-02-16 | AX5: 2024-02-17 | AY5: 2024-02-18 | AZ5: 2024-02-19 | BA5: 2024-02-20 | BB5: 2024-02-21 | BC5: 2024-02-22 | BD5: 2024-02-23 | BE5: 2024-02-24 | BF5: 2024-02-25 | BG5: 2024-02-26 | BH5: 2024-02-27 | BI5: 2024-02-28 | BJ5: 2024-02-29 | BK5: 2024-03-01 | BL5: 2024-03-02 | BM5: 2024-03-03 | BN5: 2024-03-04 | BO5: 2024-03-05 | BP5: 2024-03-06 | BQ5: 2024-03-07 | BR5: 2024-03-08 | BS5: 2024-03-09 | BT5: 2024-03-10 | BU5: 2024-03-11 | BV5: 2024-03-12 | BW5: 2024-03-13 | BX5: 2024-03-14 | BY5: 2024-03-15 | BZ5: 2024-03-16 | CA5: 2024-03-17 | CB5: 2024-03-18 | CC5: 2024-03-19 | CD5: 2024-03-20 | CE5: 2024-03-21 | CF5: 2024-03-22 | CG5: 2024-03-23 | CH5: 2024-03-24 | CI5: 2024-03-25 | CJ5: 2024-03-26 | CK5: 2024-03-27 | CL5: 2024-03-28 | CM5: 2024-03-29 | CN5: 2024-03-30 | CO5: 2024-03-31 | CP5: 2024-04-01 | CQ5: 2024-04-02 | CR5: 2024-04-03 | CS5: 2024-04-04 | CT5: 2024-04-05 | CU5: 2024-04-06 | CV5: 2024-04-07 | CW5: 2024-04-08 | CX5: 2024-04-09 | CY5: 2024-04-10 | CZ5: 2024-04-11 | DA5: 2024-04-12 | DB5: 2024-04-13 | DC5: 2024-04-14 | DD5: 2024-04-15 | DE5: 2024-04-16 | DF5: 2024-04-17 | DG5: 2024-04-18 | DH5: 2024-04-19 | DI5: 2024-04-20 | DJ5: 2024-04-21 | DK5: 2024-04-22 | DL5: 2024-04-23 | DM5: 2024-04-24 | DN5: 2024-04-25 | DO5: 2024-04-26 | DP5: 2024-04-27 | DQ5: 2024-04-28 | DR5: 2024-04-29 | DS5: 2024-04-30 | DT5: 2024-05-01 | DU5: 2024-05-02 | DV5: 2024-05-03 | DW5: 2024-05-04 | DX5: 2024-05-05 | DY5: 2024-05-06 | DZ5: 2024-05-07 | EA5: 2024-05-08 | EB5: 2024-05-09 | EC5: 2024-05-10 | ED5: 2024-05-11 | EE5: 2024-05-12 | EF5: 2024-05-13 | EG5: 2024-05-14 | EH5: 2024-05-15 | EI5: 2024-05-16 | EJ5: 2024-05-17 | EK5: 2024-05-18 | EL5: 2024-05-19 | EM5: 2024-05-20 | EN5: 2024-05-21 | EO5: 2024-05-22 | EP5: 2024-05-23 | EQ5: 2024-05-24 | ER5: 2024-05-25 | ES5: 2024-05-26 | ET5: 2024-05-27 | EU5: 2024-05-28 | EV5: 2024-05-29 | EW5: 2024-05-30 | EX5: 2024-05-31 | EY5: 2024-06-01 | EZ5: 2024-06-02 | FA5: 2024-06-03 | FB5: 2024-06-04 | FC5: 2024-06-05 | FD5: 2024-06-06 | FE5: 2024-06-07 | FF5: 2024-06-08 | FG5: 2024-06-09 | FH5: 2024-06-10 | FI5: 2024-06-11 | FJ5: 2024-06-12 | FK5: 2024-06-13 | FL5: 2024-06-14 | FM5: 2024-06-15 | FN5: 2024-06-16 | FO5: 2024-06-17 | FP5: 2024-06-18 | FQ5: 2024-06-19 | FR5: 2024-06-20 | FS5: 2024-06-21 | FT5: 2024-06-22 | FU5: 2024-06-23 | FV5: 2024-06-24 | FW5: 2024-06-25 | FX5: 2024-06-26 | FY5: 2024-06-27 | FZ5: 2024-06-28 | GA5: 2024-06-29 | GB5: 2024-06-30 | GC5: 2024-07-01 | GD5: 2024-07-02 | GE5: 2024-07-03 | GF5: 2024-07-04 | GG5: 2024-07-05 | GH5: 2024-07-06 | GI5: 2024-07-07 | GJ5: 2024-07-08 | GK5: 2024-07-09 | GL5: 2024-07-10 | GM5: 2024-07-11 | GN5: 2024-07-12 | GO5: 2024-07-13 | GP5: 2024-07-14 | GQ5: 2024-07-15 | GR5: 2024-07-16 | GS5: 2024-07-17 | GT5: 2024-07-18 | GU5: 2024-07-19 | GV5: 2024-07-20 | GW5: 2024-07-21 | GX5: 2024-07-22 | GY5: 2024-07-23 | GZ5: 2024-07-24 | HA5: 2024-07-25 | HB5: 2024-07-26 | HC5: 2024-07-27 | HD5: 2024-07-28 | HE5: 2024-07-29 | HF5: 2024-07-30 | HG5: 2024-07-31 | HH5: 2024-08-01 | HI5: 2024-08-02 | HJ5: 2024-08-03 | HK5: 2024-08-04 | HL5: 2024-08-05 | HM5: 2024-08-06 | HN5: 2024-08-07 | HO5: 2024-08-08 | HP5: 2024-08-09 | HQ5: 2024-08-10 | HR5: 2024-08-11 | HS5: 2024-08-12 | HT5: 2024-08-13 | HU5: 2024-08-14 | HV5: 2024-08-15 | HW5: 2024-08-16 | HX5: 2024-08-17 | HY5: 2024-08-18 | HZ5: 2024-08-19 | IA5: 2024-08-20 | IB5: 2024-08-21 | IC5: 2024-08-22 | ID5: 2024-08-23 | IE5: 2024-08-24 | IF5: 2024-08-25 | IG5: 2024-08-26 | IH5: 2024-08-27 | II5: 2024-08-28 | IJ5: 2024-08-29 | IK5: 2024-08-30 | IL5: 2024-08-31 | IM5: 2024-09-01 | IN5: 2024-09-02 | IO5: 2024-09-03 | IP5: 2024-09-04 | IQ5: 2024-09-05 | IR5: 2024-09-06 | IS5: 2024-09-07 | IT5: 2024-09-08 | IU5: 2024-09-09 | IV5: 2024-09-10 | IW5: 2024-09-11 | IX5: 2024-09-12 | IY5: 2024-09-13 | IZ5: 2024-09-14 | JA5: 2024-09-15 | JB5: 2024-09-16 | JC5: 2024-09-17 | JD5: 2024-09-18 | JE5: 2024-09-19 | JF5: 2024-09-20 | JG5: 2024-09-21 | JH5: 2024-09-22 | JI5: 2024-09-23 | JJ5: 2024-09-24 | JK5: 2024-09-25 | JL5: 2024-09-26 | JM5: 2024-09-27 | JN5: 2024-09-28 | JO5: 2024-09-29 | JP5: 2024-09-30 | JQ5: 2024-10-01 | JR5: 2024-10-02 | JS5: 2024-10-03 | JT5: 2024-10-04 | JU5: 2024-10-05 | JV5: 2024-10-06 | JW5: 2024-10-07 | JX5: 2024-10-08 | JY5: 2024-10-09 | JZ5: 2024-10-10 | KA5: 2024-10-11 | KB5: 2024-10-12 | KC5: 2024-10-13 | KD5: 2024-10-14 | KE5: 2024-10-15 | KF5: 2024-10-16 | KG5: 2024-10-17 | KH5: 2024-10-18 | KI5: 2024-10-19 | KJ5: 2024-10-20 | KK5: 2024-10-21 | KL5: 2024-10-22 | KM5: 2024-10-23 | KN5: 2024-10-24 | KO5: 2024-10-25 | KP5: 2024-10-26 | KQ5: 2024-10-27 | KR5: 2024-10-28 | KS5: 2024-10-29 | KT5: 2024-10-30 | KU5: 2024-10-31 | KV5: 2024-11-01 | KW5: 2024-11-02 | KX5: 2024-11-03 | KY5: 2024-11-04 | KZ5: 2024-11-05 | LA5: 2024-11-06 | LB5: 2024-11-07 | LC5: 2024-11-08 | LD5: 2024-11-09 | LE5: 2024-11-10 | LF5: 2024-11-11 | LG5: 2024-11-12 | LH5: 2024-11-13 | LI5: 2024-11-14 | LJ5: 2024-11-15 | LK5: 2024-11-16 | LL5: 2024-11-17 | LM5: 2024-11-18 | LN5: 2024-11-19 | LO5: 2024-11-20 | LP5: 2024-11-21 | LQ5: 2024-11-22 | LR5: 2024-11-23 | LS5: 2024-11-24 | LT5: 2024-11-25 | LU5: 2024-11-26 | LV5: 2024-11-27 | LW5: 2024-11-28 | LX5: 2024-11-29 | LY5: 2024-11-30 | LZ5: 2024-12-01 | MA5: 2024-12-02 | MB5: 2024-12-03 | MC5: 2024-12-04 | MD5: 2024-12-05 | ME5: 2024-12-06 | MF5: 2024-12-07 | MG5: 2024-12-08 | MH5: 2024-12-09 | MI5: 2024-12-10 | MJ5: 2024-12-11 | MK5: 2024-12-12 | ML5: 2024-12-13 | MM5: 2024-12-14 | MN5: 2024-12-15 | MO5: 2024-12-16 | MP5: 2024-12-17 | MQ5: 2024-12-18 | MR5: 2024-12-19 | MS5: 2024-12-20 | MT5: 2024-12-21 | MU5: 2024-12-22 | MV5: 2024-12-23 | MW5: 2024-12-24 | MX5: 2024-12-25 | MY5: 2024-12-26 | MZ5: 2024-12-27 | NA5: 2024-12-28 | NB5: 2024-12-29 | NC5: 2024-12-30 | ND5: 2024-12-31 | NE5: 2025-01-01 | NF5: 2025-01-02 | NG5: 2025-01-03 | NH5: 2025-01-04 | NI5: 2025-01-05 | NJ5: 2025-01-06 | NK5: 2025-01-07 | NL5: 2025-01-08 | NM5: 2025-01-09 | NN5: 2025-01-10 | NO5: 2025-01-11 | NP5: 2025-01-12 | NQ5: 2025-01-13 | NR5: 2025-01-14 | NS5: 2025-01-15 | NT5: 2025-01-16 | NU5: 2025-01-17 | NV5: 2025-01-18 | NW5: 2025-01-19 | NX5: 2025-01-20 | NY5: 2025-01-21 | NZ5: 2025-01-22 | OA5: 2025-01-23 | OB5: 2025-01-24 | OC5: 2025-01-25 | OD5: 2025-01-26 | OE5: 2025-01-27 | OF5: 2025-01-28 | OG5: 2025-01-29 | OH5: 2025-01-30 | OI5: 2025-01-31 | OJ5: 2025-02-01 | OK5: 2025-02-02 | OL5: 2025-02-03 | OM5: 2025-02-04 | ON5: 2025-02-05 | OO5: 2025-02-06 | OP5: 2025-02-07 | OQ5: 2025-02-08 | OR5: 2025-02-09 | OS5: 2025-02-10 | OT5: 2025-02-11 | OU5: 2025-02-12 | OV5: 2025-02-13 | OW5: 2025-02-14 | OX5: 2025-02-15 | OY5: 2025-02-16 | OZ5: 2025-02-17 | PA5: 2025-02-18 | PB5: 2025-02-19 | PC5: 2025-02-20 | PD5: 2025-02-21 | PE5: 2025-02-22 | PF5: 2025-02-23 | PG5: 2025-02-24 | PH5: 2025-02-25 | PI5: 2025-02-26 | PJ5: 2025-02-27 | PK5: 2025-02-28 | PL5: 2025-03-01 | PM5: 2025-03-02 | PN5: 2025-03-03 | PO5: 2025-03-04 | PP5: 2025-03-05 | PQ5: 2025-03-06 | PR5: 2025-03-07 | PS5: 2025-03-08 | PT5: 2025-03-09 | PU5: 2025-03-10 | PV5: 2025-03-11 | PW5: 2025-03-12 | PX5: 2025-03-13 | PY5: 2025-03-14 | PZ5: 2025-03-15 | QA5: 2025-03-16 | QB5: 2025-03-17 | QC5: 2025-03-18 | QD5: 2025-03-19 | QE5: 2025-03-20 | QF5: 2025-03-21 | QG5: 2025-03-22 | QH5: 2025-03-23 | QI5: 2025-03-24 | QJ5: 2025-03-25 | QK5: 2025-03-26 | QL5: 2025-03-27 | QM5: 2025-03-28 | QN5: 2025-03-29 | QO5: 2025-03-30 | QP5: 2025-03-31 | QQ5: 2025-04-01 | QR5: 2025-04-02 | QS5: 2025-04-03 | QT5: 2025-04-04 | QU5: 2025-04-05 | QV5: 2025-04-06 | QW5: 2025-04-07 | QX5: 2025-04-08 | QY5: 2025-04-09 | QZ5: 2025-04-10 | RA5: 2025-04-11 | RB5: 2025-04-12 | RC5: 2025-04-13 | RD5: 2025-04-14 | RE5: 2025-04-15 | RF5: 2025-04-16 | RG5: 2025-04-17 | RH5: 2025-04-18 | RI5: 2025-04-19 | RJ5: 2025-04-20 | RK5: 2025-04-21 | RL5: 2025-04-22 | RM5: 2025-04-23 | RN5: 2025-04-24 | RO5: 2025-04-25 | RP5: 2025-04-26 | RQ5: 2025-04-27 | RR5: 2025-04-28 | RS5: 2025-04-29 | RT5: 2025-04-30 | RU5: 2025-05-01 | RV5: 2025-05-02 | RW5: 2025-05-03 | RX5: 2025-05-04 | RY5: 2025-05-05 | RZ5: 2025-05-06 | SA5: 2025-05-07 | SB5: 2025-05-08 | SC5: 2025-05-09 | SD5: 2025-05-10 | SE5: 2025-05-11 | SF5: 2025-05-12 | SG5: 2025-05-13 | SH5: 2025-05-14 | SI5: 2025-05-15 | SJ5: 2025-05-16 | SK5: 2025-05-17 | SL5: 2025-05-18 | SM5: 2025-05-19 | SN5: 2025-05-20 | SO5: 2025-05-21 | SP5: 2025-05-22 | SQ5: 2025-05-23 | SR5: 2025-05-24 | SS5: 2025-05-25 | ST5: 2025-05-26 | SU5: 2025-05-27 | SV5: 2025-05-28 | SW5: 2025-05-29 | SX5: 2025-05-30 | SY5: 2025-05-31 | SZ5: 2025-06-01 | TA5: 2025-06-02 | TB5: 2025-06-03 | TC5: 2025-06-04 | TD5: 2025-06-05 | TE5: 2025-06-06 | TF5: 2025-06-07 | TG5: 2025-06-08 | TH5: 2025-06-09 | TI5: 2025-06-10 | TJ5: 2025-06-11 | TK5: 2025-06-12 | TL5: 2025-06-13 | TM5: 2025-06-14 | TN5: 2025-06-15 | TO5: 2025-06-16 | TP5: 2025-06-17 | TQ5: 2025-06-18 | TR5: 2025-06-19 | TS5: 2025-06-20 | TT5: 2025-06-21 | TU5: 2025-06-22 | TV5: 2025-06-23 | TW5: 2025-06-24 | TX5: 2025-06-25 | TY5: 2025-06-26 | TZ5: 2025-06-27 | UA5: 2025-06-28 | UB5: 2025-06-29 | UC5: 2025-06-30 | UD5: 2025-07-01 | UE5: 2025-07-02 | UF5: 2025-07-03 | UG5: 2025-07-04 | UH5: 2025-07-05 | UI5: 2025-07-06 | UJ5: 2025-07-07 | UK5: 2025-07-08 | UL5: 2025-07-09 | UM5: 2025-07-10 | UN5: 2025-07-11 | UO5: 2025-07-12 | UP5: 2025-07-13 | UQ5: 2025-07-14 | UR5: 2025-07-15 | US5: 2025-07-16 | UT5: 2025-07-17 | UU5: 2025-07-18 | UV5: 2025-07-19 | UW5: 2025-07-20 | UX5: 2025-07-21 | UY5: 2025-07-22 | UZ5: 2025-07-23 | VA5: 2025-07-24 | VB5: 2025-07-25 | VC5: 2025-07-26 | VD5: 2025-07-27 | VE5: 2025-07-28 | VF5: 2025-07-29 | VG5: 2025-07-30 | VH5: 2025-07-31 | VI5: 2025-08-01 | VJ5: 2025-08-02 | VK5: 2025-08-03 | VL5: 2025-08-04 | VM5: 2025-08-05 | VN5: 2025-08-06 | VO5: 2025-08-07 | VP5: 2025-08-08 | VQ5: 2025-08-09 | VR5: 2025-08-10 | VS5: 2025-08-11 | VT5: 2025-08-12 | VU5: 2025-08-13 | VV5: 2025-08-14 | VW5: 2025-08-15 | VX5: 2025-08-16 | VY5: 2025-08-17 | VZ5: 2025-08-18 | WA5: 2025-08-19 | WB5: 2025-08-20 | WC5: 2025-08-21 | WD5: 2025-08-22 | WE5: 2025-08-23 | WF5: 2025-08-24 | WG5: 2025-08-25 | WH5: 2025-08-26 | WI5: 2025-08-27 | WJ5: 2025-08-28 | WK5: 2025-08-29 | WL5: 2025-08-30 | WM5: 2025-08-31 | WN5: 2025-09-01 | WO5: 2025-09-02 | WP5: 2025-09-03 | WQ5: 2025-09-04 | WR5: 2025-09-05 | WS5: 2025-09-06 | WT5: 2025-09-07 | WU5: 2025-09-08 | WV5: 2025-09-09 | WW5: 2025-09-10 | WX5: 2025-09-11 | WY5: 2025-09-12 | WZ5: 2025-09-13 | XA5: 2025-09-14 | XB5: 2025-09-15 | XC5: 2025-09-16 | XD5: 2025-09-17 | XE5: 2025-09-18 | XF5: 2025-09-19 | XG5: 2025-09-20 | XH5: 2025-09-21 | XI5: 2025-09-22 | XJ5: 2025-09-23 | XK5: 2025-09-24 | XL5: 2025-09-25 | XM5: 2025-09-26 | XN5: 2025-09-27 | XO5: 2025-09-28 | XP5: 2025-09-29 | XQ5: 2025-09-30 | XR5: 2025-10-01 | XS5: 2025-10-02 | XT5: 2025-10-03 | XU5: 2025-10-04 | XV5: 2025-10-05 | XW5: 2025-10-06 | XX5: 2025-10-07 | XY5: 2025-10-08 | XZ5: 2025-10-09 | YA5: 2025-10-10 | YB5: 2025-10-11 | YC5: 2025-10-12 | YD5: 2025-10-13 | YE5: 2025-10-14 | YF5: 2025-10-15 | YG5: 2025-10-16 | YH5: 2025-10-17 | YI5: 2025-10-18 | YJ5: 2025-10-19 | YK5: 2025-10-20 | YL5: 2025-10-21 | YM5: 2025-10-22 | YN5: 2025-10-23 | YO5: 2025-10-24 | YP5: 2025-10-25 | YQ5: 2025-10-26 | YR5: 2025-10-27 | YS5: 2025-10-28 | YT5: 2025-10-29 | YU5: 2025-10-30 | YV5: 2025-10-31 | YW5: 2025-11-01 | YX5: 2025-11-02 | YY5: 2025-11-03 | YZ5: 2025-11-04 | ZA5: 2025-11-05 | ZB5: 2025-11-06 | ZC5: 2025-11-07 | ZD5: 2025-11-08 | ZE5: 2025-11-09 | ZF5: 2025-11-10 | ZG5: 2025-11-11 | ZH5: 2025-11-12 | ZI5: 2025-11-13 | ZJ5: 2025-11-14 | ZK5: 2025-11-15 | ZL5: 2025-11-16 | ZM5: 2025-11-17 | ZN5: 2025-11-18 | ZO5: 2025-11-19 | ZP5: 2025-11-20 | ZQ5: 2025-11-21 | ZR5: 2025-11-22 | ZS5: 2025-11-23 | ZT5: 2025-11-24 | ZU5: 2025-11-25 | ZV5: 2025-11-26 | ZW5: 2025-11-27 | ZX5: 2025-11-28 | ZY5: 2025-11-29 | ZZ5: 2025-11-30 | AAA5: 2025-12-01 | AAB5: 2025-12-02 | AAC5: 2025-12-03 | AAD5: 2025-12-04 | AAE5: 2025-12-05 | AAF5: 2025-12-06 | AAG5: 2025-12-07 | AAH5: 2025-12-08 | AAI5: 2025-12-09 | AAJ5: 2025-12-10 | AAK5: 2025-12-11 | AAL5: 2025-12-12 | AAM5: 2025-12-13 | AAN5: 2025-12-14 | AAO5: 2025-12-15 | AAP5: 2025-12-16 | AAQ5: 2025-12-17 | AAR5: 2025-12-18 | AAS5: 2025-12-19 | AAT5: 2025-12-20 | AAU5: 2025-12-21 | AAV5: 2025-12-22 | AAW5: 2025-12-23 | AAX5: 2025-12-24 | AAY5: 2025-12-25 | AAZ5: 2025-12-26 | ABA5: 2025-12-27 | ABB5: 2025-12-28 | ABC5: 2025-12-29 | ABD5: 2025-12-30 | ABE5: 2025-12-31 | ABF5: 2026-01-01 | ABG5: 2026-01-02 | ABH5: 2026-01-03 | ABI5: 2026-01-04 | ABJ5: 2026-01-05 | ABK5: 2026-01-06 | ABL5: 2026-01-07 | ABM5: 2026-01-08 | ABN5: 2026-01-09 | ABO5: 2026-01-10 | ABP5: 2026-01-11 | ABQ5: 2026-01-12 | ABR5: 2026-01-13 | ABS5: 2026-01-14 | ABT5: 2026-01-15 | ABU5: 2026-01-16 | ABV5: 2026-01-17 | ABW5: 2026-01-18 | ABX5: 2026-01-19 | ABY5: 2026-01-20 | ABZ5: 2026-01-21 | ACA5: 2026-01-22 | ACB5: 2026-01-23 | ACC5: 2026-01-24 | ACD5: 2026-01-25 | ACE5: 2026-01-26 | ACF5: 2026-01-27 | ACG5: 2026-01-28 | ACH5: 2026-01-29 | ACI5: 2026-01-30
A6: Österreich | B6: Ferien | C6: Weihnachtsferien | AL6: Semesterferien | CI6: Osterferien | EK6: Pfingstferien | GA6: Sommerferien | KP6: Herbstferien | MV6: Weihnachtsferien | OL6: Semesterferien | RB6: Osterferien | TF6: Pfingsten | UA6: Sommerferien | YP6: Herbstferien | AAX6: Weihnachtsferien
B7: Feiertage | C7: Neujahr | H7: Hl. 3 Könige | CC7: Josephitag | CM7: Karfreitag | CP7: Ostermontag | DT7: Tag der Arbeit | DW7: Florianitag | EB7: Christi Himmelfahrt | EM7: Pfingstmontag | EW7: Fronleichnam | HV7: Mariä Himmelfahrt | JJ7: Rupertitag | JZ7: Tag der Volksabstimmung | KP7: Nationalfeiertag | KV7: Allerheiligen | LF7: Martinstag | LJ7: Leopolditag | MG7: Mariä Empfängnis | MX7: Christtag | MY7: Stefanitag | NE7: Neujahr | NJ7: Hl. 3 Könige | QD7: Josephitag | RH7: Karfreitag | RK7: Ostermontag | RU7: Tag der Arbeit | RX7: Florianitag | SW7: Christi Himmelfahrt | TH7: Pfingstmontag | TR7: Fronleichnam | VW7: Maria Himmelfahrt | AAZ7: Stefanietag | ABF7: Neujahr | ABK7: Hl. 3 Könige
B8: Burgenland
B9: Kärnten
B10: Niederösterreich
B11: Oberösterreich
B12: Salzburg
B13: Steiermark
B14: Tirol
B15: Vorarlberg
B16: Wien
A18: Deutschland | B18: Ferien | C18: Weihnachtsferien | AH18: Winterferien | CB18: Osterferien | EC18: Pfingsferien | FR18: Sommerferien | JP18: Herbstferien | MV18: Weihnachtsferien | OE18: Winterferien | PU18: Osterferien | UA18: Sommerferien | XW18: Herbstferien | AAT18: Weihnachtsferien
B19: Feiertage | C19: Neujahr | H19: Hl. 3 Könige | BR19: Internationaler Frauentag | CM19: Karfreitag | CP19: Ostermontag | DT19: Tag der Arbeit | EB19: Christi Himmelfahrt | EL19: Pfingstsonntag | EM19: Pfingstmontag | EW19: Fronleichnam | HO19: Augsburger Friedensfest | HV19: Mariä Himmel­fahrt | JF19: Weltkindertag | JS19: Tag der deutschen Einheit | KU19: Reformationstag | KV19: Allerheiligen | LQ19: Buß- und Bettag | MX19: Weihnachten | NE19: Neujahr | NJ19: Hl. 3 Könige | PS19: Internationaler Frauentag | RH19: Karfreitag | RJ19: Ostersonntag | RK19: Ostermontag | RU19: Tag der Arbeit | SE19: Muttertag | SW19: Christi Himmelfahrt | XT19: Tag der deutschen Einheit | YV19: Reformationstag | AAY19: Weihnachtsfeiertag | ABF19: Neujahr | ABK19: Hl. 3 Könige
B20: Baden-Württemberg
B21: Bayern
B22: Berlin
B23: Brandenburg
B24: Bremen
B25: Hamburg
B26: Hessen
B27: Mecklenburg-Vorp.
B28: Niedersachsen
B29: NRW
B30: Rheinland-Pfalz
B31: Saarland
B32: Sachsen
B33: Sachsen-Anhalt
B34: Schleswig-Holstein
B35: Thüringen
A37: Italien | B37: Ferien | C37: Weihnachtsferien | AQ37: Faschingsferien | CL37: Osterferien | FE37: Sommerferien *Dauer unterschiedlich je nach Region | KT37: Allerheiligenferien | MW37: Weihnachtsferien | PE37: Faschingsferien | QZ37: Osterferien | TM37: Sommerferien | YP37: Herbstferien | AAX37: Weihnachtsferien
B38: Feiertage | C38: Neujahr | H38: Epifania | CO38: Ostersonntag | CP38: Ostermontag | DN38: T.d. Befreiung Italiens | DT38: Tag der Arbeit | EM38: Pfingstmontag*nur in Südtirol | EZ38: Tag der Republik | HV38: Ferragosto | KV38: Allerheiligen | MG38: Immacolata Concezione | MX38: Christtag | MY38: Stefanietag | NE38: Neujahr | NJ38: Epifania | RJ38: Ostersonntag | RK38: Ostermontag | RO38: Tag der Befreiung Italiens | RU38: Tag der Arbeit | TA38: Tag der nationalen Repuplik | AAH38: Mariä Empfängnis | AAZ38: Stephanstag | ABF38: Neujahr | ABK38: Hl. 3 Könige
B39: Südtirol
B40: Lombardei
B41: Venetien
B42: Ligurien
B43: Toskana
B44: Sardinien
B45: Sizilien
A47: Schweiz | B47: Ferien | C47: Weihnachtssferien | AD47: Sportferien | CG47: Frühlingsferien | FM47: Sommerferien | JG47: Herbstferien | MT47: Weihnachtsferien | OC47: Sportferien | QT47: Frühlingsferien | UA47: Sommerferien | XG47: Herbstferien | AAT47: Weihnachtsferien
B48: Feiertage | C48: Neujahr | D48: Berchtoldstag | H48: Hl. 3 Könige | BK48: Tag der Republik | CC48: Josefstag | CM48: Karfreitag | CP48: Ostermontag | CW48: Näfelser Fahrt | DT48: Tag der Arbeit | EB48: Christi Himmelfahrt | EM48: Pfingstmontag | EW48: Fronleichnam | FU48: Unabhängigkeitstag | GA48: Peter & Paul | HH48: Nationalfeiertag | HV48: Mariä Himmelfahrt | IU48: Jeune Genevois | JD48: Bettagsmontag | JH48: Mauritiustag | JK48: Tag des hl. Nikolaus v. Flüe | KV48: Allerheiligen | MG48: Mariä Empfängnis | MX48: Weihnachten | NE48: Nj | NF48: Berchtoldstag | NJ48: Hl. 3 Könige | PL48: Tag der Republik | QD48: Josefstag | QX48: Näfelser Fahrt | RH48: Karfreitag | RK48: Ostermontag | RQ48: Sechseläuten | RU48: Tag der Arbeit | SW48: Auffahrt | TH48: Pfingsmontag | UB48: Peter und Paul | VI48: Bundesfeier | VW48: Mariä Himmelfahrt | WX48: Genfer Bettag | XB48: Knabenschießen | XH48: Eidgenössischer Dank-, Buss- & Bettag | XO48: Mauritiustag | XS48: St. Leodegar | YW48: Allerheiligen | AAY48: Weihnachtsfeiertag | ABF48: Neujahr | ABG48: Berchtoldtag | ABK48: Hl. 3 Könige
B49: Aargau
B50: Appenzell Ausserh.
B51: Appenzell Innerrh.
B52: Basel-Land
B53: Basel-Stadt
B54: Bern
B55: Freiburg
B56: Genf
B57: Glarus
B58: Graubünden
B59: Jura
B60: Luzern
B61: Neuenburg
B62: Nidwalden
B63: Obwalden
B64: St. Gallen
B65: Schaffshausen
B66: Schwyz
B67: Solothurn
B68: Tessin
B69: Thurgau
B70: Uri
B71: Waadt
B72: Wallis
B73: Zürich
B74: Zug
A76: Niederlande | B76: Ferien | C76: Weihnachtsferien | AQ76: Frühlingsferien | DP76: Maiferien | GH76: Sommerferien | KH76: Herbstferien | MT76: Weihnachtsferien | OX76: Frühlingsferien | RP76: Maiferien | UH76: Sommerferien | YB76: Herbstferien | AAT76: Weihnachtsferien
B77: Feiertage | C77: Neujahr | CP77: Ostermontag | DP77: T.d. Königs | DX77: Tag der Befreiung | EB77: Christi Himmelfahrt | EM77: Pfingstmontag | MX77: Weihnachten | NE77: Neujahr | RK77: Ostermontag | RQ77: Tag des Königs | RY77: Tag der Befreiung | SW77: Christi Himmelfahrt | TH77: Pfingsmontag | AAY77: weihnachten | ABF77: Neujahrstag
B78: Nord
B79: Mitte
B80: Süd
A82: Belgien | B82: Ferien | C82: Weihnachtsferien | AS82: Winterferien *unterschieldich je nach Region | CP82: Osterferien | GC82: Sommerferien | KR82: Herbstferien | MV82: Weihnachtsferien | PN82: Winterferien | QW82: Osterferien | UD82: Sommerferien | YR82: Herbsferien | AAT82: Weihnachtsferien
B83: Feiertage | C83: Neujahr | CO83: Ostersonntag | CP83: Ostermontag | DT83: Tag der Arbeit | EB83: Christi Himmelfahrt | EL83: Pfingstsonntag | EM83: Pfingstmontag | GW83: Nationalfeiertag | HV83: Mariä Himmelfahrt | KV83: Allerheiligen | LF83: Tag des Waffenstillstandes 1918 | MX83: Weihnachten | NE83: Neujahr | RJ83: Ostersontnag | RK83: Ostermontag | RU83: Tag der Arbeit | SW83: Chrisit Himmelfahrt | ABF83: Neujahrstag
A86: Luxemburg | B86: Ferien | C86: Weihnachtsferien | AQ86: Karnevalsferien | CG86: Osterferien | ER86: Pfingstferien | GR86: Sommerferien | KP86: Alleheiligenferien | MT86: Weihnachtsferien | OX86: Karnevalsferien | QU86: Osterferien | SR86: Pfingsferien | US86: Sommerferien | YW86: Herbstferien | AAT86: Weihnachtsferien
B87: Feiertage | C87: Neujahr | CP87: Ostermontag | DT87: Tag der Arbeit | EB87: Europatag/Christi Himmelfahrt | EM87: Pfingstmontag | FU87: Nationalfeiertag | HV87: Mariä Himmelfahrt | KV87: Allerheiligen | MX87: Weihnachten | MY87: Stefanietag | NE87: Neujahr | RK87: Ostermontag | RU87: Tag der Arbeit | SW87: Christi Himmelfahrt | TH87: Pfingstmontag | TV87: Nationalfeiertag Luxembourg | VW87: Mariä Himmelfahrt | YW87: Allerheiligen | ABF87: Neujahrstag
A90: Frankreich | B90: Ferien | C90: Weihnachtsferien | AR90: Winterferien *unterschiedlich je nach Region | CW90: Frühlingsferien *unterschiedlich je nach Region | GH90: Sommerferien | KK90: Herbstferien *unterschiedlich je nach Region | MV90: Weihnachtsferien | OR90: Winterferien *unterschiedlich je nach Region | QV90: Frühlingsferien *unterschiedlich je nach Region | UH90: Sommerferien | YJ90: Herbstferien | AAU90: Weihnachtsferien
B91: Feiertage | C91: Neujahr | CM91: Karfreitag | CP91: Ostermontag | DT91: Tag der Arbeit | EA91: Tag des Sieges 1945 | EB91: Christihimmelfahrt | EM91: Pfingstmontag | GP91: Nationalfeiertag | HV91: Mariä Himmelfahrt | KV91: Allerheiligen | LF91: Tag des Waffenstillstandes 1918 | MX91: Weihnachten | MY91: Stefanietag | NE91: Neujahr | RH91: Karfreitag | RK91: Ostermontag | RU91: Tag der Arbeit | SB91: Tag des Sieges 1945 | SW91: Christi Himmelfahrt | TH91: Pfingsmontag | UQ91: Nationalfeiertag Frankreich | VW91: Mariä Empfängnis | ABF91: Neujahrstag
A94: GB | B94: Ferien | C94: Christmas Holidays | AS94: Half-term Spring Holidays | CG94: Easter Holidays | ET94: May Holidays | GG94: Summer Holidays | KD94: Autumn Holidays | PD94: Spring half-term | RV94: May Day | SQ94: Summer half-term | UU94: Summer holiday | YO94: Autumn half-term | AAS94: Christmas holidays
B95: Feiertage | C95: New Years Day | E95: Substitute Day | CA95: St. Patrick's Day | CM95: Good Friday | CP95: Easter Monday | DT95: Early Monday | DY95: Early May Bank | ET95: Spring Bank | GN95: Battle of the Boyne | HL95: August Bank Holiday | IG95: Summer Bank Holiday | LY95: St. Andrew's Day | MX95: Christmas Day | MY95: Stephen's Day | NE95: New Year's Day | NF95: New Year Holiday | QB95: St. Patrick's Day | RH95: Good Friday | RK95: Easter Monday | RY95: Early May Bank | ST95: Spring Break | UO95: Battle of Boyne | VL95: Bankholiday | WG95: Bankholiday | ABF95: Neujahrstag
A98: Ungarn | B98: Ferien | C98: *keine Ferienzeiten bekannt | MT98: Weihnachtsferien
B99: Feiertage | C99: Neujahr | BY99: Gedenktag Volksaufstand 1848 | CM99: Karfreitag | CO99: Ostersonntag | CP99: Ostermontag | DT99: Tag der Arbeit | EM99: Pfingstmontag | IA99: Nationalfeiertag | KM99: Gedenktag Volksaufstand 1956 | KV99: Allerheiligen | MX99: Christtag | MY99: Stefanitag | NE99: Neujahr | PZ99: Gedenktag Volksaufstand 1848 | RH99: Karfreitag | RJ99: Ostersonntag | RK99: Ostermontag | RU99: Tag der Arbeit | TH99: Pfingstmontag | WB99: Nationalfeiertag | YN99: Volksaufstand 1956 | YW99: Allerheiligen | ABF99: Neujahrstag
A102: Tschechien | B102: Ferien | C102: Weihnachtsferien | AL102: Winterferien, je 1 Woche *unterschiedlich nach Region | CL102: Osterferien | GA102: Sommerferien | KS102: Herbstferien | MV102: Weihnachtsferien | OL102: Winterferien, je 1 Woche, unterschiedlich nach Region | TY102: Sommerferien | YR102: Herbstferien | AAV102: Weihnachtsferien
B103: Feiertage | C103: Neujahr | CM103: Karfreitag | CP103: Ostermontag | DT103: Tag der Arbeit | EA103: Tag des Sieges | GG103: Hl. Kyrill & Method | GH103: Jan-Hus-Tag | JN103: Tag der tschech. Staatlichkeit | KR103: Unabhängigkeitstag | LL103: T.d. Kampfes f. Freiheit und Demokratie | MW103: Hl. Abend | MX103: Weihnachten | NE103: Neujahr | RH103: Karfreitag | RK103: Ostermontag | RU103: Tag der Arbeit | SB103: Tag des Sieges | UH103: Kyrill | UI103: Jan-Hus-Tag | XO103: Tag der tschechischen Staatlichkeit | YS103: Unabhängigkeitstag | ZG103: Tag des Kampfes für Freiheit & Demokratie | ABF103: Neujahrstag
A106: Kroatien | B106: Ferien | C106: *keine Ferienzeiten bekannt
B107: Feiertage | C107: Neujahr | H107: Hl. 3 Könige | CO107: Ostersonntag | CP107: Ostermontag | DT107: Tag der Arbeit | EW107: Fronleichnam | FT107: Tag des antifaschistischen Kampfes | FW107: Tag der Staatlichkeit | HL107: T.d. Sieges & d. heimatlichen Dankbarkeit | HV107: Mariä Himmelfahrt | KV107: Allerheiligen | LM107: Heldengedenktag | MX107: Stefanietag | NE107: Neujahr | NJ107: Hl. 3 Könige | RJ107: Ostersonntag | RK107: Ostermontag | RU107: Tag der Arbeit | TR107: Fronleichnahm | TU107: Kampfes Faschismus | TX107: Tag der Staatlichkeit | VM107: Tag des Sieges | VW107: Mariä Himmelfahrt | XY107: Unabhängigkeitstag | YW107: Allerheiligen | AAF107: St. Nikolaus | ABF107: Neujahrstag | ABK107: Hl. 3 Könige
A110: Polen | B110: Ferien | CL110: Osterferien | FT110: Sommerferien | MT110: Weihnachtsferien | RG110: Osterferien | UA110: Sommerferien | AAV110: Weihnachtsferien
B111: Feiertage | C111: Neujahr | H111: Hl. 3 Könige | CO111: Ostersonntag | CP111: Ostermontag | DT111: Tag der Arbeit | DV111: Nationalfeiertag | EL111: Pfingsten | EW111: Fronleichnam | HV111: Mariä Himmelfahrt | KV111: Allerheiligen | LF111: Unabhängigkeitstag | MX111: Weihnachten | NE111: Neujahr | NJ111: Hl. 3 Könige | RJ111: Ostersonntag | RK111: Ostermontag | RU111: Tag der Arbeit | RW111: Nationalfeiertag | TG111: Pfingstsonntag | TR111: Fronleichnam | VW111: Mariä Himmelfahrt | YW111: Allerheiligen | ZG111: Unabhängigkeitstag | AAZ111: Stephanstag | ABF111: Neujahrstag | ABK111: Hl. 3 Könige
A114: Dänemark | B114: Ferien | C114: Weihnachtsferien*unterschiedlich nach Region | AQ114: Winterferien, je 1 Woche *unterschiedlich nach Region | CG114: Osterferien | EK114: Pfingstferien | GA114: Sommerferien | KB114: Herbstferien | MT114: Weihnachtsferien | OQ114: Winterferien *je 1 Woche, unterschiedlich nach Region | RB114: Osterferien | TF114: Pfingstferien | UA114: Sommerferien | YB114: Herbstferien | AAT114: Weihnachtsferien
B115: Feiertage | C115: Neujahr | CL115: Gründonnerstag | CM115: Karfreitag | CO115: Ostersonntag | CP115: Ostermontag | DO115: General Prayer Day | EB115: Chrisit Himmelfahrt | EC115: Bank Closing Day | EL115: Pfingstsonntag | EM115: Pfingstmontag | FC115: Tag der Verfassung | MW115: Hl. Abend | MX115: Christtag | MY115: Stefanietag | NE115: Neujahr | RG115: Gründonnerstag | RH115: Karfreitag | RJ115: Ostersonntag | RK115: Ostermontag | SJ115: General Prayer Day | SW115: Christi Himmelfahrt | SX115: Bank Closing Day | TD115: Verfassungstag Dänemark | AAZ115: Stephanstag | ABF115: Neujahrstag

Sheet Erklärfolie K&P
A1: Ferienkalender
A15: Anbieter
A16: Kohl & Partner GmbH
A18: Hans-Gasser-Platz 9
A19: 9500 Villach, AUSTRIA
A21: Datum
A22: =+TODAY() -> 2025-02-03

Sheet Ferienkalender K&P
A1: Bedeutung für Ihren Betrieb
A2: Feiertag | B2: 3 | C2: Zahl von 0 bis 5 eingeben | J2: Der Farbverlauf unterhalb des Datums gibt Ihnen einen ersten Indikator, über die Dichte an Ferien, Feiertage & Wochenenden.
A3: Ferien | B3: 1 | C3: 0 = unwichitg
A4: Wochenende | B4: 5 | C4: 5 = wichtig
C7: 2024-01-01 | AH7: 2024-02-01 | BK7: 2024-03-01 | CP7: 2024-04-01 | DT7: 2024-05-01 | EY7: 2024-06-01 | GC7: 2024-07-01 | HH7: 2024-08-01 | IM7: 2024-09-01 | JQ7: 2024-10-01 | KV7: 2024-11-01 | LZ7: 2024-12-01 | NE7: 2025-01-01 | OJ7: 2025-02-01 | PL7: 2025-03-01 | QQ7: 2025-04-01 | RU7: 2025-05-01 | SZ7: 2025-06-01 | UD7: 2025-07-01 | VI7: 2025-08-01 | WN7: 2025-09-01 | XR7: 2025-10-01 | YW7: 2025-11-01 | AAA7: 2025-12-01 | ABF7: 2026-01-01 | ACK7: =ACK12 -> 2026-02-01 | ADM7: 2026-03-01 | AER7: 2026-04-01 | AFV7: 2026-05-01 | AHA7: 2026-06-01 | AIE7: 2026-07-01 | AJJ7: 2026-08-01 | AKO7: 2026-09-01 | ALS7: 2026-10-01 | AMX7: 2026-11-01 | AOB7: 2026-12-01 | APG7: 2027-01-01
C10: =UPPER(C11) -> MO | D10: DI | E10: MI | F10: DO | G10: FR | H10: SA | I10: SO | J10: MO | K10: DI | L10: MI | M10: DO | N10: FR | O10: SA | P10: SO | Q10: MO | R10: DI | S10: MI | T10: DO | U10: FR | V10: SA | W10: SO | X10: MO | Y10: DI | Z10: MI | AA10: DO | AB10: FR | AC10: SA | AD10: SO | AE10: MO | AF10: DI | AG10: MI | AH10: DO | AI10: FR | AJ10: SA | AK10: SO | AL10: MO | AM10: DI | AN10: MI | AO10: DO | AP10: FR | AQ10: SA | AR10: SO | AS10: MO | AT10: DI | AU10: MI | AV10: DO | AW10: FR | AX10: SA | AY10: SO | AZ10: MO | BA10: DI | BB10: MI | BC10: DO | BD10: FR | BE10: SA | BF10: SO | BG10: MO | BH10: DI | BI10: MI | BJ10: DO | BK10: FR | BL10: SA | BM10: SO | BN10: MO | BO10: =UPPER(BO11) -> DI | BP10: MI | BQ10: DO | BR10: FR | BS10: SA | BT10: SO | BU10: MO | BV10: DI | BW10: MI | BX10: DO | BY10: FR | BZ10: SA | CA10: SO | CB10: MO | CC10: DI | CD10: MI | CE10: DO | CF10: FR | CG10: SA | CH10: SO | CI10: MO | CJ10: DI | CK10: MI | CL10: DO | CM10: FR | CN10: SA | CO10: SO | CP10: MO | CQ10: DI | CR10: MI | CS10: DO | CT10: FR | CU10: SA | CV10: SO | CW10: MO | CX10: DI | CY10: MI | CZ10: DO | DA10: FR | DB10: SA | DC10: SO | DD10: MO | DE10: DI | DF10: MI | DG10: DO | DH10: FR | DI10: SA | DJ10: SO | DK10: MO | DL10: DI | DM10: MI | DN10: DO | DO10: FR | DP10: SA | DQ10: SO | DR10: MO | DS10: DI | DT10: MI | DU10: DO | DV10: FR | DW10: SA | DX10: SO | DY10: MO | DZ10: DI | EA10: =UPPER(EA11) -> MI | EB10: DO | EC10: FR | ED10: SA | EE10: SO | EF10: MO | EG10: DI | EH10: MI | EI10: DO | EJ10: FR | EK10: SA | EL10: SO | EM10: MO | EN10: DI | EO10: MI | EP10: DO | EQ10: FR | ER10: SA | ES10: SO | ET10: MO | EU10: DI | EV10: MI | EW10: DO | EX10: FR | EY10: SA | EZ10: SO | FA10: MO | FB10: DI | FC10: MI | FD10: DO | FE10: FR | FF10: SA | FG10: SO | FH10: MO | FI10: DI | FJ10: MI | FK10: DO | FL10: FR | FM10: SA | FN10: SO | FO10: MO | FP10: DI | FQ10: MI | FR10: DO | FS10: FR | FT10: SA | FU10: SO | FV10: MO | FW10: DI | FX10: MI | FY10: DO | FZ10: FR | GA10: SA | GB10: SO | GC10: MO | GD10: DI | GE10: MI | GF10: DO | GG10: FR | GH10: SA | GI10: SO | GJ10: MO | GK10: DI | GL10: MI | GM10: =UPPER(GM11) -> DO | GN10: FR | GO10: SA | GP10: SO | GQ10: MO | GR10: DI | GS10: MI | GT10: DO | GU10: FR | GV10: SA | GW10: SO | GX10: MO | GY10: DI | GZ10: MI | HA10: DO | HB10: FR | HC10: SA | HD10: SO | HE10: MO | HF10: DI | HG10: MI | HH10: DO | HI10: FR | HJ10: SA | HK10: SO | HL10: MO | HM10: DI | HN10: MI | HO10: DO | HP10: FR | HQ10: SA | HR10: SO | HS10: MO | HT10: DI | HU10: MI | HV10: DO | HW10: FR | HX10: SA | HY10: SO | HZ10: MO | IA10: DI | IB10: MI | IC10: DO | ID10: FR | IE10: SA | IF10: SO | IG10: MO | IH10: DI | II10: MI | IJ10: DO | IK10: FR | IL10: SA | IM10: SO | IN10: MO | IO10: DI | IP10: MI | IQ10: DO | IR10: FR | IS10: SA | IT10: SO | IU10: MO | IV10: DI | IW10: MI | IX10: DO | IY10: =UPPER(IY11) -> FR | IZ10: SA | JA10: SO | JB10: MO | JC10: DI | JD10: MI | JE10: DO | JF10: FR | JG10: SA | JH10: SO | JI10: MO | JJ10: DI | JK10: MI | JL10: DO | JM10: FR | JN10: SA | JO10: SO | JP10: MO | JQ10: DI | JR10: MI | JS10: DO | JT10: FR | JU10: SA | JV10: SO | JW10: MO | JX10: DI | JY10: MI | JZ10: DO | KA10: FR | KB10: SA | KC10: SO | KD10: MO | KE10: DI | KF10: MI | KG10: DO | KH10: FR | KI10: SA | KJ10: SO | KK10: MO | KL10: DI | KM10: MI | KN10: DO | KO10: FR | KP10: SA | KQ10: SO | KR10: MO | KS10: DI | KT10: MI | KU10: DO | KV10: FR | KW10: SA | KX10: SO | KY10: MO | KZ10: DI | LA10: MI | LB10: DO | LC10: FR | LD10: SA | LE10: SO | LF10: MO | LG10: DI | LH10: MI | LI10: DO | LJ10: FR | LK10: =UPPER(LK11) -> SA | LL10: SO | LM10: MO | LN10: DI | LO10: MI | LP10: DO | LQ10: FR | LR10: SA | LS10: SO | LT10: MO | LU10: DI | LV10: MI | LW10: DO | LX10: FR | LY10: SA | LZ10: SO | MA10: MO | MB10: DI | MC10: MI | MD10: DO | ME10: FR | MF10: SA | MG10: SO | MH10: MO | MI10: DI | MJ10: MI | MK10: DO | ML10: FR | MM10: SA | MN10: SO | MO10: MO | MP10: DI | MQ10: MI | MR10: DO | MS10: FR | MT10: SA | MU10: SO | MV10: MO | MW10: DI | MX10: MI | MY10: DO | MZ10: FR | NA10: SA | NB10: SO | NC10: MO | ND10: DI | NE10: MI | NF10: DO | NG10: FR | NH10: SA | NI10: SO | NJ10: MO | NK10: DI | NL10: MI | NM10: DO | NN10: FR | NO10: SA | NP10: SO | NQ10: MO | NR10: DI | NS10: MI | NT10: DO | NU10: FR | NV10: SA | NW10: =UPPER(NW11) -> SO | NX10: MO | NY10: DI | NZ10: MI | OA10: DO | OB10: FR | OC10: SA | OD10: SO | OE10: MO | OF10: DI | OG10: MI | OH10: DO | OI10: FR | OJ10: SA | OK10: SO | OL10: MO | OM10: DI | ON10: MI | OO10: DO | OP10: FR | OQ10: SA | OR10: SO | OS10: MO | OT10: DI | OU10: MI | OV10: DO | OW10: FR | OX10: SA | OY10: SO | OZ10: MO | PA10: DI | PB10: MI | PC10: DO | PD10: FR | PE10: SA | PF10: SO | PG10: MO | PH10: DI | PI10: MI | PJ10: DO | PK10: FR | PL10: SA | PM10: SO | PN10: MO | PO10: DI | PP10: MI | PQ10: DO | PR10: FR | PS10: SA | PT10: SO | PU10: MO | PV10: DI | PW10: MI | PX10: DO | PY10: FR | PZ10: SA | QA10: SO | QB10: MO | QC10: DI | QD10: MI | QE10: DO | QF10: FR | QG10: SA | QH10: SO | QI10: =UPPER(QI11) -> MO | QJ10: DI | QK10: MI | QL10: DO | QM10: FR | QN10: SA | QO10: SO | QP10: MO | QQ10: DI | QR10: MI | QS10: DO | QT10: FR | QU10: SA | QV10: SO | QW10: MO | QX10: DI | QY10: MI | QZ10: DO | RA10: FR | RB10: SA | RC10: SO | RD10: MO | RE10: DI | RF10: MI | RG10: DO | RH10: FR | RI10: SA | RJ10: SO | RK10: MO | RL10: DI | RM10: MI | RN10: DO | RO10: FR | RP10: SA | RQ10: SO | RR10: MO | RS10: DI | RT10: MI | RU10: DO | RV10: FR | RW10: SA | RX10: SO | RY10: MO | RZ10: DI | SA10: MI | SB10: DO | SC10: FR | SD10: SA | SE10: SO | SF10: MO | SG10: DI | SH10: MI | SI10: DO | SJ10: FR | SK10: SA | SL10: SO | SM10: MO | SN10: DI | SO10: MI | SP10: DO | SQ10: FR | SR10: SA | SS10: SO | ST10: MO | SU10: =UPPER(SU11) -> DI | SV10: MI | SW10: DO | SX10: FR | SY10: SA | SZ10: SO | TA10: MO | TB10: DI | TC10: MI | TD10: DO | TE10: FR | TF10: SA | TG10: SO | TH10: MO | TI10: DI | TJ10: MI | TK10: DO | TL10: FR | TM10: SA | TN10: SO | TO10: MO | TP10: DI | TQ10: MI | TR10: DO | TS10: FR | TT10: SA | TU10: SO | TV10: MO | TW10: DI | TX10: MI | TY10: DO | TZ10: FR | UA10: SA | UB10: SO | UC10: MO | UD10: DI | UE10: MI | UF10: DO | UG10: FR | UH10: SA | UI10: SO | UJ10: MO | UK10: DI | UL10: MI | UM10: DO | UN10: FR | UO10: SA | UP10: SO | UQ10: MO | UR10: DI | US10: MI | UT10: DO | UU10: FR | UV10: SA | UW10: SO | UX10: MO | UY10: DI | UZ10: MI | VA10: DO | VB10: FR | VC10: SA | VD10: SO | VE10: MO | VF10: DI | VG10: =UPPER(VG11) -> MI | VH10: DO | VI10: FR | VJ10: SA | VK10: SO | VL10: MO | VM10: DI | VN10: MI | VO10: DO | VP10: FR | VQ10: SA | VR10: SO | VS10: MO | VT10: DI | VU10: MI | VV10: DO | VW10: FR | VX10: SA | VY10: SO | VZ10: MO | WA10: DI | WB10: MI | WC10: DO | WD10: FR | WE10: SA | WF10: SO | WG10: MO | WH10: DI | WI10: MI | WJ10: DO | WK10: FR | WL10: SA | WM10: SO | WN10: MO | WO10: DI | WP10: MI | WQ10: DO | WR10: FR | WS10: SA | WT10: SO | WU10: MO | WV10: DI | WW10: MI | WX10: DO | WY10: FR | WZ10: SA | XA10: SO | XB10: MO | XC10: DI | XD10: MI | XE10: DO | XF10: FR | XG10: SA | XH10: SO | XI10: MO | XJ10: DI | XK10: MI | XL10: DO | XM10: FR | XN10: SA | XO10: SO | XP10: MO | XQ10: DI | XR10: MI | XS10: =UPPER(XS11) -> DO | XT10: FR | XU10: SA | XV10: SO | XW10: MO | XX10: DI | XY10: MI | XZ10: DO | YA10: FR | YB10: SA | YC10: SO | YD10: MO | YE10: DI | YF10: MI | YG10: DO | YH10: FR | YI10: SA | YJ10: SO | YK10: MO | YL10: DI | YM10: MI | YN10: DO | YO10: FR | YP10: SA | YQ10: SO | YR10: MO | YS10: DI | YT10: MI | YU10: DO | YV10: FR | YW10: SA | YX10: SO | YY10: MO | YZ10: DI | ZA10: MI | ZB10: DO | ZC10: FR | ZD10: SA | ZE10: SO | ZF10: MO | ZG10: DI | ZH10: MI | ZI10: DO | ZJ10: FR | ZK10: SA | ZL10: SO | ZM10: MO | ZN10: DI | ZO10: MI | ZP10: DO | ZQ10: FR | ZR10: SA | ZS10: SO | ZT10: MO | ZU10: DI | ZV10: MI | ZW10: DO | ZX10: FR | ZY10: SA | ZZ10: SO | AAA10: MO | AAB10: DI | AAC10: MI | AAD10: DO | AAE10: =UPPER(AAE11) -> FR | AAF10: SA | AAG10: SO | AAH10: MO | AAI10: DI | AAJ10: MI | AAK10: DO | AAL10: FR | AAM10: SA | AAN10: SO | AAO10: MO | AAP10: DI | AAQ10: MI | AAR10: DO | AAS10: FR | AAT10: SA | AAU10: SO | AAV10: MO | AAW10: DI | AAX10: MI | AAY10: DO | AAZ10: FR | ABA10: SA | ABB10: SO | ABC10: MO | ABD10: DI | ABE10: MI | ABF10: DO | ABG10: FR | ABH10: SA | ABI10: SO | ABJ10: MO | ABK10: DI | ABL10: MI | ABM10: DO | ABN10: FR | ABO10: SA | ABP10: SO | ABQ10: MO | ABR10: DI | ABS10: MI | ABT10: DO | ABU10: FR | ABV10: SA | ABW10: SO | ABX10: MO | ABY10: DI | ABZ10: MI | ACA10: DO | ACB10: FR | ACC10: SA | ACD10: SO | ACE10: MO | ACF10: DI | ACG10: MI | ACH10: =UPPER(ACH11) -> DO | ACI10: FR | ACJ10: SA | ACK10: SO | ACL10: MO | ACM10: DI | ACN10: MI | ACO10: DO | ACP10: FR | ACQ10: =UPPER(ACQ11) -> SA | ACR10: SO | ACS10: MO | ACT10: DI | ACU10: MI | ACV10: DO | ACW10: FR | ACX10: SA | ACY10: SO | ACZ10: MO | ADA10: DI | ADB10: MI | ADC10: DO | ADD10: FR | ADE10: SA | ADF10: SO | ADG10: MO | ADH10: DI | ADI10: MI | ADJ10: DO | ADK10: FR | ADL10: SA | ADM10: =UPPER(ADM11) -> SO | ADN10: MO | ADO10: DI | ADP10: MI | ADQ10: DO | ADR10: FR | ADS10: SA | ADT10: SO | ADU10: MO | ADV10: DI | ADW10: MI | ADX10: DO | ADY10: FR | ADZ10: SA | AEA10: SO | AEB10: MO | AEC10: DI | AED10: MI | AEE10: DO | AEF10: FR | AEG10: SA | AEH10: SO | AEI10: MO | AEJ10: DI | AEK10: MI | AEL10: DO | AEM10: FR | AEN10: SA | AEO10: SO | AEP10: MO | AEQ10: DI | AER10: =UPPER(AER11) -> MI | AES10: DO | AET10: FR | AEU10: SA | AEV10: SO | AEW10: MO | AEX10: DI | AEY10: MI | AEZ10: DO | AFA10: FR | AFB10: SA | AFC10: =UPPER(AFC11) -> SO | AFD10: MO | AFE10: DI | AFF10: MI | AFG10: DO | AFH10: FR | AFI10: SA | AFJ10: SO | AFK10: MO | AFL10: DI | AFM10: MI | AFN10: DO | AFO10: FR | AFP10: SA | AFQ10: SO | AFR10: MO | AFS10: DI | AFT10: MI | AFU10: DO | AFV10: FR | AFW10: =UPPER(AFW11) -> SA | AFX10: SO | AFY10: MO | AFZ10: DI | AGA10: MI | AGB10: DO | AGC10: FR | AGD10: SA | AGE10: SO | AGF10: MO | AGG10: DI | AGH10: MI | AGI10: DO | AGJ10: FR | AGK10: SA | AGL10: SO | AGM10: MO | AGN10: DI | AGO10: MI | AGP10: DO | AGQ10: FR | AGR10: SA | AGS10: SO | AGT10: MO | AGU10: DI | AGV10: MI | AGW10: DO | AGX10: FR | AGY10: SA | AGZ10: SO | AHA10: MO | AHB10: DI | AHC10: MI | AHD10: DO | AHE10: FR | AHF10: SA | AHG10: SO | AHH10: MO | AHI10: DI | AHJ10: MI | AHK10: DO | AHL10: FR | AHM10: SA | AHN10: SO | AHO10: =UPPER(AHO11) -> MO | AHP10: DI | AHQ10: MI | AHR10: DO | AHS10: FR | AHT10: SA | AHU10: SO | AHV10: MO | AHW10: DI | AHX10: MI | AHY10: DO | AHZ10: FR | AIA10: SA | AIB10: SO | AIC10: MO | AID10: DI | AIE10: MI | AIF10: DO | AIG10: FR | AIH10: SA | AII10: SO | AIJ10: MO | AIK10: DI | AIL10: MI | AIM10: DO | AIN10: FR | AIO10: SA | AIP10: SO | AIQ10: MO | AIR10: DI | AIS10: MI | AIT10: DO | AIU10: FR | AIV10: SA | AIW10: SO | AIX10: MO | AIY10: DI | AIZ10: MI | AJA10: DO | AJB10: FR | AJC10: SA | AJD10: SO | AJE10: MO | AJF10: DI | AJG10: MI | AJH10: DO | AJI10: FR | AJJ10: SA | AJK10: SO | AJL10: MO | AJM10: DI | AJN10: MI | AJO10: DO | AJP10: FR | AJQ10: SA | AJR10: SO | AJS10: MO | AJT10: DI | AJU10: MI | AJV10: DO | AJW10: FR | AJX10: SA | AJY10: SO | AJZ10: MO | AKA10: =UPPER(AKA11) -> DI | AKB10: MI | AKC10: DO | AKD10: FR | AKE10: SA | AKF10: SO | AKG10: MO | AKH10: DI | AKI10: MI | AKJ10: DO | AKK10: FR | AKL10: SA | AKM10: SO | AKN10: MO | AKO10: DI | AKP10: MI | AKQ10: DO | AKR10: FR | AKS10: SA | AKT10: SO | AKU10: MO | AKV10: DI | AKW10: MI | AKX10: DO | AKY10: FR | AKZ10: SA | ALA10: SO | ALB10: MO | ALC10: DI | ALD10: MI | ALE10: DO | ALF10: FR | ALG10: SA | ALH10: SO | ALI10: MO | ALJ10: DI | ALK10: MI | ALL10: DO | ALM10: FR | ALN10: SA | ALO10: SO | ALP10: MO | ALQ10: DI | ALR10: MI | ALS10: DO | ALT10: FR | ALU10: SA | ALV10: SO | ALW10: MO | ALX10: DI | ALY10: MI | ALZ10: DO | AMA10: FR | AMB10: SA | AMC10: SO | AMD10: MO | AME10: DI | AMF10: MI | AMG10: DO | AMH10: FR | AMI10: SA | AMJ10: SO | AMK10: MO | AML10: DI | AMM10: =UPPER(AMM11) -> MI | AMN10: DO | AMO10: FR | AMP10: SA | AMQ10: SO | AMR10: MO | AMS10: DI | AMT10: MI | AMU10: DO | AMV10: FR | AMW10: SA | AMX10: SO | AMY10: MO | AMZ10: DI | ANA10: MI | ANB10: DO | ANC10: FR | AND10: SA | ANE10: SO | ANF10: MO | ANG10: DI | ANH10: MI | ANI10: DO | ANJ10: FR | ANK10: SA | ANL10: SO | ANM10: MO | ANN10: DI | ANO10: MI | ANP10: DO | ANQ10: FR | ANR10: SA | ANS10: SO | ANT10: MO | ANU10: DI | ANV10: MI | ANW10: DO | ANX10: FR | ANY10: SA | ANZ10: SO | AOA10: MO | AOB10: DI | AOC10: MI | AOD10: DO | AOE10: FR | AOF10: SA | AOG10: SO | AOH10: MO | AOI10: DI | AOJ10: MI | AOK10: DO | AOL10: FR | AOM10: SA | AON10: SO | AOO10: MO | AOP10: DI | AOQ10: MI | AOR10: DO | AOS10: FR | AOT10: SA | AOU10: SO | AOV10: MO | AOW10: DI | AOX10: MI | AOY10: =UPPER(AOY11) -> DO | AOZ10: FR | APA10: SA | APB10: SO | APC10: MO | APD10: DI | APE10: MI | APF10: DO | APG10: FR | APH10: SA | API10: SO | APJ10: MO | APK10: DI | APL10: MI | APM10: DO | APN10: FR | APO10: SA | APP10: SO | APQ10: MO | APR10: DI | APS10: MI | APT10: DO | APU10: FR | APV10: SA | APW10: SO | APX10: MO | APY10: DI | APZ10: MI | AQA10: DO | AQB10: FR | AQC10: SA | AQD10: SO | AQE10: MO | AQF10: DI | AQG10: MI | AQH10: DO | AQI10: FR | AQJ10: SA | AQK10: SO
C11: =TEXT(C12,"TTT") -> Mo | D11: Di | E11: Mi | F11: Do | G11: Fr | H11: Sa | I11: So | J11: Mo | K11: Di | L11: Mi | M11: Do | N11: Fr | O11: Sa | P11: So | Q11: Mo | R11: Di | S11: Mi | T11: Do | U11: Fr | V11: Sa | W11: So | X11: Mo | Y11: Di | Z11: Mi | AA11: Do | AB11: Fr | AC11: Sa | AD11: So | AE11: Mo | AF11: Di | AG11: Mi | AH11: Do | AI11: Fr | AJ11: Sa | AK11: So | AL11: Mo | AM11: Di | AN11: Mi | AO11: Do | AP11: Fr | AQ11: Sa | AR11: So | AS11: Mo | AT11: Di | AU11: Mi | AV11: Do | AW11: Fr | AX11: Sa | AY11: So | AZ11: Mo | BA11: Di | BB11: Mi | BC11: Do | BD11: Fr | BE11: Sa | BF11: So | BG11: Mo | BH11: Di | BI11: Mi | BJ11: Do | BK11: Fr | BL11: Sa | BM11: So | BN11: Mo | BO11: =TEXT(BO12,"TTT") -> Di | BP11: Mi | BQ11: Do | BR11: Fr | BS11: Sa | BT11: So | BU11: Mo | BV11: Di | BW11: Mi | BX11: Do | BY11: Fr | BZ11: Sa | CA11: So | CB11: Mo | CC11: Di | CD11: Mi | CE11: Do | CF11: Fr | CG11: Sa | CH11: So | CI11: Mo | CJ11: Di | CK11: Mi | CL11: Do | CM11: Fr | CN11: Sa | CO11: So | CP11: Mo | CQ11: Di | CR11: Mi | CS11: Do | CT11: Fr | CU11: Sa | CV11: So | CW11: Mo | CX11: Di | CY11: Mi | CZ11: Do | DA11: Fr | DB11: Sa | DC11: So | DD11: Mo | DE11: Di | DF11: Mi | DG11: Do | DH11: Fr | DI11: Sa | DJ11: So | DK11: Mo | DL11: Di | DM11: Mi | DN11: Do | DO11: Fr | DP11: Sa | DQ11: So | DR11: Mo | DS11: Di | DT11: Mi | DU11: Do | DV11: Fr | DW11: Sa | DX11: So | DY11: Mo | DZ11: Di | EA11: =TEXT(EA12,"TTT") -> Mi | EB11: Do | EC11: Fr | ED11: Sa | EE11: So | EF11: Mo | EG11: Di | EH11: Mi | EI11: Do | EJ11: Fr | EK11: Sa | EL11: So | EM11: Mo | EN11: Di | EO11: Mi | EP11: Do | EQ11: Fr | ER11: Sa | ES11: So | ET11: Mo | EU11: Di | EV11: Mi | EW11: Do | EX11: Fr | EY11: Sa | EZ11: So | FA11: Mo | FB11: Di | FC11: Mi | FD11: Do | FE11: Fr | FF11: Sa | FG11: So | FH11: Mo | FI11: Di | FJ11: Mi | FK11: Do | FL11: Fr | FM11: Sa | FN11: So | FO11: Mo | FP11: Di | FQ11: Mi | FR11: Do | FS11: Fr | FT11: Sa | FU11: So | FV11: Mo | FW11: Di | FX11: Mi | FY11: Do | FZ11: Fr | GA11: Sa | GB11: So | GC11: Mo | GD11: Di | GE11: Mi | GF11: Do | GG11: Fr | GH11: Sa | GI11: So | GJ11: Mo | GK11: Di | GL11: Mi | GM11: =TEXT(GM12,"TTT") -> Do | GN11: Fr | GO11: Sa | GP11: So | GQ11: Mo | GR11: Di | GS11: Mi | GT11: Do | GU11: Fr | GV11: Sa | GW11: So | GX11: Mo | GY11: Di | GZ11: Mi | HA11: Do | HB11: Fr | HC11: Sa | HD11: So | HE11: Mo | HF11: Di | HG11: Mi | HH11: Do | HI11: Fr | HJ11: Sa | HK11: So | HL11: Mo | HM11: Di | HN11: Mi | HO11: Do | HP11: Fr | HQ11: Sa | HR11: So | HS11: Mo | HT11: Di | HU11: Mi | HV11: Do | HW11: Fr | HX11: Sa | HY11: So | HZ11: Mo | IA11: Di | IB11: Mi | IC11: Do | ID11: Fr | IE11: Sa | IF11: So | IG11: Mo | IH11: Di | II11: Mi | IJ11: Do | IK11: Fr | IL11: Sa | IM11: So | IN11: Mo | IO11: Di | IP11: Mi | IQ11: Do | IR11: Fr | IS11: Sa | IT11: So | IU11: Mo | IV11: Di | IW11: Mi | IX11: Do | IY11: =TEXT(IY12,"TTT") -> Fr | IZ11: Sa | JA11: So | JB11: Mo | JC11: Di | JD11: Mi | JE11: Do | JF11: Fr | JG11: Sa | JH11: So | JI11: Mo | JJ11: Di | JK11: Mi | JL11: Do | JM11: Fr | JN11: Sa | JO11: So | JP11: Mo | JQ11: Di | JR11: Mi | JS11: Do | JT11: Fr | JU11: Sa | JV11: So | JW11: Mo | JX11: Di | JY11: Mi | JZ11: Do | KA11: Fr | KB11: Sa | KC11: So | KD11: Mo | KE11: Di | KF11: Mi | KG11: Do | KH11: Fr | KI11: Sa | KJ11: So | KK11: Mo | KL11: Di | KM11: Mi | KN11: Do | KO11: Fr | KP11: Sa | KQ11: So | KR11: Mo | KS11: Di | KT11: Mi | KU11: Do | KV11: Fr | KW11: Sa | KX11: So | KY11: Mo | KZ11: Di | LA11: Mi | LB11: Do | LC11: Fr | LD11: Sa | LE11: So | LF11: Mo | LG11: Di | LH11: Mi | LI11: Do | LJ11: Fr | LK11: =TEXT(LK12,"TTT") -> Sa | LL11: So | LM11: Mo | LN11: Di | LO11: Mi | LP11: Do | LQ11: Fr | LR11: Sa | LS11: So | LT11: Mo | LU11: Di | LV11: Mi | LW11: Do | LX11: Fr | LY11: Sa | LZ11: So | MA11: Mo | MB11: Di | MC11: Mi | MD11: Do | ME11: Fr | MF11: Sa | MG11: So | MH11: Mo | MI11: Di | MJ11: Mi | MK11: Do | ML11: Fr | MM11: Sa | MN11: So | MO11: Mo | MP11: Di | MQ11: Mi | MR11: Do | MS11: Fr | MT11: Sa | MU11: So | MV11: Mo | MW11: Di | MX11: Mi | MY11: Do | MZ11: Fr | NA11: Sa | NB11: So | NC11: Mo | ND11: Di | NE11: Mi | NF11: Do | NG11: Fr | NH11: Sa | NI11: So | NJ11: Mo | NK11: Di | NL11: Mi | NM11: Do | NN11: Fr | NO11: Sa | NP11: So | NQ11: Mo | NR11: Di | NS11: Mi | NT11: Do | NU11: Fr | NV11: Sa | NW11: =TEXT(NW12,"TTT") -> So | NX11: Mo | NY11: Di | NZ11: Mi | OA11: Do | OB11: Fr | OC11: Sa | OD11: So | OE11: Mo | OF11: Di | OG11: Mi | OH11: Do | OI11: Fr | OJ11: Sa | OK11: So | OL11: Mo | OM11: Di | ON11: Mi | OO11: Do | OP11: Fr | OQ11: Sa | OR11: So | OS11: Mo | OT11: Di | OU11: Mi | OV11: Do | OW11: Fr | OX11: Sa | OY11: So | OZ11: Mo | PA11: Di | PB11: Mi | PC11: Do | PD11: Fr | PE11: Sa | PF11: So | PG11: Mo | PH11: Di | PI11: Mi | PJ11: Do | PK11: Fr | PL11: Sa | PM11: So | PN11: Mo | PO11: Di | PP11: Mi | PQ11: Do | PR11: Fr | PS11: Sa | PT11: So | PU11: Mo | PV11: Di | PW11: Mi | PX11: Do | PY11: Fr | PZ11: Sa | QA11: So | QB11: Mo | QC11: Di | QD11: Mi | QE11: Do | QF11: Fr | QG11: Sa | QH11: So | QI11: =TEXT(QI12,"TTT") -> Mo | QJ11: Di | QK11: Mi | QL11: Do | QM11: Fr | QN11: Sa | QO11: So | QP11: Mo | QQ11: Di | QR11: Mi | QS11: Do | QT11: Fr | QU11: Sa | QV11: So | QW11: Mo | QX11: Di | QY11: Mi | QZ11: Do | RA11: Fr | RB11: Sa | RC11: So | RD11: Mo | RE11: Di | RF11: Mi | RG11: Do | RH11: Fr | RI11: Sa | RJ11: So | RK11: Mo | RL11: Di | RM11: Mi | RN11: Do | RO11: Fr | RP11: Sa | RQ11: So | RR11: Mo | RS11: Di | RT11: Mi | RU11: Do | RV11: Fr | RW11: Sa | RX11: So | RY11: Mo | RZ11: Di | SA11: Mi | SB11: Do | SC11: Fr | SD11: Sa | SE11: So | SF11: Mo | SG11: Di | SH11: Mi | SI11: Do | SJ11: Fr | SK11: Sa | SL11: So | SM11: Mo | SN11: Di | SO11: Mi | SP11: Do | SQ11: Fr | SR11: Sa | SS11: So | ST11: Mo | SU11: =TEXT(SU12,"TTT") -> Di | SV11: Mi | SW11: Do | SX11: Fr | SY11: Sa | SZ11: So | TA11: Mo | TB11: Di | TC11: Mi | TD11: Do | TE11: Fr | TF11: Sa | TG11: So | TH11: Mo | TI11: Di | TJ11: Mi | TK11: Do | TL11: Fr | TM11: Sa | TN11: So | TO11: Mo | TP11: Di | TQ11: Mi | TR11: Do | TS11: Fr | TT11: Sa | TU11: So | TV11: Mo | TW11: Di | TX11: Mi | TY11: Do | TZ11: Fr | UA11: Sa | UB11: So | UC11: Mo | UD11: Di | UE11: Mi | UF11: Do | UG11: Fr | UH11: Sa | UI11: So | UJ11: Mo | UK11: Di | UL11: Mi | UM11: Do | UN11: Fr | UO11: Sa | UP11: So | UQ11: Mo | UR11: Di | US11: Mi | UT11: Do | UU11: Fr | UV11: Sa | UW11: So | UX11: Mo | UY11: Di | UZ11: Mi | VA11: Do | VB11: Fr | VC11: Sa | VD11: So | VE11: Mo | VF11: Di | VG11: =TEXT(VG12,"TTT") -> Mi | VH11: Do | VI11: Fr | VJ11: Sa | VK11: So | VL11: Mo | VM11: Di | VN11: Mi | VO11: Do | VP11: Fr | VQ11: Sa | VR11: So | VS11: Mo | VT11: Di | VU11: Mi | VV11: Do | VW11: Fr | VX11: Sa | VY11: So | VZ11: Mo | WA11: Di | WB11: Mi | WC11: Do | WD11: Fr | WE11: Sa | WF11: So | WG11: Mo | WH11: Di | WI11: Mi | WJ11: Do | WK11: Fr | WL11: Sa | WM11: So | WN11: Mo | WO11: Di | WP11: Mi | WQ11: Do | WR11: Fr | WS11: Sa | WT11: So | WU11: Mo | WV11: Di | WW11: Mi | WX11: Do | WY11: Fr | WZ11: Sa | XA11: So | XB11: Mo | XC11: Di | XD11: Mi | XE11: Do | XF11: Fr | XG11: Sa | XH11: So | XI11: Mo | XJ11: Di | XK11: Mi | XL11: Do | XM11: Fr | XN11: Sa | XO11: So | XP11: Mo | XQ11: Di | XR11: Mi | XS11: =TEXT(XS12,"TTT") -> Do | XT11: Fr | XU11: Sa | XV11: So | XW11: Mo | XX11: Di | XY11: Mi | XZ11: Do | YA11: Fr | YB11: Sa | YC11: So | YD11: Mo | YE11: Di | YF11: Mi | YG11: Do | YH11: Fr | YI11: Sa | YJ11: So | YK11: Mo | YL11: Di | YM11: Mi | YN11: Do | YO11: Fr | YP11: Sa | YQ11: So | YR11: Mo | YS11: Di | YT11: Mi | YU11: Do | YV11: Fr | YW11: Sa | YX11: So | YY11: Mo | YZ11: Di | ZA11: Mi | ZB11: Do | ZC11: Fr | ZD11: Sa | ZE11: So | ZF11: Mo | ZG11: Di | ZH11: Mi | ZI11: Do | ZJ11: Fr | ZK11: Sa | ZL11: So | ZM11: Mo | ZN11: Di | ZO11: Mi | ZP11: Do | ZQ11: Fr | ZR11: Sa | ZS11: So | ZT11: Mo | ZU11: Di | ZV11: Mi | ZW11: Do | ZX11: Fr | ZY11: Sa | ZZ11: So | AAA11: Mo | AAB11: Di | AAC11: Mi | AAD11: Do | AAE11: =TEXT(AAE12,"TTT") -> Fr | AAF11: Sa | AAG11: So | AAH11: Mo | AAI11: Di | AAJ11: Mi | AAK11: Do | AAL11: Fr | AAM11: Sa | AAN11: So | AAO11: Mo | AAP11: Di | AAQ11: Mi | AAR11: Do | AAS11: Fr | AAT11: Sa | AAU11: So | AAV11: Mo | AAW11: Di | AAX11: Mi | AAY11: Do | AAZ11: Fr | ABA11: Sa | ABB11: So | ABC11: Mo | ABD11: Di | ABE11: Mi | ABF11: Do | ABG11: Fr | ABH11: Sa | ABI11: So | ABJ11: Mo | ABK11: Di | ABL11: Mi | ABM11: Do | ABN11: Fr | ABO11: Sa | ABP11: So | ABQ11: Mo | ABR11: Di | ABS11: Mi | ABT11: Do | ABU11: Fr | ABV11: Sa | ABW11: So | ABX11: Mo | ABY11: Di | ABZ11: Mi | ACA11: Do | ACB11: Fr | ACC11: Sa | ACD11: So | ACE11: Mo | ACF11: Di | ACG11: Mi | ACH11: Do | ACI11: Fr | ACJ11: Sa | ACK11: So | ACL11: Mo | ACM11: Di | ACN11: Mi | ACO11: Do | ACP11: Fr | ACQ11: =TEXT(ACQ12,"TTT") -> Sa | ACR11: So | ACS11: Mo | ACT11: Di | ACU11: Mi | ACV11: Do | ACW11: Fr | ACX11: Sa | ACY11: So | ACZ11: Mo | ADA11: Di | ADB11: Mi | ADC11: Do | ADD11: Fr | ADE11: Sa | ADF11: So | ADG11: Mo | ADH11: Di | ADI11: Mi | ADJ11: Do | ADK11: Fr | ADL11: Sa | ADM11: So | ADN11: Mo | ADO11: Di | ADP11: Mi | ADQ11: Do | ADR11: Fr | ADS11: Sa | ADT11: So | ADU11: Mo | ADV11: Di | ADW11: Mi | ADX11: Do | ADY11: Fr | ADZ11: Sa | AEA11: So | AEB11: Mo | AEC11: Di | AED11: Mi | AEE11: Do | AEF11: Fr | AEG11: Sa | AEH11: So | AEI11: Mo | AEJ11: Di | AEK11: Mi | AEL11: Do | AEM11: Fr | AEN11: Sa | AEO11: So | AEP11: Mo | AEQ11: Di | AER11: Mi | AES11: Do | AET11: Fr | AEU11: Sa | AEV11: So | AEW11: Mo | AEX11: Di | AEY11: Mi | AEZ11: Do | AFA11: Fr | AFB11: Sa | AFC11: =TEXT(AFC12,"TTT") -> So | AFD11: Mo | AFE11: Di | AFF11: Mi | AFG11: Do | AFH11: Fr | AFI11: Sa | AFJ11: So | AFK11: Mo | AFL11: Di | AFM11: Mi | AFN11: Do | AFO11: Fr | AFP11: Sa | AFQ11: So | AFR11: Mo | AFS11: Di | AFT11: Mi | AFU11: Do | AFV11: Fr | AFW11: Sa | AFX11: So | AFY11: Mo | AFZ11: Di | AGA11: Mi | AGB11: Do | AGC11: Fr | AGD11: Sa | AGE11: So | AGF11: Mo | AGG11: Di | AGH11: Mi | AGI11: Do | AGJ11: Fr | AGK11: Sa | AGL11: So | AGM11: Mo | AGN11: Di | AGO11: Mi | AGP11: Do | AGQ11: Fr | AGR11: Sa | AGS11: So | AGT11: Mo | AGU11: Di | AGV11: Mi | AGW11: Do | AGX11: Fr | AGY11: Sa | AGZ11: So | AHA11: Mo | AHB11: Di | AHC11: Mi | AHD11: Do | AHE11: Fr | AHF11: Sa | AHG11: So | AHH11: Mo | AHI11: Di | AHJ11: Mi | AHK11: Do | AHL11: Fr | AHM11: Sa | AHN11: So | AHO11: =TEXT(AHO12,"TTT") -> Mo | AHP11: Di | AHQ11: Mi | AHR11: Do | AHS11: Fr | AHT11: Sa | AHU11: So | AHV11: Mo | AHW11: Di | AHX11: Mi | AHY11: Do | AHZ11: Fr | AIA11: Sa | AIB11: So | AIC11: Mo | AID11: Di | AIE11: Mi | AIF11: Do | AIG11: Fr | AIH11: Sa | AII11: So | AIJ11: Mo | AIK11: Di | AIL11: Mi | AIM11: Do | AIN11: Fr | AIO11: Sa | AIP11: So | AIQ11: Mo | AIR11: Di | AIS11: Mi | AIT11: Do | AIU11: Fr | AIV11: Sa | AIW11: So | AIX11: Mo | AIY11: Di | AIZ11: Mi | AJA11: Do | AJB11: Fr | AJC11: Sa | AJD11: So | AJE11: Mo | AJF11: Di | AJG11: Mi | AJH11: Do | AJI11: Fr | AJJ11: Sa | AJK11: So | AJL11: Mo | AJM11: Di | AJN11: Mi | AJO11: Do | AJP11: Fr | AJQ11: Sa | AJR11: So | AJS11: Mo | AJT11: Di | AJU11: Mi | AJV11: Do | AJW11: Fr | AJX11: Sa | AJY11: So | AJZ11: Mo | AKA11: =TEXT(AKA12,"TTT") -> Di | AKB11: Mi | AKC11: Do | AKD11: Fr | AKE11: Sa | AKF11: So | AKG11: Mo | AKH11: Di | AKI11: Mi | AKJ11: Do | AKK11: Fr | AKL11: Sa | AKM11: So | AKN11: Mo | AKO11: Di | AKP11: Mi | AKQ11: Do | AKR11: Fr | AKS11: Sa | AKT11: So | AKU11: Mo | AKV11: Di | AKW11: Mi | AKX11: Do | AKY11: Fr | AKZ11: Sa | ALA11: So | ALB11: Mo | ALC11: Di | ALD11: Mi | ALE11: Do | ALF11: Fr | ALG11: Sa | ALH11: So | ALI11: Mo | ALJ11: Di | ALK11: Mi | ALL11: Do | ALM11: Fr | ALN11: Sa | ALO11: So | ALP11: Mo | ALQ11: Di | ALR11: Mi | ALS11: Do | ALT11: Fr | ALU11: Sa | ALV11: So | ALW11: Mo | ALX11: Di | ALY11: Mi | ALZ11: Do | AMA11: Fr | AMB11: Sa | AMC11: So | AMD11: Mo | AME11: Di | AMF11: Mi | AMG11: Do | AMH11: Fr | AMI11: Sa | AMJ11: So | AMK11: Mo | AML11: Di | AMM11: =TEXT(AMM12,"TTT") -> Mi | AMN11: Do | AMO11: Fr | AMP11: Sa | AMQ11: So | AMR11: Mo | AMS11: Di | AMT11: Mi | AMU11: Do | AMV11: Fr | AMW11: Sa | AMX11: So | AMY11: Mo | AMZ11: Di | ANA11: Mi | ANB11: Do | ANC11: Fr | AND11: Sa | ANE11: So | ANF11: Mo | ANG11: Di | ANH11: Mi | ANI11: Do | ANJ11: Fr | ANK11: Sa | ANL11: So | ANM11: Mo | ANN11: Di | ANO11: Mi | ANP11: Do | ANQ11: Fr | ANR11: Sa | ANS11: So | ANT11: Mo | ANU11: Di | ANV11: Mi | ANW11: Do | ANX11: Fr | ANY11: Sa | ANZ11: So | AOA11: Mo | AOB11: Di | AOC11: Mi | AOD11: Do | AOE11: Fr | AOF11: Sa | AOG11: So | AOH11: Mo | AOI11: Di | AOJ11: Mi | AOK11: Do | AOL11: Fr | AOM11: Sa | AON11: So | AOO11: Mo | AOP11: Di | AOQ11: Mi | AOR11: Do | AOS11: Fr | AOT11: Sa | AOU11: So | AOV11: Mo | AOW11: Di | AOX11: Mi | AOY11: =TEXT(AOY12,"TTT") -> Do | AOZ11: Fr | APA11: Sa | APB11: So | APC11: Mo | APD11: Di | APE11: Mi | APF11: Do | APG11: Fr | APH11: Sa | API11: So | APJ11: Mo | APK11: Di | APL11: Mi | APM11: Do | APN11: Fr | APO11: Sa | APP11: So | APQ11: Mo | APR11: Di | APS11: Mi | APT11: Do | APU11: Fr | APV11: Sa | APW11: So | APX11: Mo | APY11: Di | APZ11: Mi | AQA11: Do | AQB11: Fr | AQC11: Sa | AQD11: So | AQE11: Mo | AQF11: Di | AQG11: Mi | AQH11: Do | AQI11: Fr | AQJ11: Sa | AQK11: So
C12: 2024-01-01 | D12: 2024-01-02 | E12: 2024-01-03 | F12: 2024-01-04 | G12: 2024-01-05 | H12: 2024-01-06 | I12: 2024-01-07 | J12: 2024-01-08 | K12: 2024-01-09 | L12: 2024-01-10 | M12: 2024-01-11 | N12: 2024-01-12 | O12: 2024-01-13 | P12: 2024-01-14 | Q12: 2024-01-15 | R12: 2024-01-16 | S12: 2024-01-17 | T12: 2024-01-18 | U12: 2024-01-19 | V12: 2024-01-20 | W12: 2024-01-21 | X12: 2024-01-22 | Y12: 2024-01-23 | Z12: 2024-01-24 | AA12: 2024-01-25 | AB12: 2024-01-26 | AC12: 2024-01-27 | AD12: 2024-01-28 | AE12: 2024-01-29 | AF12: 2024-01-30 | AG12: 2024-01-31 | AH12: 2024-02-01 | AI12: 2024-02-02 | AJ12: 2024-02-03 | AK12: 2024-02-04 | AL12: 2024-02-05 | AM12: 2024-02-06 | AN12: 2024-02-07 | AO12: 2024-02-08 | AP12: 2024-02-09 | AQ12: 2024-02-10 | AR12: 2024-02-11 | AS12: 2024-02-12 | AT12: 2024-02-13 | AU12: 2024-02-14 | AV12: 2024-02-15 | AW12: 2024-02-16 | AX12: 2024-02-17 | AY12: 2024-02-18 | AZ12: 2024-02-19 | BA12: 2024-02-20 | BB12: 2024-02-21 | BC12: 2024-02-22 | BD12: 2024-02-23 | BE12: 2024-02-24 | BF12: 2024-02-25 | BG12: 2024-02-26 | BH12: 2024-02-27 | BI12: 2024-02-28 | BJ12: 2024-02-29 | BK12: 2024-03-01 | BL12: 2024-03-02 | BM12: 2024-03-03 | BN12: 2024-03-04 | BO12: 2024-03-05 | BP12: 2024-03-06 | BQ12: 2024-03-07 | BR12: 2024-03-08 | BS12: 2024-03-09 | BT12: 2024-03-10 | BU12: 2024-03-11 | BV12: 2024-03-12 | BW12: 2024-03-13 | BX12: 2024-03-14 | BY12: 2024-03-15 | BZ12: 2024-03-16 | CA12: 2024-03-17 | CB12: 2024-03-18 | CC12: 2024-03-19 | CD12: 2024-03-20 | CE12: 2024-03-21 | CF12: 2024-03-22 | CG12: 2024-03-23 | CH12: 2024-03-24 | CI12: 2024-03-25 | CJ12: 2024-03-26 | CK12: 2024-03-27 | CL12: 2024-03-28 | CM12: 2024-03-29 | CN12: 2024-03-30 | CO12: 2024-03-31 | CP12: 2024-04-01 | CQ12: 2024-04-02 | CR12: 2024-04-03 | CS12: 2024-04-04 | CT12: 2024-04-05 | CU12: 2024-04-06 | CV12: 2024-04-07 | CW12: 2024-04-08 | CX12: 2024-04-09 | CY12: 2024-04-10 | CZ12: 2024-04-11 | DA12: 2024-04-12 | DB12: 2024-04-13 | DC12: 2024-04-14 | DD12: 2024-04-15 | DE12: 2024-04-16 | DF12: 2024-04-17 | DG12: 2024-04-18 | DH12: 2024-04-19 | DI12: 2024-04-20 | DJ12: 2024-04-21 | DK12: 2024-04-22 | DL12: 2024-04-23 | DM12: 2024-04-24 | DN12: 2024-04-25 | DO12: 2024-04-26 | DP12: 2024-04-27 | DQ12: 2024-04-28 | DR12: 2024-04-29 | DS12: 2024-04-30 | DT12: 2024-05-01 | DU12: 2024-05-02 | DV12: 2024-05-03 | DW12: 2024-05-04 | DX12: 2024-05-05 | DY12: 2024-05-06 | DZ12: 2024-05-07 | EA12: 2024-05-08 | EB12: 2024-05-09 | EC12: 2024-05-10 | ED12: 2024-05-11 | EE12: 2024-05-12 | EF12: 2024-05-13 | EG12: 2024-05-14 | EH12: 2024-05-15 | EI12: 2024-05-16 | EJ12: 2024-05-17 | EK12: 2024-05-18 | EL12: 2024-05-19 | EM12: 2024-05-20 | EN12: 2024-05-21 | EO12: 2024-05-22 | EP12: 2024-05-23 | EQ12: 2024-05-24 | ER12: 2024-05-25 | ES12: 2024-05-26 | ET12: 2024-05-27 | EU12: 2024-05-28 | EV12: 2024-05-29 | EW12: 2024-05-30 | EX12: 2024-05-31 | EY12: 2024-06-01 | EZ12: 2024-06-02 | FA12: 2024-06-03 | FB12: 2024-06-04 | FC12: 2024-06-05 | FD12: 2024-06-06 | FE12: 2024-06-07 | FF12: 2024-06-08 | FG12: 2024-06-09 | FH12: 2024-06-10 | FI12: 2024-06-11 | FJ12: 2024-06-12 | FK12: 2024-06-13 | FL12: 2024-06-14 | FM12: 2024-06-15 | FN12: 2024-06-16 | FO12: 2024-06-17 | FP12: 2024-06-18 | FQ12: 2024-06-19 | FR12: 2024-06-20 | FS12: 2024-06-21 | FT12: 2024-06-22 | FU12: 2024-06-23 | FV12: 2024-06-24 | FW12: 2024-06-25 | FX12: 2024-06-26 | FY12: 2024-06-27 | FZ12: 2024-06-28 | GA12: 2024-06-29 | GB12: 2024-06-30 | GC12: 2024-07-01 | GD12: 2024-07-02 | GE12: 2024-07-03 | GF12: 2024-07-04 | GG12: 2024-07-05 | GH12: 2024-07-06 | GI12: 2024-07-07 | GJ12: 2024-07-08 | GK12: 2024-07-09 | GL12: 2024-07-10 | GM12: 2024-07-11 | GN12: 2024-07-12 | GO12: 2024-07-13 | GP12: 2024-07-14 | GQ12: 2024-07-15 | GR12: 2024-07-16 | GS12: 2024-07-17 | GT12: 2024-07-18 | GU12: 2024-07-19 | GV12: 2024-07-20 | GW12: 2024-07-21 | GX12: 2024-07-22 | GY12: 2024-07-23 | GZ12: 2024-07-24 | HA12: 2024-07-25 | HB12: 2024-07-26 | HC12: 2024-07-27 | HD12: 2024-07-28 | HE12: 2024-07-29 | HF12: 2024-07-30 | HG12: 2024-07-31 | HH12: 2024-08-01 | HI12: 2024-08-02 | HJ12: 2024-08-03 | HK12: 2024-08-04 | HL12: 2024-08-05 | HM12: 2024-08-06 | HN12: 2024-08-07 | HO12: 2024-08-08 | HP12: 2024-08-09 | HQ12: 2024-08-10 | HR12: 2024-08-11 | HS12: 2024-08-12 | HT12: 2024-08-13 | HU12: 2024-08-14 | HV12: 2024-08-15 | HW12: 2024-08-16 | HX12: 2024-08-17 | HY12: 2024-08-18 | HZ12: 2024-08-19 | IA12: 2024-08-20 | IB12: 2024-08-21 | IC12: 2024-08-22 | ID12: 2024-08-23 | IE12: 2024-08-24 | IF12: 2024-08-25 | IG12: 2024-08-26 | IH12: 2024-08-27 | II12: 2024-08-28 | IJ12: 2024-08-29 | IK12: 2024-08-30 | IL12: 2024-08-31 | IM12: 2024-09-01 | IN12: 2024-09-02 | IO12: 2024-09-03 | IP12: 2024-09-04 | IQ12: 2024-09-05 | IR12: 2024-09-06 | IS12: 2024-09-07 | IT12: 2024-09-08 | IU12: 2024-09-09 | IV12: 2024-09-10 | IW12: 2024-09-11 | IX12: 2024-09-12 | IY12: 2024-09-13 | IZ12: 2024-09-14 | JA12: 2024-09-15 | JB12: 2024-09-16 | JC12: 2024-09-17 | JD12: 2024-09-18 | JE12: 2024-09-19 | JF12: 2024-09-20 | JG12: 2024-09-21 | JH12: 2024-09-22 | JI12: 2024-09-23 | JJ12: 2024-09-24 | JK12: 2024-09-25 | JL12: 2024-09-26 | JM12: 2024-09-27 | JN12: 2024-09-28 | JO12: 2024-09-29 | JP12: 2024-09-30 | JQ12: 2024-10-01 | JR12: 2024-10-02 | JS12: 2024-10-03 | JT12: 2024-10-04 | JU12: 2024-10-05 | JV12: 2024-10-06 | JW12: 2024-10-07 | JX12: 2024-10-08 | JY12: 2024-10-09 | JZ12: 2024-10-10 | KA12: 2024-10-11 | KB12: 2024-10-12 | KC12: 2024-10-13 | KD12: 2024-10-14 | KE12: 2024-10-15 | KF12: 2024-10-16 | KG12: 2024-10-17 | KH12: 2024-10-18 | KI12: 2024-10-19 | KJ12: 2024-10-20 | KK12: 2024-10-21 | KL12: 2024-10-22 | KM12: 2024-10-23 | KN12: 2024-10-24 | KO12: 2024-10-25 | KP12: 2024-10-26 | KQ12: 2024-10-27 | KR12: 2024-10-28 | KS12: 2024-10-29 | KT12: 2024-10-30 | KU12: 2024-10-31 | KV12: 2024-11-01 | KW12: 2024-11-02 | KX12: 2024-11-03 | KY12: 2024-11-04 | KZ12: 2024-11-05 | LA12: 2024-11-06 | LB12: 2024-11-07 | LC12: 2024-11-08 | LD12: 2024-11-09 | LE12: 2024-11-10 | LF12: 2024-11-11 | LG12: 2024-11-12 | LH12: 2024-11-13 | LI12: 2024-11-14 | LJ12: 2024-11-15 | LK12: 2024-11-16 | LL12: 2024-11-17 | LM12: 2024-11-18 | LN12: 2024-11-19 | LO12: 2024-11-20 | LP12: 2024-11-21 | LQ12: 2024-11-22 | LR12: 2024-11-23 | LS12: 2024-11-24 | LT12: 2024-11-25 | LU12: 2024-11-26 | LV12: 2024-11-27 | LW12: 2024-11-28 | LX12: 2024-11-29 | LY12: 2024-11-30 | LZ12: 2024-12-01 | MA12: 2024-12-02 | MB12: 2024-12-03 | MC12: 2024-12-04 | MD12: 2024-12-05 | ME12: 2024-12-06 | MF12: 2024-12-07 | MG12: 2024-12-08 | MH12: 2024-12-09 | MI12: 2024-12-10 | MJ12: 2024-12-11 | MK12: 2024-12-12 | ML12: 2024-12-13 | MM12: 2024-12-14 | MN12: 2024-12-15 | MO12: 2024-12-16 | MP12: 2024-12-17 | MQ12: 2024-12-18 | MR12: 2024-12-19 | MS12: 2024-12-20 | MT12: 2024-12-21 | MU12: 2024-12-22 | MV12: 2024-12-23 | MW12: 2024-12-24 | MX12: 2024-12-25 | MY12: 2024-12-26 | MZ12: 2024-12-27 | NA12: 2024-12-28 | NB12: 2024-12-29 | NC12: 2024-12-30 | ND12: 2024-12-31 | NE12: 2025-01-01 | NF12: 2025-01-02 | NG12: 2025-01-03 | NH12: 2025-01-04 | NI12: 2025-01-05 | NJ12: 2025-01-06 | NK12: 2025-01-07 | NL12: 2025-01-08 | NM12: 2025-01-09 | NN12: 2025-01-10 | NO12: 2025-01-11 | NP12: 2025-01-12 | NQ12: 2025-01-13 | NR12: 2025-01-14 | NS12: 2025-01-15 | NT12: 2025-01-16 | NU12: 2025-01-17 | NV12: 2025-01-18 | NW12: 2025-01-19 | NX12: 2025-01-20 | NY12: 2025-01-21 | NZ12: 2025-01-22 | OA12: 2025-01-23 | OB12: 2025-01-24 | OC12: 2025-01-25 | OD12: 2025-01-26 | OE12: 2025-01-27 | OF12: 2025-01-28 | OG12: 2025-01-29 | OH12: 2025-01-30 | OI12: 2025-01-31 | OJ12: 2025-02-01 | OK12: 2025-02-02 | OL12: 2025-02-03 | OM12: 2025-02-04 | ON12: 2025-02-05 | OO12: 2025-02-06 | OP12: 2025-02-07 | OQ12: 2025-02-08 | OR12: 2025-02-09 | OS12: 2025-02-10 | OT12: 2025-02-11 | OU12: 2025-02-12 | OV12: 2025-02-13 | OW12: 2025-02-14 | OX12: 2025-02-15 | OY12: 2025-02-16 | OZ12: 2025-02-17 | PA12: 2025-02-18 | PB12: 2025-02-19 | PC12: 2025-02-20 | PD12: 2025-02-21 | PE12: 2025-02-22 | PF12: 2025-02-23 | PG12: 2025-02-24 | PH12: 2025-02-25 | PI12: 2025-02-26 | PJ12: 2025-02-27 | PK12: 2025-02-28 | PL12: 2025-03-01 | PM12: 2025-03-02 | PN12: 2025-03-03 | PO12: 2025-03-04 | PP12: 2025-03-05 | PQ12: 2025-03-06 | PR12: 2025-03-07 | PS12: 2025-03-08 | PT12: 2025-03-09 | PU12: 2025-03-10 | PV12: 2025-03-11 | PW12: 2025-03-12 | PX12: 2025-03-13 | PY12: 2025-03-14 | PZ12: 2025-03-15 | QA12: 2025-03-16 | QB12: 2025-03-17 | QC12: 2025-03-18 | QD12: 2025-03-19 | QE12: 2025-03-20 | QF12: 2025-03-21 | QG12: 2025-03-22 | QH12: 2025-03-23 | QI12: 2025-03-24 | QJ12: 2025-03-25 | QK12: 2025-03-26 | QL12: 2025-03-27 | QM12: 2025-03-28 | QN12: 2025-03-29 | QO12: 2025-03-30 | QP12: 2025-03-31 | QQ12: 2025-04-01 | QR12: 2025-04-02 | QS12: 2025-04-03 | QT12: 2025-04-04 | QU12: 2025-04-05 | QV12: 2025-04-06 | QW12: 2025-04-07 | QX12: 2025-04-08 | QY12: 2025-04-09 | QZ12: 2025-04-10 | RA12: 2025-04-11 | RB12: 2025-04-12 | RC12: 2025-04-13 | RD12: 2025-04-14 | RE12: 2025-04-15 | RF12: 2025-04-16 | RG12: 2025-04-17 | RH12: 2025-04-18 | RI12: 2025-04-19 | RJ12: 2025-04-20 | RK12: 2025-04-21 | RL12: 2025-04-22 | RM12: 2025-04-23 | RN12: 2025-04-24 | RO12: 2025-04-25 | RP12: 2025-04-26 | RQ12: 2025-04-27 | RR12: 2025-04-28 | RS12: 2025-04-29 | RT12: 2025-04-30 | RU12: 2025-05-01 | RV12: 2025-05-02 | RW12: 2025-05-03 | RX12: 2025-05-04 | RY12: 2025-05-05 | RZ12: 2025-05-06 | SA12: 2025-05-07 | SB12: 2025-05-08 | SC12: 2025-05-09 | SD12: 2025-05-10 | SE12: 2025-05-11 | SF12: 2025-05-12 | SG12: 2025-05-13 | SH12: 2025-05-14 | SI12: 2025-05-15 | SJ12: 2025-05-16 | SK12: 2025-05-17 | SL12: 2025-05-18 | SM12: 2025-05-19 | SN12: 2025-05-20 | SO12: 2025-05-21 | SP12: 2025-05-22 | SQ12: 2025-05-23 | SR12: 2025-05-24 | SS12: 2025-05-25 | ST12: 2025-05-26 | SU12: 2025-05-27 | SV12: 2025-05-28 | SW12: 2025-05-29 | SX12: 2025-05-30 | SY12: 2025-05-31 | SZ12: 2025-06-01 | TA12: 2025-06-02 | TB12: 2025-06-03 | TC12: 2025-06-04 | TD12: 2025-06-05 | TE12: 2025-06-06 | TF12: 2025-06-07 | TG12: 2025-06-08 | TH12: 2025-06-09 | TI12: 2025-06-10 | TJ12: 2025-06-11 | TK12: 2025-06-12 | TL12: 2025-06-13 | TM12: 2025-06-14 | TN12: 2025-06-15 | TO12: 2025-06-16 | TP12: 2025-06-17 | TQ12: 2025-06-18 | TR12: 2025-06-19 | TS12: 2025-06-20 | TT12: 2025-06-21 | TU12: 2025-06-22 | TV12: 2025-06-23 | TW12: 2025-06-24 | TX12: 2025-06-25 | TY12: 2025-06-26 | TZ12: 2025-06-27 | UA12: 2025-06-28 | UB12: 2025-06-29 | UC12: 2025-06-30 | UD12: 2025-07-01 | UE12: 2025-07-02 | UF12: 2025-07-03 | UG12: 2025-07-04 | UH12: 2025-07-05 | UI12: 2025-07-06 | UJ12: 2025-07-07 | UK12: 2025-07-08 | UL12: 2025-07-09 | UM12: 2025-07-10 | UN12: 2025-07-11 | UO12: 2025-07-12 | UP12: 2025-07-13 | UQ12: 2025-07-14 | UR12: 2025-07-15 | US12: 2025-07-16 | UT12: 2025-07-17 | UU12: 2025-07-18 | UV12: 2025-07-19 | UW12: 2025-07-20 | UX12: 2025-07-21 | UY12: 2025-07-22 | UZ12: 2025-07-23 | VA12: 2025-07-24 | VB12: 2025-07-25 | VC12: 2025-07-26 | VD12: 2025-07-27 | VE12: 2025-07-28 | VF12: 2025-07-29 | VG12: 2025-07-30 | VH12: 2025-07-31 | VI12: 2025-08-01 | VJ12: 2025-08-02 | VK12: 2025-08-03 | VL12: 2025-08-04 | VM12: 2025-08-05 | VN12: 2025-08-06 | VO12: 2025-08-07 | VP12: 2025-08-08 | VQ12: 2025-08-09 | VR12: 2025-08-10 | VS12: 2025-08-11 | VT12: 2025-08-12 | VU12: 2025-08-13 | VV12: 2025-08-14 | VW12: 2025-08-15 | VX12: 2025-08-16 | VY12: 2025-08-17 | VZ12: 2025-08-18 | WA12: 2025-08-19 | WB12: 2025-08-20 | WC12: 2025-08-21 | WD12: 2025-08-22 | WE12: 2025-08-23 | WF12: 2025-08-24 | WG12: 2025-08-25 | WH12: 2025-08-26 | WI12: 2025-08-27 | WJ12: 2025-08-28 | WK12: 2025-08-29 | WL12: 2025-08-30 | WM12: 2025-08-31 | WN12: 2025-09-01 | WO12: 2025-09-02 | WP12: 2025-09-03 | WQ12: 2025-09-04 | WR12: 2025-09-05 | WS12: 2025-09-06 | WT12: 2025-09-07 | WU12: 2025-09-08 | WV12: 2025-09-09 | WW12: 2025-09-10 | WX12: 2025-09-11 | WY12: 2025-09-12 | WZ12: 2025-09-13 | XA12: 2025-09-14 | XB12: 2025-09-15 | XC12: 2025-09-16 | XD12: 2025-09-17 | XE12: 2025-09-18 | XF12: 2025-09-19 | XG12: 2025-09-20 | XH12: 2025-09-21 | XI12: 2025-09-22 | XJ12: 2025-09-23 | XK12: 2025-09-24 | XL12: 2025-09-25 | XM12: 2025-09-26 | XN12: 2025-09-27 | XO12: 2025-09-28 | XP12: 2025-09-29 | XQ12: 2025-09-30 | XR12: 2025-10-01 | XS12: 2025-10-02 | XT12: 2025-10-03 | XU12: 2025-10-04 | XV12: 2025-10-05 | XW12: 2025-10-06 | XX12: 2025-10-07 | XY12: 2025-10-08 | XZ12: 2025-10-09 | YA12: 2025-10-10 | YB12: 2025-10-11 | YC12: 2025-10-12 | YD12: 2025-10-13 | YE12: 2025-10-14 | YF12: 2025-10-15 | YG12: 2025-10-16 | YH12: 2025-10-17 | YI12: 2025-10-18 | YJ12: 2025-10-19 | YK12: 2025-10-20 | YL12: 2025-10-21 | YM12: 2025-10-22 | YN12: 2025-10-23 | YO12: 2025-10-24 | YP12: 2025-10-25 | YQ12: 2025-10-26 | YR12: 2025-10-27 | YS12: 2025-10-28 | YT12: 2025-10-29 | YU12: 2025-10-30 | YV12: 2025-10-31 | YW12: 2025-11-01 | YX12: 2025-11-02 | YY12: 2025-11-03 | YZ12: 2025-11-04 | ZA12: 2025-11-05 | ZB12: 2025-11-06 | ZC12: 2025-11-07 | ZD12: 2025-11-08 | ZE12: 2025-11-09 | ZF12: 2025-11-10 | ZG12: 2025-11-11 | ZH12: 2025-11-12 | ZI12: 2025-11-13 | ZJ12: 2025-11-14 | ZK12: 2025-11-15 | ZL12: 2025-11-16 | ZM12: 2025-11-17 | ZN12: 2025-11-18 | ZO12: 2025-11-19 | ZP12: 2025-11-20 | ZQ12: 2025-11-21 | ZR12: 2025-11-22 | ZS12: 2025-11-23 | ZT12: 2025-11-24 | ZU12: 2025-11-25 | ZV12: 2025-11-26 | ZW12: 2025-11-27 | ZX12: 2025-11-28 | ZY12: 2025-11-29 | ZZ12: 2025-11-30 | AAA12: 2025-12-01 | AAB12: 2025-12-02 | AAC12: 2025-12-03 | AAD12: 2025-12-04 | AAE12: 2025-12-05 | AAF12: 2025-12-06 | AAG12: 2025-12-07 | AAH12: 2025-12-08 | AAI12: 2025-12-09 | AAJ12: 2025-12-10 | AAK12: 2025-12-11 | AAL12: 2025-12-12 | AAM12: 2025-12-13 | AAN12: 2025-12-14 | AAO12: 2025-12-15 | AAP12: 2025-12-16 | AAQ12: 2025-12-17 | AAR12: 2025-12-18 | AAS12: 2025-12-19 | AAT12: 2025-12-20 | AAU12: 2025-12-21 | AAV12: 2025-12-22 | AAW12: 2025-12-23 | AAX12: 2025-12-24 | AAY12: 2025-12-25 | AAZ12: 2025-12-26 | ABA12: 2025-12-27 | ABB12: 2025-12-28 | ABC12: 2025-12-29 | ABD12: 2025-12-30 | ABE12: 2025-12-31 | ABF12: 2026-01-01 | ABG12: 2026-01-02 | ABH12: 2026-01-03 | ABI12: 2026-01-04 | ABJ12: 2026-01-05 | ABK12: 2026-01-06 | ABL12: 2026-01-07 | ABM12: 2026-01-08 | ABN12: 2026-01-09 | ABO12: 2026-01-10 | ABP12: 2026-01-11 | ABQ12: 2026-01-12 | ABR12: 2026-01-13 | ABS12: 2026-01-14 | ABT12: 2026-01-15 | ABU12: 2026-01-16 | ABV12: 2026-01-17 | ABW12: 2026-01-18 | ABX12: 2026-01-19 | ABY12: 2026-01-20 | ABZ12: 2026-01-21 | ACA12: 2026-01-22 | ACB12: 2026-01-23 | ACC12: 2026-01-24 | ACD12: 2026-01-25 | ACE12: 2026-01-26 | ACF12: 2026-01-27 | ACG12: 2026-01-28 | ACH12: 2026-01-29 | ACI12: 2026-01-30 | ACJ12: 2026-01-31 | ACK12: 2026-02-01 | ACL12: 2026-02-02 | ACM12: 2026-02-03 | ACN12: 2026-02-04 | ACO12: 2026-02-05 | ACP12: 2026-02-06 | ACQ12: 2026-02-07 | ACR12: 2026-02-08 | ACS12: 2026-02-09 | ACT12: 2026-02-10 | ACU12: 2026-02-11 | ACV12: 2026-02-12 | ACW12: 2026-02-13 | ACX12: 2026-02-14 | ACY12: 2026-02-15 | ACZ12: 2026-02-16 | ADA12: 2026-02-17 | ADB12: 2026-02-18 | ADC12: 2026-02-19 | ADD12: 2026-02-20 | ADE12: 2026-02-21 | ADF12: 2026-02-22 | ADG12: 2026-02-23 | ADH12: 2026-02-24 | ADI12: 2026-02-25 | ADJ12: 2026-02-26 | ADK12: 2026-02-27 | ADL12: 2026-02-28 | ADM12: 2026-03-01 | ADN12: 2026-03-02 | ADO12: 2026-03-03 | ADP12: 2026-03-04 | ADQ12: 2026-03-05 | ADR12: 2026-03-06 | ADS12: 2026-03-07 | ADT12: 2026-03-08 | ADU12: 2026-03-09 | ADV12: 2026-03-10 | ADW12: 2026-03-11 | ADX12: 2026-03-12 | ADY12: 2026-03-13 | ADZ12: 2026-03-14 | AEA12: 2026-03-15 | AEB12: 2026-03-16 | AEC12: 2026-03-17 | AED12: 2026-03-18 | AEE12: 2026-03-19 | AEF12: 2026-03-20 | AEG12: 2026-03-21 | AEH12: 2026-03-22 | AEI12: 2026-03-23 | AEJ12: 2026-03-24 | AEK12: 2026-03-25 | AEL12: 2026-03-26 | AEM12: 2026-03-27 | AEN12: 2026-03-28 | AEO12: 2026-03-29 | AEP12: 2026-03-30 | AEQ12: 2026-03-31 | AER12: 2026-04-01 | AES12: 2026-04-02 | AET12: 2026-04-03 | AEU12: 2026-04-04 | AEV12: 2026-04-05 | AEW12: 2026-04-06 | AEX12: 2026-04-07 | AEY12: 2026-04-08 | AEZ12: 2026-04-09 | AFA12: 2026-04-10 | AFB12: 2026-04-11 | AFC12: 2026-04-12 | AFD12: 2026-04-13 | AFE12: 2026-04-14 | AFF12: 2026-04-15 | AFG12: 2026-04-16 | AFH12: 2026-04-17 | AFI12: 2026-04-18 | AFJ12: 2026-04-19 | AFK12: 2026-04-20 | AFL12: 2026-04-21 | AFM12: 2026-04-22 | AFN12: 2026-04-23 | AFO12: 2026-04-24 | AFP12: 2026-04-25 | AFQ12: 2026-04-26 | AFR12: 2026-04-27 | AFS12: 2026-04-28 | AFT12: 2026-04-29 | AFU12: 2026-04-30 | AFV12: 2026-05-01 | AFW12: 2026-05-02 | AFX12: 2026-05-03 | AFY12: 2026-05-04 | AFZ12: 2026-05-05 | AGA12: 2026-05-06 | AGB12: 2026-05-07 | AGC12: 2026-05-08 | AGD12: 2026-05-09 | AGE12: 2026-05-10 | AGF12: 2026-05-11 | AGG12: 2026-05-12 | AGH12: 2026-05-13 | AGI12: 2026-05-14 | AGJ12: 2026-05-15 | AGK12: 2026-05-16 | AGL12: 2026-05-17 | AGM12: 2026-05-18 | AGN12: 2026-05-19 | AGO12: 2026-05-20 | AGP12: 2026-05-21 | AGQ12: 2026-05-22 | AGR12: 2026-05-23 | AGS12: 2026-05-24 | AGT12: 2026-05-25 | AGU12: 2026-05-26 | AGV12: 2026-05-27 | AGW12: 2026-05-28 | AGX12: 2026-05-29 | AGY12: 2026-05-30 | AGZ12: 2026-05-31 | AHA12: 2026-06-01 | AHB12: 2026-06-02 | AHC12: 2026-06-03 | AHD12: 2026-06-04 | AHE12: 2026-06-05 | AHF12: 2026-06-06 | AHG12: 2026-06-07 | AHH12: 2026-06-08 | AHI12: 2026-06-09 | AHJ12: 2026-06-10 | AHK12: 2026-06-11 | AHL12: 2026-06-12 | AHM12: 2026-06-13 | AHN12: 2026-06-14 | AHO12: 2026-06-15 | AHP12: 2026-06-16 | AHQ12: 2026-06-17 | AHR12: 2026-06-18 | AHS12: 2026-06-19 | AHT12: 2026-06-20 | AHU12: 2026-06-21 | AHV12: 2026-06-22 | AHW12: 2026-06-23 | AHX12: 2026-06-24 | AHY12: 2026-06-25 | AHZ12: 2026-06-26 | AIA12: 2026-06-27 | AIB12: 2026-06-28 | AIC12: 2026-06-29 | AID12: 2026-06-30 | AIE12: 2026-07-01 | AIF12: 2026-07-02 | AIG12: 2026-07-03 | AIH12: 2026-07-04 | AII12: 2026-07-05 | AIJ12: 2026-07-06 | AIK12: 2026-07-07 | AIL12: 2026-07-08 | AIM12: 2026-07-09 | AIN12: 2026-07-10 | AIO12: 2026-07-11 | AIP12: 2026-07-12 | AIQ12: 2026-07-13 | AIR12: 2026-07-14 | AIS12: 2026-07-15 | AIT12: 2026-07-16 | AIU12: 2026-07-17 | AIV12: 2026-07-18 | AIW12: 2026-07-19 | AIX12: 2026-07-20 | AIY12: 2026-07-21 | AIZ12: 2026-07-22 | AJA12: 2026-07-23 | AJB12: 2026-07-24 | AJC12: 2026-07-25 | AJD12: 2026-07-26 | AJE12: 2026-07-27 | AJF12: 2026-07-28 | AJG12: 2026-07-29 | AJH12: 2026-07-30 | AJI12: 2026-07-31 | AJJ12: 2026-08-01 | AJK12: 2026-08-02 | AJL12: 2026-08-03 | AJM12: 2026-08-04 | AJN12: 2026-08-05 | AJO12: 2026-08-06 | AJP12: 2026-08-07 | AJQ12: 2026-08-08 | AJR12: 2026-08-09 | AJS12: 2026-08-10 | AJT12: 2026-08-11 | AJU12: 2026-08-12 | AJV12: 2026-08-13 | AJW12: 2026-08-14 | AJX12: 2026-08-15 | AJY12: 2026-08-16 | AJZ12: 2026-08-17 | AKA12: 2026-08-18 | AKB12: 2026-08-19 | AKC12: 2026-08-20 | AKD12: 2026-08-21 | AKE12: 2026-08-22 | AKF12: 2026-08-23 | AKG12: 2026-08-24 | AKH12: 2026-08-25 | AKI12: 2026-08-26 | AKJ12: 2026-08-27 | AKK12: 2026-08-28 | AKL12: 2026-08-29 | AKM12: 2026-08-30 | AKN12: 2026-08-31 | AKO12: 2026-09-01 | AKP12: 2026-09-02 | AKQ12: 2026-09-03 | AKR12: 2026-09-04 | AKS12: 2026-09-05 | AKT12: 2026-09-06 | AKU12: 2026-09-07 | AKV12: 2026-09-08 | AKW12: 2026-09-09 | AKX12: 2026-09-10 | AKY12: 2026-09-11 | AKZ12: 2026-09-12 | ALA12: 2026-09-13 | ALB12: 2026-09-14 | ALC12: 2026-09-15 | ALD12: 2026-09-16 | ALE12: 2026-09-17 | ALF12: 2026-09-18 | ALG12: 2026-09-19 | ALH12: 2026-09-20 | ALI12: 2026-09-21 | ALJ12: 2026-09-22 | ALK12: 2026-09-23 | ALL12: 2026-09-24 | ALM12: 2026-09-25 | ALN12: 2026-09-26 | ALO12: 2026-09-27 | ALP12: 2026-09-28 | ALQ12: 2026-09-29 | ALR12: 2026-09-30 | ALS12: 2026-10-01 | ALT12: 2026-10-02 | ALU12: 2026-10-03 | ALV12: 2026-10-04 | ALW12: 2026-10-05 | ALX12: 2026-10-06 | ALY12: 2026-10-07 | ALZ12: 2026-10-08 | AMA12: 2026-10-09 | AMB12: 2026-10-10 | AMC12: 2026-10-11 | AMD12: 2026-10-12 | AME12: 2026-10-13 | AMF12: 2026-10-14 | AMG12: 2026-10-15 | AMH12: 2026-10-16 | AMI12: 2026-10-17 | AMJ12: 2026-10-18 | AMK12: 2026-10-19 | AML12: 2026-10-20 | AMM12: 2026-10-21 | AMN12: 2026-10-22 | AMO12: 2026-10-23 | AMP12: 2026-10-24 | AMQ12: 2026-10-25 | AMR12: 2026-10-26 | AMS12: 2026-10-27 | AMT12: 2026-10-28 | AMU12: 2026-10-29 | AMV12: 2026-10-30 | AMW12: 2026-10-31 | AMX12: 2026-11-01 | AMY12: 2026-11-02 | AMZ12: 2026-11-03 | ANA12: 2026-11-04 | ANB12: 2026-11-05 | ANC12: 2026-11-06 | AND12: 2026-11-07 | ANE12: 2026-11-08 | ANF12: 2026-11-09 | ANG12: 2026-11-10 | ANH12: 2026-11-11 | ANI12: 2026-11-12 | ANJ12: 2026-11-13 | ANK12: 2026-11-14 | ANL12: 2026-11-15 | ANM12: 2026-11-16 | ANN12: 2026-11-17 | ANO12: 2026-11-18 | ANP12: 2026-11-19 | ANQ12: 2026-11-20 | ANR12: 2026-11-21 | ANS12: 2026-11-22 | ANT12: 2026-11-23 | ANU12: 2026-11-24 | ANV12: 2026-11-25 | ANW12: 2026-11-26 | ANX12: 2026-11-27 | ANY12: 2026-11-28 | ANZ12: 2026-11-29 | AOA12: 2026-11-30 | AOB12: 2026-12-01 | AOC12: 2026-12-02 | AOD12: 2026-12-03 | AOE12: 2026-12-04 | AOF12: 2026-12-05 | AOG12: 2026-12-06 | AOH12: 2026-12-07 | AOI12: 2026-12-08 | AOJ12: 2026-12-09 | AOK12: 2026-12-10 | AOL12: 2026-12-11 | AOM12: 2026-12-12 | AON12: 2026-12-13 | AOO12: 2026-12-14 | AOP12: 2026-12-15 | AOQ12: 2026-12-16 | AOR12: 2026-12-17 | AOS12: 2026-12-18 | AOT12: 2026-12-19 | AOU12: 2026-12-20 | AOV12: 2026-12-21 | AOW12: 2026-12-22 | AOX12: 2026-12-23 | AOY12: 2026-12-24 | AOZ12: 2026-12-25 | APA12: 2026-12-26 | APB12: 2026-12-27 | APC12: 2026-12-28 | APD12: 2026-12-29 | APE12: 2026-12-30 | APF12: 2026-12-31 | APG12: 2027-01-01 | APH12: 2027-01-02 | API12: 2027-01-03 | APJ12: 2027-01-04 | APK12: 2027-01-05 | APL12: 2027-01-06 | APM12: 2027-01-07 | APN12: 2027-01-08 | APO12: 2027-01-09 | APP12: 2027-01-10 | APQ12: 2027-01-11 | APR12: 2027-01-12 | APS12: 2027-01-13 | APT12: 2027-01-14 | APU12: 2027-01-15 | APV12: 2027-01-16 | APW12: 2027-01-17 | APX12: 2027-01-18 | APY12: 2027-01-19 | APZ12: 2027-01-20 | AQA12: 2027-01-21 | AQB12: 2027-01-22 | AQC12: 2027-01-23 | AQD12: 2027-01-24 | AQE12: 2027-01-25 | AQF12: 2027-01-26 | AQG12: 2027-01-27 | AQH12: 2027-01-28 | AQI12: 2027-01-29 | AQJ12: 2027-01-30 | AQK12: 2027-01-31
C13: =C14*$C$19+C15*$C$20+C16*$C$21 -> 20.66666667 | D13: =D14*$C$19+D15*$C$20+D16*$C$21 -> 10.22222222 | E13: 6.555555556 | F13: =F14*$C$19+F15*$C$20+F16*$C$21 -> 6.111111111 | G13: 6.111111111 | H13: 33.55555556 | I13: 37.77777778 | J13: 0.3333333333 | K13: 0.1111111111 | L13: 0.1111111111 | M13: 0.1111111111 | N13: 0.1111111111 | O13: 37.77777778 | P13: 37.77777778 | Q13: 0 | R13: 0 | S13: 0 | T13: 0 | U13: 0 | V13: 37.77777778 | W13: 37.77777778 | X13: 0 | Y13: 0 | Z13: 0 | AA13: 0 | AB13: 0 | AC13: 37.77777778 | AD13: 37.77777778 | AE13: 0.3333333333 | AF13: 0.3333333333 | AG13: 0.3333333333 | AH13: 0.5555555556 | AI13: 0.6666666667 | AJ13: 37.77777778 | AK13: 37.77777778 | AL13: 1.555555556 | AM13: 1.555555556 | AN13: 1.555555556 | AO13: 1.555555556 | AP13: 1.666666667 | AQ13: 37.77777778 | AR13: 37.77777778 | AS13: 3.333333333 | AT13: 3.333333333 | AU13: 3.333333333 | AV13: 3.333333333 | AW13: 3.333333333 | AX13: 37.77777778 | AY13: 37.77777778 | AZ13: 1.444444444 | BA13: 1.444444444 | BB13: 1.444444444 | BC13: 1.444444444 | BD13: 1.444444444 | BE13: 37.22222222 | BF13: 37.77777778 | BG13: 0.7777777778 | BH13: 0.7777777778 | BI13: 0.7777777778 | BJ13: 0.7777777778 | BK13: 1 | BL13: 36.11111111 | BM13: 36.11111111 | BN13: 0.5555555556 | BO13: 0.5555555556 | BP13: =BP14*$C$19+BP15*$C$20+BP16*$C$21 -> 0.4444444444 | BQ13: 0.4444444444 | BR13: 0.7777777778 | BS13: 36.11111111 | BT13: 36.11111111 | BU13: 0.1111111111 | BV13: 0.1111111111 | BW13: 0.1111111111 | BX13: 0.1111111111 | BY13: 0.1111111111 | BZ13: 37.77777778 | CA13: 37.55555556 | CB13: 0.6666666667 | CC13: 4.666666667 | CD13: 0.3333333333 | CE13: 0.3333333333 | CF13: 0.3333333333 | CG13: 37.77777778 | CH13: 37.77777778 | CI13: 3.222222222 | CJ13: 3.222222222 | CK13: 3.222222222 | CL13: 4.111111111 | CM13: 18.22222222 | CN13: 37.77777778 | CO13: 36.44444444 | CP13: 20.77777778 | CQ13: 3.777777778 | CR13: 3.222222222 | CS13: 3.111111111 | CT13: 3.111111111 | CU13: 37.77777778 | CV13: 37.77777778 | CW13: 2.777777778 | CX13: 2.555555556 | CY13: 2.555555556 | CZ13: 2.555555556 | DA13: 2.555555556 | DB13: 36.11111111 | DC13: 36.11111111 | DD13: 1.444444444 | DE13: 1.444444444 | DF13: 1.333333333 | DG13: 1.333333333 | DH13: 1.333333333 | DI13: 37.77777778 | DJ13: 37.77777778 | DK13: 0.6666666667 | DL13: 0.6666666667 | DM13: 0.6666666667 | DN13: 1.333333333 | DO13: 1 | DP13: 37.11111111 | DQ13: 37.77777778 | DR13: 0.8888888889 | DS13: 0.8888888889 | DT13: 14.88888889 | DU13: 0.8888888889 | DV13: 1.222222222 | DW13: 37.55555556 | DX13: 37.11111111 | DY13: 0.7777777778 | DZ13: 0.4444444444 | EA13: 1.222222222 | EB13: =EB14*$C$19+EB15*$C$20+EB16*$C$21 -> 19.33333333 | EC13: 2.666666667 | ED13: 37.77777778 | EE13: 37.77777778 | EF13: 0 | EG13: 0 | EH13: 0 | EI13: 0 | EJ13: 0.1111111111 | EK13: 30 | EL13: 36.88888889 | EM13: 19.66666667 | EN13: 1.222222222 | EO13: 0.5555555556 | EP13: 0.5555555556 | EQ13: 0.5555555556 | ER13: 37.77777778 | ES13: 37.77777778 | ET13: 0.7777777778 | EU13: 0.5555555556 | EV13: 0.5555555556 | EW13: 10.22222222 | EX13: 0.6666666667 | EY13: 37.22222222 | EZ13: 36.77777778 | FA13: 0 | FB13: 0 | FC13: 0.3333333333 | FD13: 0 | FE13: 0.1111111111 | FF13: 37.77777778 | FG13: 37.77777778 | FH13: 0.1111111111 | FI13: 0.1111111111 | FJ13: 0.1111111111 | FK13: 0.1111111111 | FL13: 0.1111111111 | FM13: 37.77777778 | FN13: 37.77777778 | FO13: 0.3333333333 | FP13: 0.3333333333 | FQ13: 0.3333333333 | FR13: 0.5555555556 | FS13: 0.5555555556 | FT13: 37.77777778 | FU13: 37.33333333 | FV13: 1 | FW13: 1 | FX13: 1 | FY13: 1 | FZ13: 1 | GA13: 37.11111111 | GB13: 37.77777778 | GC13: 2.555555556 | GD13: 2.555555556 | GE13: 2.555555556 | GF13: 2.555555556 | GG13: 2.888888889 | GH13: 37.55555556 | GI13: 37.77777778 | GJ13: 5.222222222 | GK13: 5.222222222 | GL13: 5.222222222 | GM13: 5.222222222 | GN13: =GN14*$C$19+GN15*$C$20+GN16*$C$21 -> 5.444444444 | GO13: 37.77777778 | GP13: 37.55555556 | GQ13: 5.777777778 | GR13: 5.888888889 | GS13: 5.888888889 | GT13: 6.222222222 | GU13: 6.222222222 | GV13: 37.77777778 | GW13: 37.55555556 | GX13: 6.666666667 | GY13: 6.666666667 | GZ13: 6.666666667 | HA13: 6.666666667 | HB13: 6.777777778 | HC13: 37.77777778 | HD13: 37.77777778 | HE13: 6.888888889 | HF13: 6.888888889 | HG13: 6.888888889 | HH13: 12.55555556 | HI13: 6.777777778 | HJ13: 37.77777778 | HK13: 37.77777778 | HL13: 6.555555556 | HM13: 6.333333333 | HN13: 6.333333333 | HO13: 6.555555556 | HP13: 6.333333333 | HQ13: 37.77777778 | HR13: 37.77777778 | HS13: 5 | HT13: 5 | HU13: 5 | HV13: 11.55555556 | HW13: 5 | HX13: 37.77777778 | HY13: 37.77777778 | HZ13: 3.666666667 | IA13: 3.666666667 | IB13: 3.444444444 | IC13: 3.333333333 | ID13: 3.333333333 | IE13: 37.22222222 | IF13: 37.22222222 | IG13: 3 | IH13: 2.777777778 | II13: 2.777777778 | IJ13: 2.666666667 | IK13: 2.666666667 | IL13: 36.66666667 | IM13: 36.11111111 | IN13: 1.333333333 | IO13: 1.333333333 | IP13: 1.222222222 | IQ13: 1 | IR13: 1 | IS13: 36.11111111 | IT13: 36.11111111 | IU13: 0.5555555556 | IV13: 0.1111111111 | IW13: 0.1111111111 | IX13: 0.1111111111 | IY13: 0.1111111111 | IZ13: =IZ14*$C$19+IZ15*$C$20+IZ16*$C$21 -> 37.77777778 | JA13: 37.77777778 | JB13: 0 | JC13: 0 | JD13: 0.3333333333 | JE13: 0 | JF13: 0.3333333333 | JG13: 37.77777778 | JH13: 37.33333333 | JI13: 0.1111111111 | JJ13: 0.4444444444 | JK13: 0.4444444444 | JL13: 0.1111111111 | JM13: 0.1111111111 | JN13: 37.55555556 | JO13: 37.77777778 | JP13: 1.555555556 | JQ13: 1.555555556 | JR13: 1.555555556 | JS13: 6.666666667 | JT13: 2.333333333 | JU13: 37.77777778 | JV13: 37.77777778 | JW13: 2.777777778 | JX13: 2.777777778 | JY13: 2.777777778 | JZ13: 3.111111111 | KA13: 2.777777778 | KB13: 37.77777778 | KC13: 37.77777778 | KD13: 3.111111111 | KE13: 3.111111111 | KF13: 3.111111111 | KG13: 3.111111111 | KH13: 3.111111111 | KI13: 37.22222222 | KJ13: 37.22222222 | KK13: 2 | KL13: 1.888888889 | KM13: 1.888888889 | KN13: 1.888888889 | KO13: 1.888888889 | KP13: 35.77777778 | KQ13: 37.77777778 | KR13: 2.666666667 | KS13: 2.444444444 | KT13: 2.666666667 | KU13: 5.222222222 | KV13: 12.77777778 | KW13: 37.22222222 | KX13: 37.22222222 | KY13: 0.1111111111 | KZ13: 0.1111111111 | LA13: 0 | LB13: 0 | LC13: 0 | LD13: 37.77777778 | LE13: 37.77777778 | LF13: 1.333333333 | LG13: 0 | LH13: 0 | LI13: 0 | LJ13: 0.6666666667 | LK13: 37.77777778 | LL13: =LL14*$C$19+LL15*$C$20+LL16*$C$21 -> 37.55555556 | LM13: 0 | LN13: 0 | LO13: 0.1111111111 | LP13: 0 | LQ13: 0.3333333333 | LR13: 37.77777778 | LS13: 37.77777778 | LT13: 0 | LU13: 0 | LV13: 0 | LW13: 0 | LX13: 0 | LY13: 37.55555556 | LZ13: 37.77777778 | MA13: 0 | MB13: 0 | MC13: 0 | MD13: 0 | ME13: 0 | MF13: 36.11111111 | MG13: 31 | MH13: 0 | MI13: 0 | MJ13: 0 | MK13: 0 | ML13: 0 | MM13: 36.11111111 | MN13: 36.11111111 | MO13: 0 | MP13: 0 | MQ13: 0 | MR13: 0.1111111111 | MS13: 0.2222222222 | MT13: 37.77777778 | MU13: 37.77777778 | MV13: 6.333333333 | MW13: 7.222222222 | MX13: 21 | MY13: 15.22222222 | MZ13: 6.777777778 | NA13: 37.77777778 | NB13: 37.77777778 | NC13: 6.777777778 | ND13: 7 | NE13: 22.66666667 | NF13: 9.777777778 | NG13: 6.444444444 | NH13: 37.77777778 | NI13: 37.77777778 | NJ13: 8.888888889 | NK13: 0.3333333333 | NL13: 0.2222222222 | NM13: 0.1111111111 | NN13: 0.1111111111 | NO13: 37.77777778 | NP13: 37.77777778 | NQ13: 0 | NR13: 0 | NS13: 0 | NT13: 0 | NU13: 0 | NV13: 37.77777778 | NW13: 37.77777778 | NX13: =NX14*$C$19+NX15*$C$20+NX16*$C$21 -> 0 | NY13: 0 | NZ13: 0 | OA13: 0 | OB13: 0 | OC13: 37.77777778 | OD13: 37.77777778 | OE13: 0.3333333333 | OF13: 0.3333333333 | OG13: 0.3333333333 | OH13: 0.3333333333 | OI13: 0.4444444444 | OJ13: 37.77777778 | OK13: 37.77777778 | OL13: 1.555555556 | OM13: 1.444444444 | ON13: 1.222222222 | OO13: 1.222222222 | OP13: 1.222222222 | OQ13: 37.77777778 | OR13: 37.77777778 | OS13: 1.222222222 | OT13: 1.222222222 | OU13: 1.222222222 | OV13: 1.222222222 | OW13: 1.222222222 | OX13: 37.77777778 | OY13: 37.77777778 | OZ13: 1 | PA13: 1 | PB13: 1 | PC13: 1 | PD13: 1.111111111 | PE13: 37.77777778 | PF13: 37.77777778 | PG13: 1.666666667 | PH13: 1.777777778 | PI13: 1.777777778 | PJ13: 2 | PK13: 2.111111111 | PL13: 37.77777778 | PM13: 37.77777778 | PN13: 2.222222222 | PO13: 2.111111111 | PP13: 1.888888889 | PQ13: 1.777777778 | PR13: 1.777777778 | PS13: 37.55555556 | PT13: 37.77777778 | PU13: 0.5555555556 | PV13: 0.5555555556 | PW13: 0.5555555556 | PX13: 0.5555555556 | PY13: 0.5555555556 | PZ13: 37.77777778 | QA13: 37.77777778 | QB13: 0.5555555556 | QC13: 0.4444444444 | QD13: 4.444444444 | QE13: 0.1111111111 | QF13: 0.1111111111 | QG13: 37.77777778 | QH13: 37.77777778 | QI13: 0 | QJ13: =QJ14*$C$19+QJ15*$C$20+QJ16*$C$21 -> 0 | QK13: 0 | QL13: 0 | QM13: 0 | QN13: 37.77777778 | QO13: 37.77777778 | QP13: 0 | QQ13: 0 | QR13: 0 | QS13: 0.1111111111 | QT13: 0.1111111111 | QU13: 37.77777778 | QV13: 37.77777778 | QW13: 1.666666667 | QX13: 1.888888889 | QY13: 1.666666667 | QZ13: 1.777777778 | RA13: 2.555555556 | RB13: 37.77777778 | RC13: 37.77777778 | RD13: 4.666666667 | RE13: 4.666666667 | RF13: 4.555555556 | RG13: 5.333333333 | RH13: 18.55555556 | RI13: 37.77777778 | RJ13: 29.55555556 | RK13: 22.66666667 | RL13: 3.333333333 | RM13: 3 | RN13: 2.888888889 | RO13: 5.222222222 | RP13: 37.22222222 | RQ13: 37.11111111 | RR13: 1.888888889 | RS13: 1.444444444 | RT13: 1.888888889 | RU13: 16.66666667 | RV13: 2.555555556 | RW13: 37.55555556 | RX13: 37.55555556 | RY13: 1.777777778 | RZ13: 0.4444444444 | SA13: 0.3333333333 | SB13: 1 | SC13: 0.3333333333 | SD13: 37.77777778 | SE13: 34.22222222 | SF13: 0.2222222222 | SG13: 0.2222222222 | SH13: 0.2222222222 | SI13: 0.1111111111 | SJ13: 0.4444444444 | SK13: 37.77777778 | SL13: 37.77777778 | SM13: 0 | SN13: 0 | SO13: 0 | SP13: 0 | SQ13: 0.1111111111 | SR13: 37.77777778 | SS13: 37.77777778 | ST13: 0.5555555556 | SU13: 0.3333333333 | SV13: =SV14*$C$19+SV15*$C$20+SV16*$C$21 -> 0.3333333333 | SW13: 19.44444444 | SX13: 2.777777778 | SY13: 37.77777778 | SZ13: 37.77777778 | TA13: 2.555555556 | TB13: 0.1111111111 | TC13: 0.1111111111 | TD13: 0.4444444444 | TE13: 0.1111111111 | TF13: 37.77777778 | TG13: 35.11111111 | TH13: 17.11111111 | TI13: 1.222222222 | TJ13: 0.6666666667 | TK13: 0.6666666667 | TL13: 0.6666666667 | TM13: 37.77777778 | TN13: 37.77777778 | TO13: 0.7777777778 | TP13: 0.7777777778 | TQ13: 0.7777777778 | TR13: 12.33333333 | TS13: 0.7777777778 | TT13: 37.77777778 | TU13: 37.77777778 | TV13: 0.8888888889 | TW13: 0.5555555556 | TX13: 0.5555555556 | TY13: 0.6666666667 | TZ13: 0.6666666667 | UA13: 37.77777778 | UB13: 37.11111111 | UC13: 2.111111111 | UD13: 2.222222222 | UE13: 2.222222222 | UF13: 2.333333333 | UG13: 2.444444444 | UH13: 37.55555556 | UI13: 37.55555556 | UJ13: 4.888888889 | UK13: 4.888888889 | UL13: 4.888888889 | UM13: 4.888888889 | UN13: 4.888888889 | UO13: 37.55555556 | UP13: 37.77777778 | UQ13: 5.444444444 | UR13: 5.222222222 | US13: 5.333333333 | UT13: 5.333333333 | UU13: 5.444444444 | UV13: 37.77777778 | UW13: 37.77777778 | UX13: 5.666666667 | UY13: 5.666666667 | UZ13: 5.666666667 | VA13: 6 | VB13: 6 | VC13: 37.77777778 | VD13: 37.77777778 | VE13: 6.222222222 | VF13: 6.222222222 | VG13: 6.222222222 | VH13: =VH14*$C$19+VH15*$C$20+VH16*$C$21 -> 6.333333333 | VI13: 13.11111111 | VJ13: 36.66666667 | VK13: 36.66666667 | VL13: 6.666666667 | VM13: 6.444444444 | VN13: 6.444444444 | VO13: 6.333333333 | VP13: 6.333333333 | VQ13: 36.66666667 | VR13: 36.66666667 | VS13: 5.111111111 | VT13: 5 | VU13: 5 | VV13: 4.777777778 | VW13: 11.11111111 | VX13: 36.66666667 | VY13: 36.66666667 | VZ13: 3.333333333 | WA13: 3.333333333 | WB13: 3.333333333 | WC13: 3.333333333 | WD13: 3.333333333 | WE13: 36.11111111 | WF13: 36.11111111 | WG13: 3.444444444 | WH13: 3.222222222 | WI13: 3.222222222 | WJ13: 3.222222222 | WK13: 3.111111111 | WL13: 37.77777778 | WM13: 37.77777778 | WN13: 2.222222222 | WO13: 2.222222222 | WP13: 2.111111111 | WQ13: 2 | WR13: 2 | WS13: 36.66666667 | WT13: 36.66666667 | WU13: 0.7777777778 | WV13: 0.7777777778 | WW13: 0.6666666667 | WX13: 0.8888888889 | WY13: 0.5555555556 | WZ13: 37.77777778 | XA13: 37.77777778 | XB13: 0.4444444444 | XC13: 0 | XD13: 0 | XE13: 0 | XF13: 0 | XG13: 37.77777778 | XH13: 32.22222222 | XI13: 1.111111111 | XJ13: 0.1111111111 | XK13: 0.2222222222 | XL13: 0.1111111111 | XM13: 0.1111111111 | XN13: 37.77777778 | XO13: 37.55555556 | XP13: 1.111111111 | XQ13: 1.111111111 | XR13: 1.111111111 | XS13: 1.444444444 | XT13: =XT14*$C$19+XT15*$C$20+XT16*$C$21 -> 6.444444444 | XU13: 37.77777778 | XV13: 37.77777778 | XW13: 1.888888889 | XX13: 1.888888889 | XY13: 1.888888889 | XZ13: 1.888888889 | YA13: 1.888888889 | YB13: 37.77777778 | YC13: 37.77777778 | YD13: 2.111111111 | YE13: 2 | YF13: 2 | YG13: 2 | YH13: 2 | YI13: 37.22222222 | YJ13: 37.77777778 | YK13: 1.444444444 | YL13: 1.666666667 | YM13: 1.666666667 | YN13: 1.666666667 | YO13: 1.777777778 | YP13: 37.77777778 | YQ13: 37.77777778 | YR13: 2.111111111 | YS13: 2.333333333 | YT13: 2.111111111 | YU13: 2 | YV13: 4.111111111 | YW13: 32.22222222 | YX13: 34.44444444 | YY13: 0.3333333333 | YZ13: 0.2222222222 | ZA13: 0.2222222222 | ZB13: 0.2222222222 | ZC13: 0.2222222222 | ZD13: 37.77777778 | ZE13: 37.77777778 | ZF13: 0 | ZG13: 0.7777777778 | ZH13: 0 | ZI13: 0 | ZJ13: 0 | ZK13: 37.77777778 | ZL13: 37.77777778 | ZM13: 0 | ZN13: 0 | ZO13: 0 | ZP13: 0 | ZQ13: 0 | ZR13: 37.77777778 | ZS13: 37.77777778 | ZT13: 0 | ZU13: 0 | ZV13: 0 | ZW13: 0 | ZX13: 0 | ZY13: 37.77777778 | ZZ13: 37.77777778 | AAA13: 0 | AAB13: 0 | AAC13: 0 | AAD13: 0 | AAE13: 0 | AAF13: =AAF14*$C$19+AAF15*$C$20+AAF16*$C$21 -> 37.77777778 | AAG13: 37.77777778 | AAH13: 0.6666666667 | AAI13: 0 | AAJ13: 0 | AAK13: 0 | AAL13: 0 | AAM13: 37.77777778 | AAN13: 37.77777778 | AAO13: 0.1111111111 | AAP13: 0.1111111111 | AAQ13: 0.2222222222 | AAR13: 0.2222222222 | AAS13: 0.3333333333 | AAT13: 37.77777778 | AAU13: 37.77777778 | AAV13: 5.555555556 | AAW13: 5.777777778 | AAX13: 7.333333333 | AAY13: 22.66666667 | AAZ13: 20.44444444 | ABA13: 36.66666667 | ABB13: 36.66666667 | ABC13: 7.333333333 | ABD13: 7.333333333 | ABE13: 7.555555556 | ABF13: 22.66666667 | ABG13: 10 | ABH13: 34.44444444 | ABI13: 31.11111111 | ABJ13: 3.111111111 | ABK13: 8.666666667 | ABL13: 0.2222222222 | ABM13: 0.1111111111 | ABN13: 0.1111111111 | ABO13: 37.77777778 | ABP13: 37.22222222 | ABQ13: 0 | ABR13: 0 | ABS13: 0 | ABT13: 0 | ABU13: 0 | ABV13: 37.77777778 | ABW13: 37.77777778 | ABX13: 0.1111111111 | ABY13: 0.1111111111 | ABZ13: 0.1111111111 | ACA13: 0.1111111111 | ACB13: 0.1111111111 | ACC13: 37.77777778 | ACD13: 37.77777778 | ACE13: 0.4444444444 | ACF13: 0.4444444444 | ACG13: 0.4444444444 | ACH13: 0.2222222222 | ACI13: 0.4444444444 | ACJ13: 37.77777778 | ACK13: 37.77777778 | ACL13: 1.222222222 | ACM13: 1.333333333 | ACN13: 1.111111111 | ACO13: 1.111111111 | ACP13: 1.111111111 | ACQ13: 37.77777778 | ACR13: =ACR14*$C$19+ACR15*$C$20+ACR16*$C$21 -> 37.77777778 | ACS13: 2 | ACT13: 2 | ACU13: 2 | ACV13: 2.111111111 | ACW13: 2.111111111 | ACX13: 37.77777778 | ACY13: 37.77777778 | ACZ13: 3.333333333 | ADA13: 3.444444444 | ADB13: 3.333333333 | ADC13: 3.333333333 | ADD13: 3.222222222 | ADE13: 37.77777778 | ADF13: 37.77777778 | ADG13: 1.333333333 | ADH13: 1.222222222 | ADI13: 1.222222222 | ADJ13: 1.222222222 | ADK13: 1.222222222 | ADL13: 37.77777778 | ADM13: 37.77777778 | ADN13: 0.6666666667 | ADO13: 0.5555555556 | ADP13: 0.5555555556 | ADQ13: 0.5555555556 | ADR13: 0.5555555556 | ADS13: 37.77777778 | ADT13: 37.33333333 | ADU13: 0.4444444444 | ADV13: 0.2222222222 | ADW13: 0.2222222222 | ADX13: 0.2222222222 | ADY13: 0.2222222222 | ADZ13: 37.77777778 | AEA13: 37.55555556 | AEB13: 0.1111111111 | AEC13: 0 | AED13: 0 | AEE13: 3.777777778 | AEF13: 0 | AEG13: 37.77777778 | AEH13: 37.77777778 | AEI13: 0.2222222222 | AEJ13: 0.2222222222 | AEK13: 0.2222222222 | AEL13: 0.3333333333 | AEM13: 0.3333333333 | AEN13: 37.77777778 | AEO13: 37.77777778 | AEP13: 2.888888889 | AEQ13: 2.888888889 | AER13: 2.888888889 | AES13: 3.666666667 | AET13: 17.11111111 | AEU13: 37.77777778 | AEV13: 32 | AEW13: 21.88888889 | AEX13: 4.555555556 | AEY13: 3.888888889 | AEZ13: 4 | AFA13: 3.888888889 | AFB13: 37.77777778 | AFC13: 37.77777778 | AFD13: =AFD14*$C$19+AFD15*$C$20+AFD16*$C$21 -> 2.888888889 | AFE13: 2.777777778 | AFF13: 2.666666667 | AFG13: 2.666666667 | AFH13: 2.666666667 | AFI13: 37.77777778 | AFJ13: 37.77777778 | AFK13: 0.8888888889 | AFL13: 0.6666666667 | AFM13: 0.5555555556 | AFN13: 0.5555555556 | AFO13: 0.5555555556 | AFP13: 35.66666667 | AFQ13: 37.22222222 | AFR13: 1.444444444 | AFS13: 0.7777777778 | AFT13: 0.7777777778 | AFU13: 0.7777777778 | AFV13: 13.55555556 | AFW13: 37.22222222 | AFX13: 37.77777778 | AFY13: 0.5555555556 | AFZ13: 1.333333333 | AGA13: 0.3333333333 | AGB13: 0.3333333333 | AGC13: 1 | AGD13: 37.55555556 | AGE13: 37.22222222 | AGF13: 0.2222222222 | AGG13: 0.2222222222 | AGH13: 0.2222222222 | AGI13: 19.33333333 | AGJ13: 0.8888888889 | AGK13: 37.22222222 | AGL13: 37.22222222 | AGM13: 0.3333333333 | AGN13: 0.3333333333 | AGO13: 0.3333333333 | AGP13: 0.3333333333 | AGQ13: 0.3333333333 | AGR13: 37.77777778 | AGS13: 34 | AGT13: 19 | AGU13: 0.8888888889 | AGV13: 0.4444444444 | AGW13: 0.4444444444 | AGX13: 0.7777777778 | AGY13: 37.77777778 | AGZ13: 37.77777778 | AHA13: 0.2222222222 | AHB13: 2.555555556 | AHC13: 0.2222222222 | AHD13: 10.33333333 | AHE13: 0.5555555556 | AHF13: 37.77777778 | AHG13: 37.77777778 | AHH13: 0.1111111111 | AHI13: 0.1111111111 | AHJ13: 0.1111111111 | AHK13: 0.1111111111 | AHL13: 0.1111111111 | AHM13: 37.77777778 | AHN13: 37.77777778 | AHO13: 0.2222222222 | AHP13: =AHP14*$C$19+AHP15*$C$20+AHP16*$C$21 -> 0.2222222222 | AHQ13: 0.6666666667 | AHR13: 0.6666666667 | AHS13: 0.7777777778 | AHT13: 37.77777778 | AHU13: 37.77777778 | AHV13: 0.7777777778 | AHW13: 1.111111111 | AHX13: 0.7777777778 | AHY13: 0.7777777778 | AHZ13: 0.7777777778 | AIA13: 37.77777778 | AIB13: 37.77777778 | AIC13: 2.111111111 | AID13: 2.111111111 | AIE13: 2.222222222 | AIF13: 2.444444444 | AIG13: 2.444444444 | AIH13: 37.77777778 | AII13: 37.55555556 | AIJ13: 5.444444444 | AIK13: 5.222222222 | AIL13: 5.222222222 | AIM13: 5.555555556 | AIN13: 5.555555556 | AIO13: 37.22222222 | AIP13: 37.22222222 | AIQ13: 6.666666667 | AIR13: 6.888888889 | AIS13: 6.666666667 | AIT13: 6.777777778 | AIU13: 6.666666667 | AIV13: 37.77777778 | AIW13: 37.77777778 | AIX13: 6.888888889 | AIY13: 7.111111111 | AIZ13: 6.888888889 | AJA13: 6.888888889 | AJB13: 6.888888889 | AJC13: 37.77777778 | AJD13: 37.77777778 | AJE13: 6.888888889 | AJF13: 6.888888889 | AJG13: 6.888888889 | AJH13: 7 | AJI13: 7 | AJJ13: 32 | AJK13: 37.77777778 | AJL13: 7.111111111 | AJM13: 7.111111111 | AJN13: 7 | AJO13: 7 | AJP13: 7 | AJQ13: 35.88888889 | AJR13: 35.55555556 | AJS13: 5.444444444 | AJT13: 5.333333333 | AJU13: 5.333333333 | AJV13: 5.111111111 | AJW13: 5.111111111 | AJX13: 29 | AJY13: 37.77777778 | AJZ13: 3.777777778 | AKA13: 3.666666667 | AKB13: =AKB14*$C$19+AKB15*$C$20+AKB16*$C$21 -> 3.666666667 | AKC13: 3.444444444 | AKD13: 3.444444444 | AKE13: 37.77777778 | AKF13: 37.77777778 | AKG13: 2.666666667 | AKH13: 2.666666667 | AKI13: 2.666666667 | AKJ13: 2.666666667 | AKK13: 2.666666667 | AKL13: 37.77777778 | AKM13: 37.77777778 | AKN13: 2.555555556 | AKO13: 2.222222222 | AKP13: 2 | AKQ13: 1.888888889 | AKR13: 1.888888889 | AKS13: 37.77777778 | AKT13: 37.77777778 | AKU13: 1.111111111 | AKV13: 1.111111111 | AKW13: 1.111111111 | AKX13: 1.111111111 | AKY13: 1.111111111 | AKZ13: 37.77777778 | ALA13: 37.77777778 | ALB13: 0.2222222222 | ALC13: 0 | ALD13: 0 | ALE13: 0 | ALF13: 0 | ALG13: 37.77777778 | ALH13: 31.77777778 | ALI13: 0.1111111111 | ALJ13: 0.4444444444 | ALK13: 0.1111111111 | ALL13: 0.2222222222 | ALM13: 0.1111111111 | ALN13: 37.77777778 | ALO13: 37.55555556 | ALP13: 1.777777778 | ALQ13: 1.444444444 | ALR13: 1.444444444 | ALS13: 1.444444444 | ALT13: 1.444444444 | ALU13: 34.22222222 | ALV13: 37.77777778 | ALW13: 2.444444444 | ALX13: 2.444444444 | ALY13: 2.444444444 | ALZ13: 2.444444444 | AMA13: 2.444444444 | AMB13: 37.77777778 | AMC13: 37.77777778 | AMD13: 2.555555556 | AME13: 2.444444444 | AMF13: 2.444444444 | AMG13: 2.444444444 | AMH13: 2.444444444 | AMI13: 37.77777778 | AMJ13: 37.77777778 | AMK13: 2.111111111 | AML13: 2.222222222 | AMM13: 2.222222222 | AMN13: =AMN14*$C$19+AMN15*$C$20+AMN16*$C$21 -> 2.222222222 | AMO13: 2.222222222 | AMP13: 37.77777778 | AMQ13: 37.77777778 | AMR13: 4.222222222 | AMS13: 2.222222222 | AMT13: 2.555555556 | AMU13: 2.222222222 | AMV13: 2.222222222 | AMW13: 36 | AMX13: 28.88888889 | AMY13: 0.7777777778 | AMZ13: 0.7777777778 | ANA13: 0.7777777778 | ANB13: 0.7777777778 | ANC13: 0.7777777778 | AND13: 37.77777778 | ANE13: 37.77777778 | ANF13: 0 | ANG13: 0 | ANH13: 1.111111111 | ANI13: 0 | ANJ13: 0 | ANK13: 37.77777778 | ANL13: 37.77777778 | ANM13: 0 | ANN13: 0.3333333333 | ANO13: 0.3333333333 | ANP13: 0 | ANQ13: 0 | ANR13: 37.77777778 | ANS13: 37.77777778 | ANT13: 0 | ANU13: 0 | ANV13: 0.1111111111 | ANW13: 0.1111111111 | ANX13: 0.1111111111 | ANY13: 37.77777778 | ANZ13: 37.77777778 | AOA13: 0 | AOB13: 0 | AOC13: 0 | AOD13: 0 | AOE13: 0 | AOF13: 37.77777778 | AOG13: 37.55555556 | AOH13: 0 | AOI13: 8.333333333 | AOJ13: 0 | AOK13: 0 | AOL13: 0 | AOM13: 37.77777778 | AON13: 37.77777778 | AOO13: 0 | AOP13: 0 | AOQ13: 0 | AOR13: 0 | AOS13: 0.1111111111 | AOT13: 37.77777778 | AOU13: 37.77777778 | AOV13: 2.222222222 | AOW13: 2.333333333 | AOX13: 3.777777778 | AOY13: 7.111111111 | AOZ13: =AOZ14*$C$19+AOZ15*$C$20+AOZ16*$C$21 -> 21.66666667 | APA13: 24.77777778 | APB13: 37.77777778 | APC13: 7.222222222 | APD13: 7.222222222 | APE13: 7.111111111 | APF13: 7.111111111 | APG13: 21.66666667 | APH13: 35.33333333 | API13: 36.66666667 | APJ13: 3.777777778 | APK13: 2.888888889 | APL13: 8.222222222 | APM13: 1 | APN13: 1 | APO13: 37.77777778 | APP13: 37.77777778 | APQ13: 0.1111111111 | APR13: 0.1111111111 | APS13: 0 | APT13: 0 | APU13: 0 | APV13: 37.77777778 | APW13: 37.77777778 | APX13: 0 | APY13: 0 | APZ13: 0 | AQA13: 0 | AQB13: 0 | AQC13: 37.77777778 | AQD13: 37.77777778 | AQE13: 0 | AQF13: 0 | AQG13: 0 | AQH13: 0 | AQI13: 0 | AQJ13: 37.77777778 | AQK13: 37.77777778
B14: Feiertag | C14: =SUMPRODUCT((SUBTOTAL(3,INDIRECT("C"&ROW(C35:C135))))*(C35:C135=50)) -> 62 | D14: 15 | E14: 1 | F14: 0 | G14: 0 | H14: 19 | I14: 0 | J14: 0 | K14: 0 | L14: 0 | M14: 0 | N14: 0 | O14: 0 | P14: 0 | Q14: 0 | R14: 0 | S14: 0 | T14: 0 | U14: 0 | V14: 0 | W14: 0 | X14: 0 | Y14: 0 | Z14: 0 | AA14: 0 | AB14: 0 | AC14: 0 | AD14: 0 | AE14: 0 | AF14: 0 | AG14: 0 | AH14: 0 | AI14: 0 | AJ14: 0 | AK14: 0 | AL14: 0 | AM14: 0 | AN14: 0 | AO14: 0 | AP14: 0 | AQ14: 0 | AR14: 0 | AS14: 0 | AT14: 0 | AU14: 0 | AV14: 0 | AW14: 0 | AX14: 0 | AY14: 0 | AZ14: 0 | BA14: 0 | BB14: 0 | BC14: 0 | BD14: 0 | BE14: 0 | BF14: 0 | BG14: 0 | BH14: 0 | BI14: 0 | BJ14: 0 | BK14: 1 | BL14: 0 | BM14: 0 | BN14: 0 | BO14: =SUMPRODUCT((SUBTOTAL(3,INDIRECT("C"&ROW(BO35:BO135))))*(BO35:BO135=50)) -> 0 | BP14: 0 | BQ14: 0 | BR14: 1 | BS14: 0 | BT14: 0 | BU14: 0 | BV14: 0 | BW14: 0 | BX14: 0 | BY14: 0 | BZ14: 0 | CA14: 1 | CB14: 1 | CC14: 13 | CD14: 0 | CE14: 0 | CF14: 0 | CG14: 0 | CH14: 0 | CI14: 0 | CJ14: 0 | CK14: 0 | CL14: 1 | CM14: 53 | CN14: 0 | CO14: 6 | CP14: 62 | CQ14: 0 | CR14: 0 | CS14: 0 | CT14: 0 | CU14: 0 | CV14: 0 | CW14: 1 | CX14: 0 | CY14: 0 | CZ14: 0 | DA14: 0 | DB14: 0 | DC14: 0 | DD14: 0 | DE14: 0 | DF14: 0 | DG14: 0 | DH14: 0 | DI14: 0 | DJ14: 0 | DK14: 0 | DL14: 0 | DM14: 0 | DN14: 2 | DO14: 1 | DP14: 3 | DQ14: 0 | DR14: 0 | DS14: 0 | DT14: 43 | DU14: 0 | DV14: 1 | DW14: 1 | DX14: 3 | DY14: 1 | DZ14: 0 | EA14: =SUMPRODUCT((SUBTOTAL(3,INDIRECT("C"&ROW(EA35:EA135))))*(EA35:EA135=50)) -> 2 | EB14: 58 | EC14: 1 | ED14: 0 | EE14: 0 | EF14: 0 | EG14: 0 | EH14: 0 | EI14: 0 | EJ14: 0 | EK14: 0 | EL14: 4 | EM14: 59 | EN14: 0 | EO14: 0 | EP14: 0 | EQ14: 0 | ER14: 0 | ES14: 0 | ET14: 1 | EU14: 0 | EV14: 0 | EW14: 30 | EX14: 0 | EY14: 0 | EZ14: 2 | FA14: 0 | FB14: 0 | FC14: 1 | FD14: 0 | FE14: 0 | FF14: 0 | FG14: 0 | FH14: 0 | FI14: 0 | FJ14: 0 | FK14: 0 | FL14: 0 | FM14: 0 | FN14: 0 | FO14: 0 | FP14: 0 | FQ14: 0 | FR14: 0 | FS14: 0 | FT14: 0 | FU14: 2 | FV14: 0 | FW14: 0 | FX14: 0 | FY14: 0 | FZ14: 0 | GA14: 3 | GB14: 0 | GC14: 0 | GD14: 0 | GE14: 0 | GF14: 0 | GG14: 1 | GH14: 1 | GI14: 0 | GJ14: 0 | GK14: 0 | GL14: 0 | GM14: =SUMPRODUCT((SUBTOTAL(3,INDIRECT("C"&ROW(GM35:GM135))))*(GM35:GM135=50)) -> 0 | GN14: 1 | GO14: 0 | GP14: 1 | GQ14: 0 | GR14: 0 | GS14: 0 | GT14: 0 | GU14: 0 | GV14: 0 | GW14: 1 | GX14: 0 | GY14: 0 | GZ14: 0 | HA14: 0 | HB14: 0 | HC14: 0 | HD14: 0 | HE14: 0 | HF14: 0 | HG14: 0 | HH14: 26 | HI14: 0 | HJ14: 0 | HK14: 0 | HL14: 1 | HM14: 0 | HN14: 0 | HO14: 1 | HP14: 0 | HQ14: 0 | HR14: 0 | HS14: 0 | HT14: 0 | HU14: 0 | HV14: 28 | HW14: 0 | HX14: 0 | HY14: 0 | HZ14: 0 | IA14: 0 | IB14: 0 | IC14: 0 | ID14: 0 | IE14: 0 | IF14: 0 | IG14: 1 | IH14: 0 | II14: 0 | IJ14: 0 | IK14: 0 | IL14: 0 | IM14: 0 | IN14: 0 | IO14: 0 | IP14: 0 | IQ14: 0 | IR14: 0 | IS14: 0 | IT14: 0 | IU14: 1 | IV14: 0 | IW14: 0 | IX14: 0 | IY14: =SUMPRODUCT((SUBTOTAL(3,INDIRECT("C"&ROW(IY35:IY135))))*(IY35:IY135=50)) -> 0 | IZ14: 0 | JA14: 0 | JB14: 0 | JC14: 0 | JD14: 1 | JE14: 0 | JF14: 1 | JG14: 0 | JH14: 2 | JI14: 0 | JJ14: 1 | JK14: 1 | JL14: 0 | JM14: 0 | JN14: 1 | JO14: 0 | JP14: 0 | JQ14: 0 | JR14: 0 | JS14: 16 | JT14: 0 | JU14: 0 | JV14: 0 | JW14: 0 | JX14: 0 | JY14: 0 | JZ14: 1 | KA14: 0 | KB14: 0 | KC14: 0 | KD14: 0 | KE14: 0 | KF14: 0 | KG14: 0 | KH14: 0 | KI14: 0 | KJ14: 0 | KK14: 0 | KL14: 0 | KM14: 0 | KN14: 0 | KO14: 0 | KP14: 9 | KQ14: 0 | KR14: 1 | KS14: 0 | KT14: 0 | KU14: 9 | KV14: 35 | KW14: 0 | KX14: 0 | KY14: 0 | KZ14: 0 | LA14: 0 | LB14: 0 | LC14: 0 | LD14: 0 | LE14: 0 | LF14: 4 | LG14: 0 | LH14: 0 | LI14: 0 | LJ14: 2 | LK14: =SUMPRODUCT((SUBTOTAL(3,INDIRECT("C"&ROW(LK35:LK135))))*(LK35:LK135=50)) -> 0 | LL14: 1 | LM14: 0 | LN14: 0 | LO14: 0 | LP14: 0 | LQ14: 1 | LR14: 0 | LS14: 0 | LT14: 0 | LU14: 0 | LV14: 0 | LW14: 0 | LX14: 0 | LY14: 1 | LZ14: 0 | MA14: 0 | MB14: 0 | MC14: 0 | MD14: 0 | ME14: 0 | MF14: 0 | MG14: 23 | MH14: 0 | MI14: 0 | MJ14: 0 | MK14: 0 | ML14: 0 | MM14: 0 | MN14: 0 | MO14: 0 | MP14: 0 | MQ14: 0 | MR14: 0 | MS14: 0 | MT14: 0 | MU14: 0 | MV14: 0 | MW14: 2 | MX14: 63 | MY14: 37 | MZ14: 0 | NA14: 0 | NB14: 0 | NC14: 0 | ND14: 1 | NE14: 68 | NF14: 15 | NG14: 0 | NH14: 0 | NI14: 0 | NJ14: 24 | NK14: 0 | NL14: 0 | NM14: 0 | NN14: 0 | NO14: 0 | NP14: 0 | NQ14: 0 | NR14: 0 | NS14: 0 | NT14: 0 | NU14: 0 | NV14: 0 | NW14: =SUMPRODUCT((SUBTOTAL(3,INDIRECT("C"&ROW(NW35:NW135))))*(NW35:NW135=50)) -> 0 | NX14: 0 | NY14: 0 | NZ14: 0 | OA14: 0 | OB14: 0 | OC14: 0 | OD14: 0 | OE14: 0 | OF14: 0 | OG14: 0 | OH14: 0 | OI14: 0 | OJ14: 0 | OK14: 0 | OL14: 0 | OM14: 0 | ON14: 0 | OO14: 0 | OP14: 0 | OQ14: 0 | OR14: 0 | OS14: 0 | OT14: 0 | OU14: 0 | OV14: 0 | OW14: 0 | OX14: 0 | OY14: 0 | OZ14: 0 | PA14: 0 | PB14: 0 | PC14: 0 | PD14: 0 | PE14: 0 | PF14: 0 | PG14: 0 | PH14: 0 | PI14: 0 | PJ14: 0 | PK14: 0 | PL14: 0 | PM14: 0 | PN14: 0 | PO14: 0 | PP14: 0 | PQ14: 0 | PR14: 0 | PS14: 1 | PT14: 0 | PU14: 0 | PV14: 0 | PW14: 0 | PX14: 0 | PY14: 0 | PZ14: 0 | QA14: 0 | QB14: 1 | QC14: 1 | QD14: 13 | QE14: 0 | QF14: 0 | QG14: 0 | QH14: 0 | QI14: =SUMPRODUCT((SUBTOTAL(3,INDIRECT("C"&ROW(QI35:QI135))))*(QI35:QI135=50)) -> 0 | QJ14: 0 | QK14: 0 | QL14: 0 | QM14: 0 | QN14: 0 | QO14: 0 | QP14: 0 | QQ14: 0 | QR14: 0 | QS14: 0 | QT14: 0 | QU14: 0 | QV14: 0 | QW14: 0 | QX14: 1 | QY14: 0 | QZ14: 0 | RA14: 0 | RB14: 0 | RC14: 0 | RD14: 0 | RE14: 0 | RF14: 0 | RG14: 1 | RH14: 53 | RI14: 0 | RJ14: 37 | RK14: 68 | RL14: 0 | RM14: 0 | RN14: 0 | RO14: 7 | RP14: 0 | RQ14: 3 | RR14: 1 | RS14: 0 | RT14: 0 | RU14: 47 | RV14: 0 | RW14: 1 | RX14: 1 | RY14: 4 | RZ14: 0 | SA14: 0 | SB14: 2 | SC14: 0 | SD14: 0 | SE14: 16 | SF14: 0 | SG14: 0 | SH14: 0 | SI14: 0 | SJ14: 1 | SK14: 0 | SL14: 0 | SM14: 0 | SN14: 0 | SO14: 0 | SP14: 0 | SQ14: 0 | SR14: 0 | SS14: 0 | ST14: 1 | SU14: =SUMPRODUCT((SUBTOTAL(3,INDIRECT("C"&ROW(SU35:SU135))))*(SU35:SU135=50)) -> 0 | SV14: 0 | SW14: 58 | SX14: 1 | SY14: 0 | SZ14: 0 | TA14: 7 | TB14: 0 | TC14: 0 | TD14: 1 | TE14: 0 | TF14: 0 | TG14: 12 | TH14: 50 | TI14: 0 | TJ14: 0 | TK14: 0 | TL14: 0 | TM14: 0 | TN14: 0 | TO14: 0 | TP14: 0 | TQ14: 0 | TR14: 35 | TS14: 0 | TT14: 0 | TU14: 0 | TV14: 1 | TW14: 0 | TX14: 0 | TY14: 0 | TZ14: 0 | UA14: 0 | UB14: 3 | UC14: 0 | UD14: 0 | UE14: 0 | UF14: 0 | UG14: 0 | UH14: 1 | UI14: 1 | UJ14: 0 | UK14: 0 | UL14: 0 | UM14: 0 | UN14: 0 | UO14: 1 | UP14: 0 | UQ14: 1 | UR14: 0 | US14: 0 | UT14: 0 | UU14: 0 | UV14: 0 | UW14: 0 | UX14: 0 | UY14: 0 | UZ14: 0 | VA14: 0 | VB14: 0 | VC14: 0 | VD14: 0 | VE14: 0 | VF14: 0 | VG14: =SUMPRODUCT((SUBTOTAL(3,INDIRECT("C"&ROW(VG35:VG135))))*(VG35:VG135=50)) -> 0 | VH14: 0 | VI14: 26 | VJ14: 0 | VK14: 0 | VL14: 1 | VM14: 0 | VN14: 0 | VO14: 0 | VP14: 0 | VQ14: 0 | VR14: 0 | VS14: 0 | VT14: 0 | VU14: 0 | VV14: 0 | VW14: 25 | VX14: 0 | VY14: 0 | VZ14: 0 | WA14: 0 | WB14: 0 | WC14: 0 | WD14: 0 | WE14: 0 | WF14: 0 | WG14: 1 | WH14: 0 | WI14: 0 | WJ14: 0 | WK14: 0 | WL14: 0 | WM14: 0 | WN14: 0 | WO14: 0 | WP14: 0 | WQ14: 0 | WR14: 0 | WS14: 0 | WT14: 0 | WU14: 0 | WV14: 0 | WW14: 0 | WX14: 1 | WY14: 0 | WZ14: 0 | XA14: 0 | XB14: 1 | XC14: 0 | XD14: 0 | XE14: 0 | XF14: 0 | XG14: 0 | XH14: 25 | XI14: 3 | XJ14: 0 | XK14: 0 | XL14: 0 | XM14: 0 | XN14: 0 | XO14: 1 | XP14: 0 | XQ14: 0 | XR14: 0 | XS14: =SUMPRODUCT((SUBTOTAL(3,INDIRECT("C"&ROW(XS35:XS135))))*(XS35:XS135=50)) -> 1 | XT14: 16 | XU14: 0 | XV14: 0 | XW14: 0 | XX14: 0 | XY14: 0 | XZ14: 0 | YA14: 0 | YB14: 0 | YC14: 0 | YD14: 0 | YE14: 0 | YF14: 0 | YG14: 0 | YH14: 0 | YI14: 0 | YJ14: 0 | YK14: 0 | YL14: 0 | YM14: 0 | YN14: 0 | YO14: 0 | YP14: 0 | YQ14: 0 | YR14: 0 | YS14: 1 | YT14: 0 | YU14: 0 | YV14: 7 | YW14: 25 | YX14: 0 | YY14: 0 | YZ14: 0 | ZA14: 0 | ZB14: 0 | ZC14: 0 | ZD14: 0 | ZE14: 0 | ZF14: 0 | ZG14: 2 | ZH14: 0 | ZI14: 0 | ZJ14: 0 | ZK14: 0 | ZL14: 0 | ZM14: 0 | ZN14: 0 | ZO14: 0 | ZP14: 0 | ZQ14: 0 | ZR14: 0 | ZS14: 0 | ZT14: 0 | ZU14: 0 | ZV14: 0 | ZW14: 0 | ZX14: 0 | ZY14: 0 | ZZ14: 0 | AAA14: 0 | AAB14: 0 | AAC14: 0 | AAD14: 0 | AAE14: =SUMPRODUCT((SUBTOTAL(3,INDIRECT("C"&ROW(AAE35:AAE135))))*(AAE35:AAE135=50)) -> 0 | AAF14: 0 | AAG14: 0 | AAH14: 2 | AAI14: 0 | AAJ14: 0 | AAK14: 0 | AAL14: 0 | AAM14: 0 | AAN14: 0 | AAO14: 0 | AAP14: 0 | AAQ14: 0 | AAR14: 0 | AAS14: 0 | AAT14: 0 | AAU14: 0 | AAV14: 0 | AAW14: 0 | AAX14: 0 | AAY14: 68 | AAZ14: 58 | ABA14: 0 | ABB14: 0 | ABC14: 0 | ABD14: 0 | ABE14: 1 | ABF14: 68 | ABG14: 13 | ABH14: 0 | ABI14: 0 | ABJ14: 0 | ABK14: 24 | ABL14: 0 | ABM14: 0 | ABN14: 0 | ABO14: 0 | ABP14: 0 | ABQ14: 0 | ABR14: 0 | ABS14: 0 | ABT14: 0 | ABU14: 0 | ABV14: 0 | ABW14: 0 | ABX14: 0 | ABY14: 0 | ABZ14: 0 | ACA14: 0 | ACB14: 0 | ACC14: 0 | ACD14: 0 | ACE14: 0 | ACF14: 0 | ACG14: 0 | ACH14: 0 | ACI14: 0 | ACJ14: 0 | ACK14: 0 | ACL14: 0 | ACM14: 0 | ACN14: 0 | ACO14: 0 | ACP14: 0 | ACQ14: =SUMPRODUCT((SUBTOTAL(3,INDIRECT("C"&ROW(ACQ35:ACQ135))))*(ACQ35:ACQ135=50)) -> 0 | ACR14: 0 | ACS14: 0 | ACT14: 0 | ACU14: 0 | ACV14: 0 | ACW14: 0 | ACX14: 0 | ACY14: 0 | ACZ14: 0 | ADA14: 0 | ADB14: 0 | ADC14: 0 | ADD14: 0 | ADE14: 0 | ADF14: 0 | ADG14: 0 | ADH14: 0 | ADI14: 0 | ADJ14: 0 | ADK14: 0 | ADL14: 0 | ADM14: 0 | ADN14: 0 | ADO14: 0 | ADP14: 0 | ADQ14: 0 | ADR14: 0 | ADS14: 0 | ADT14: 2 | ADU14: 0 | ADV14: 0 | ADW14: 0 | ADX14: 0 | ADY14: 0 | ADZ14: 0 | AEA14: 1 | AEB14: 0 | AEC14: 0 | AED14: 0 | AEE14: 10 | AEF14: 0 | AEG14: 0 | AEH14: 0 | AEI14: 0 | AEJ14: 0 | AEK14: 0 | AEL14: 0 | AEM14: 0 | AEN14: 0 | AEO14: 0 | AEP14: 0 | AEQ14: 0 | AER14: 0 | AES14: 1 | AET14: 47 | AEU14: 0 | AEV14: 26 | AEW14: 65 | AEX14: 0 | AEY14: 0 | AEZ14: 0 | AFA14: 0 | AFB14: 0 | AFC14: =SUMPRODUCT((SUBTOTAL(3,INDIRECT("C"&ROW(AFC35:AFC135))))*(AFC35:AFC135=50)) -> 0 | AFD14: 0 | AFE14: 0 | AFF14: 0 | AFG14: 0 | AFH14: 0 | AFI14: 0 | AFJ14: 0 | AFK14: 0 | AFL14: 0 | AFM14: 0 | AFN14: 0 | AFO14: 0 | AFP14: 7 | AFQ14: 0 | AFR14: 3 | AFS14: 0 | AFT14: 0 | AFU14: 0 | AFV14: 39 | AFW14: 0 | AFX14: 0 | AFY14: 0 | AFZ14: 3 | AGA14: 0 | AGB14: 0 | AGC14: 2 | AGD14: 1 | AGE14: 0 | AGF14: 0 | AGG14: 0 | AGH14: 0 | AGI14: 58 | AGJ14: 0 | AGK14: 0 | AGL14: 0 | AGM14: 0 | AGN14: 0 | AGO14: 0 | AGP14: 0 | AGQ14: 0 | AGR14: 0 | AGS14: 17 | AGT14: 57 | AGU14: 0 | AGV14: 0 | AGW14: 0 | AGX14: 1 | AGY14: 0 | AGZ14: 0 | AHA14: 0 | AHB14: 7 | AHC14: 0 | AHD14: 31 | AHE14: 1 | AHF14: 0 | AHG14: 0 | AHH14: 0 | AHI14: 0 | AHJ14: 0 | AHK14: 0 | AHL14: 0 | AHM14: 0 | AHN14: 0 | AHO14: =SUMPRODUCT((SUBTOTAL(3,INDIRECT("C"&ROW(AHO35:AHO135))))*(AHO35:AHO135=50)) -> 0 | AHP14: 0 | AHQ14: 0 | AHR14: 0 | AHS14: 0 | AHT14: 0 | AHU14: 0 | AHV14: 0 | AHW14: 1 | AHX14: 0 | AHY14: 0 | AHZ14: 0 | AIA14: 0 | AIB14: 0 | AIC14: 0 | AID14: 0 | AIE14: 0 | AIF14: 0 | AIG14: 0 | AIH14: 0 | AII14: 1 | AIJ14: 1 | AIK14: 0 | AIL14: 0 | AIM14: 0 | AIN14: 0 | AIO14: 0 | AIP14: 0 | AIQ14: 0 | AIR14: 1 | AIS14: 0 | AIT14: 0 | AIU14: 0 | AIV14: 0 | AIW14: 0 | AIX14: 0 | AIY14: 1 | AIZ14: 0 | AJA14: 0 | AJB14: 0 | AJC14: 0 | AJD14: 0 | AJE14: 0 | AJF14: 0 | AJG14: 0 | AJH14: 0 | AJI14: 0 | AJJ14: 26 | AJK14: 0 | AJL14: 0 | AJM14: 0 | AJN14: 0 | AJO14: 0 | AJP14: 0 | AJQ14: 1 | AJR14: 0 | AJS14: 0 | AJT14: 0 | AJU14: 0 | AJV14: 0 | AJW14: 0 | AJX14: 37 | AJY14: 0 | AJZ14: 0 | AKA14: =SUMPRODUCT((SUBTOTAL(3,INDIRECT("C"&ROW(AKA35:AKA135))))*(AKA35:AKA135=50)) -> 0 | AKB14: 0 | AKC14: 0 | AKD14: 0 | AKE14: 0 | AKF14: 0 | AKG14: 0 | AKH14: 0 | AKI14: 0 | AKJ14: 0 | AKK14: 0 | AKL14: 0 | AKM14: 0 | AKN14: 0 | AKO14: 0 | AKP14: 0 | AKQ14: 0 | AKR14: 0 | AKS14: 0 | AKT14: 0 | AKU14: 0 | AKV14: 0 | AKW14: 0 | AKX14: 0 | AKY14: 0 | AKZ14: 0 | ALA14: 0 | ALB14: 0 | ALC14: 0 | ALD14: 0 | ALE14: 0 | ALF14: 0 | ALG14: 0 | ALH14: 27 | ALI14: 0 | ALJ14: 1 | ALK14: 0 | ALL14: 0 | ALM14: 0 | ALN14: 0 | ALO14: 1 | ALP14: 1 | ALQ14: 0 | ALR14: 0 | ALS14: 0 | ALT14: 0 | ALU14: 16 | ALV14: 0 | ALW14: 0 | ALX14: 0 | ALY14: 0 | ALZ14: 0 | AMA14: 0 | AMB14: 0 | AMC14: 0 | AMD14: 0 | AME14: 0 | AMF14: 0 | AMG14: 0 | AMH14: 0 | AMI14: 0 | AMJ14: 0 | AMK14: 0 | AML14: 0 | AMM14: =SUMPRODUCT((SUBTOTAL(3,INDIRECT("C"&ROW(AMM35:AMM135))))*(AMM35:AMM135=50)) -> 0 | AMN14: 0 | AMO14: 0 | AMP14: 0 | AMQ14: 0 | AMR14: 9 | AMS14: 0 | AMT14: 1 | AMU14: 0 | AMV14: 0 | AMW14: 8 | AMX14: 40 | AMY14: 0 | AMZ14: 0 | ANA14: 0 | ANB14: 0 | ANC14: 0 | AND14: 0 | ANE14: 0 | ANF14: 0 | ANG14: 0 | ANH14: 3 | ANI14: 0 | ANJ14: 0 | ANK14: 0 | ANL14: 0 | ANM14: 0 | ANN14: 1 | ANO14: 1 | ANP14: 0 | ANQ14: 0 | ANR14: 0 | ANS14: 0 | ANT14: 0 | ANU14: 0 | ANV14: 0 | ANW14: 0 | ANX14: 0 | ANY14: 0 | ANZ14: 0 | AOA14: 0 | AOB14: 0 | AOC14: 0 | AOD14: 0 | AOE14: 0 | AOF14: 0 | AOG14: 1 | AOH14: 0 | AOI14: 25 | AOJ14: 0 | AOK14: 0 | AOL14: 0 | AOM14: 0 | AON14: 0 | AOO14: 0 | AOP14: 0 | AOQ14: 0 | AOR14: 0 | AOS14: 0 | AOT14: 0 | AOU14: 0 | AOV14: 0 | AOW14: 0 | AOX14: 0 | AOY14: =SUMPRODUCT((SUBTOTAL(3,INDIRECT("C"&ROW(AOY35:AOY135))))*(AOY35:AOY135=50)) -> 0 | AOZ14: 65 | APA14: 56 | APB14: 0 | APC14: 0 | APD14: 0 | APE14: 0 | APF14: 0 | APG14: 65 | APH14: 11 | API14: 0 | APJ14: 0 | APK14: 0 | APL14: 22 | APM14: 0 | APN14: 0 | APO14: 0 | APP14: 0 | APQ14: 0 | APR14: 0 | APS14: 0 | APT14: 0 | APU14: 0 | APV14: 0 | APW14: 0 | APX14: 0 | APY14: 0 | APZ14: 0 | AQA14: 0 | AQB14: 0 | AQC14: 0 | AQD14: 0 | AQE14: 0 | AQF14: 0 | AQG14: 0 | AQH14: 0 | AQI14: 0 | AQJ14: 0 | AQK14: 0
B15: Ferien | C15: =SUMPRODUCT((SUBTOTAL(3,INDIRECT("C"&ROW(C35:C135))))*(C35:C135=36)) -> 0 | D15: 47 | E15: 56 | F15: 55 | G15: 55 | H15: 0 | I15: 0 | J15: 3 | K15: 1 | L15: 1 | M15: 1 | N15: 1 | O15: 0 | P15: 0 | Q15: 0 | R15: 0 | S15: 0 | T15: 0 | U15: 0 | V15: 0 | W15: 0 | X15: 0 | Y15: 0 | Z15: 0 | AA15: 0 | AB15: 0 | AC15: 0 | AD15: 0 | AE15: 3 | AF15: 3 | AG15: 3 | AH15: 5 | AI15: 6 | AJ15: 0 | AK15: 0 | AL15: 14 | AM15: 14 | AN15: 14 | AO15: 14 | AP15: 15 | AQ15: 0 | AR15: 0 | AS15: 30 | AT15: 30 | AU15: 30 | AV15: 30 | AW15: 30 | AX15: 0 | AY15: 0 | AZ15: 13 | BA15: 13 | BB15: 13 | BC15: 13 | BD15: 13 | BE15: 0 | BF15: 0 | BG15: 7 | BH15: 7 | BI15: 7 | BJ15: 7 | BK15: 6 | BL15: 0 | BM15: 0 | BN15: 5 | BO15: =SUMPRODUCT((SUBTOTAL(3,INDIRECT("C"&ROW(BO35:BO135))))*(BO35:BO135=36)) -> 5 | BP15: 4 | BQ15: 4 | BR15: 4 | BS15: 0 | BT15: 0 | BU15: 1 | BV15: 1 | BW15: 1 | BX15: 1 | BY15: 1 | BZ15: 0 | CA15: 0 | CB15: 3 | CC15: 3 | CD15: 3 | CE15: 3 | CF15: 3 | CG15: 0 | CH15: 0 | CI15: 29 | CJ15: 29 | CK15: 29 | CL15: 34 | CM15: 5 | CN15: 0 | CO15: 0 | CP15: 1 | CQ15: 34 | CR15: 29 | CS15: 28 | CT15: 28 | CU15: 0 | CV15: 0 | CW15: 22 | CX15: 23 | CY15: 23 | CZ15: 23 | DA15: 23 | DB15: 0 | DC15: 0 | DD15: 13 | DE15: 13 | DF15: 12 | DG15: 12 | DH15: 12 | DI15: 0 | DJ15: 0 | DK15: 6 | DL15: 6 | DM15: 6 | DN15: 6 | DO15: 6 | DP15: 0 | DQ15: 0 | DR15: 8 | DS15: 8 | DT15: 5 | DU15: 8 | DV15: 8 | DW15: 0 | DX15: 0 | DY15: 4 | DZ15: 4 | EA15: =SUMPRODUCT((SUBTOTAL(3,INDIRECT("C"&ROW(EA35:EA135))))*(EA35:EA135=36)) -> 5 | EB15: 0 | EC15: 21 | ED15: 0 | EE15: 0 | EF15: 0 | EG15: 0 | EH15: 0 | EI15: 0 | EJ15: 1 | EK15: 0 | EL15: 0 | EM15: 0 | EN15: 11 | EO15: 5 | EP15: 5 | EQ15: 5 | ER15: 0 | ES15: 0 | ET15: 4 | EU15: 5 | EV15: 5 | EW15: 2 | EX15: 6 | EY15: 0 | EZ15: 0 | FA15: 0 | FB15: 0 | FC15: 0 | FD15: 0 | FE15: 1 | FF15: 0 | FG15: 0 | FH15: 1 | FI15: 1 | FJ15: 1 | FK15: 1 | FL15: 1 | FM15: 0 | FN15: 0 | FO15: 3 | FP15: 3 | FQ15: 3 | FR15: 5 | FS15: 5 | FT15: 0 | FU15: 0 | FV15: 9 | FW15: 9 | FX15: 9 | FY15: 9 | FZ15: 9 | GA15: 0 | GB15: 0 | GC15: 23 | GD15: 23 | GE15: 23 | GF15: 23 | GG15: 23 | GH15: 0 | GI15: 0 | GJ15: 47 | GK15: 47 | GL15: 47 | GM15: =SUMPRODUCT((SUBTOTAL(3,INDIRECT("C"&ROW(GM35:GM135))))*(GM35:GM135=36)) -> 47 | GN15: 46 | GO15: 0 | GP15: 0 | GQ15: 52 | GR15: 53 | GS15: 53 | GT15: 56 | GU15: 56 | GV15: 0 | GW15: 0 | GX15: 60 | GY15: 60 | GZ15: 60 | HA15: 60 | HB15: 61 | HC15: 0 | HD15: 0 | HE15: 62 | HF15: 62 | HG15: 62 | HH15: 35 | HI15: 61 | HJ15: 0 | HK15: 0 | HL15: 56 | HM15: 57 | HN15: 57 | HO15: 56 | HP15: 57 | HQ15: 0 | HR15: 0 | HS15: 45 | HT15: 45 | HU15: 45 | HV15: 20 | HW15: 45 | HX15: 0 | HY15: 0 | HZ15: 33 | IA15: 33 | IB15: 31 | IC15: 30 | ID15: 30 | IE15: 0 | IF15: 0 | IG15: 24 | IH15: 25 | II15: 25 | IJ15: 24 | IK15: 24 | IL15: 0 | IM15: 0 | IN15: 12 | IO15: 12 | IP15: 11 | IQ15: 9 | IR15: 9 | IS15: 0 | IT15: 0 | IU15: 2 | IV15: 1 | IW15: 1 | IX15: 1 | IY15: =SUMPRODUCT((SUBTOTAL(3,INDIRECT("C"&ROW(IY35:IY135))))*(IY35:IY135=36)) -> 1 | IZ15: 0 | JA15: 0 | JB15: 0 | JC15: 0 | JD15: 0 | JE15: 0 | JF15: 0 | JG15: 0 | JH15: 0 | JI15: 1 | JJ15: 1 | JK15: 1 | JL15: 1 | JM15: 1 | JN15: 0 | JO15: 0 | JP15: 14 | JQ15: 14 | JR15: 14 | JS15: 12 | JT15: 21 | JU15: 0 | JV15: 0 | JW15: 25 | JX15: 25 | JY15: 25 | JZ15: 25 | KA15: 25 | KB15: 0 | KC15: 0 | KD15: 28 | KE15: 28 | KF15: 28 | KG15: 28 | KH15: 28 | KI15: 0 | KJ15: 0 | KK15: 18 | KL15: 17 | KM15: 17 | KN15: 17 | KO15: 17 | KP15: 0 | KQ15: 0 | KR15: 21 | KS15: 22 | KT15: 24 | KU15: 20 | KV15: 10 | KW15: 0 | KX15: 0 | KY15: 1 | KZ15: 1 | LA15: 0 | LB15: 0 | LC15: 0 | LD15: 0 | LE15: 0 | LF15: 0 | LG15: 0 | LH15: 0 | LI15: 0 | LJ15: 0 | LK15: =SUMPRODUCT((SUBTOTAL(3,INDIRECT("C"&ROW(LK35:LK135))))*(LK35:LK135=36)) -> 0 | LL15: 0 | LM15: 0 | LN15: 0 | LO15: 1 | LP15: 0 | LQ15: 0 | LR15: 0 | LS15: 0 | LT15: 0 | LU15: 0 | LV15: 0 | LW15: 0 | LX15: 0 | LY15: 0 | LZ15: 0 | MA15: 0 | MB15: 0 | MC15: 0 | MD15: 0 | ME15: 0 | MF15: 0 | MG15: 0 | MH15: 0 | MI15: 0 | MJ15: 0 | MK15: 0 | ML15: 0 | MM15: 0 | MN15: 0 | MO15: 0 | MP15: 0 | MQ15: 0 | MR15: 1 | MS15: 2 | MT15: 0 | MU15: 0 | MV15: 57 | MW15: 59 | MX15: 0 | MY15: 26 | MZ15: 61 | NA15: 0 | NB15: 0 | NC15: 61 | ND15: 60 | NE15: 0 | NF15: 43 | NG15: 58 | NH15: 0 | NI15: 0 | NJ15: 8 | NK15: 3 | NL15: 2 | NM15: 1 | NN15: 1 | NO15: 0 | NP15: 0 | NQ15: 0 | NR15: 0 | NS15: 0 | NT15: 0 | NU15: 0 | NV15: 0 | NW15: =SUMPRODUCT((SUBTOTAL(3,INDIRECT("C"&ROW(NW35:NW135))))*(NW35:NW135=36)) -> 0 | NX15: 0 | NY15: 0 | NZ15: 0 | OA15: 0 | OB15: 0 | OC15: 0 | OD15: 0 | OE15: 3 | OF15: 3 | OG15: 3 | OH15: 3 | OI15: 4 | OJ15: 0 | OK15: 0 | OL15: 14 | OM15: 13 | ON15: 11 | OO15: 11 | OP15: 11 | OQ15: 0 | OR15: 0 | OS15: 11 | OT15: 11 | OU15: 11 | OV15: 11 | OW15: 11 | OX15: 0 | OY15: 0 | OZ15: 9 | PA15: 9 | PB15: 9 | PC15: 9 | PD15: 10 | PE15: 0 | PF15: 0 | PG15: 15 | PH15: 16 | PI15: 16 | PJ15: 18 | PK15: 19 | PL15: 0 | PM15: 0 | PN15: 20 | PO15: 19 | PP15: 17 | PQ15: 16 | PR15: 16 | PS15: 0 | PT15: 0 | PU15: 5 | PV15: 5 | PW15: 5 | PX15: 5 | PY15: 5 | PZ15: 0 | QA15: 0 | QB15: 2 | QC15: 1 | QD15: 1 | QE15: 1 | QF15: 1 | QG15: 0 | QH15: 0 | QI15: =SUMPRODUCT((SUBTOTAL(3,INDIRECT("C"&ROW(QI35:QI135))))*(QI35:QI135=36)) -> 0 | QJ15: 0 | QK15: 0 | QL15: 0 | QM15: 0 | QN15: 0 | QO15: 0 | QP15: 0 | QQ15: 0 | QR15: 0 | QS15: 1 | QT15: 1 | QU15: 0 | QV15: 0 | QW15: 15 | QX15: 14 | QY15: 15 | QZ15: 16 | RA15: 18 | RB15: 0 | RC15: 0 | RD15: 42 | RE15: 42 | RF15: 41 | RG15: 45 | RH15: 8 | RI15: 0 | RJ15: 0 | RK15: 0 | RL15: 30 | RM15: 27 | RN15: 26 | RO15: 26 | RP15: 0 | RQ15: 0 | RR15: 14 | RS15: 13 | RT15: 17 | RU15: 9 | RV15: 23 | RW15: 0 | RX15: 0 | RY15: 4 | RZ15: 4 | SA15: 3 | SB15: 3 | SC15: 3 | SD15: 0 | SE15: 0 | SF15: 2 | SG15: 2 | SH15: 2 | SI15: 1 | SJ15: 1 | SK15: 0 | SL15: 0 | SM15: 0 | SN15: 0 | SO15: 0 | SP15: 0 | SQ15: 1 | SR15: 0 | SS15: 0 | ST15: 2 | SU15: =SUMPRODUCT((SUBTOTAL(3,INDIRECT("C"&ROW(SU35:SU135))))*(SU35:SU135=36)) -> 3 | SV15: 3 | SW15: 1 | SX15: 22 | SY15: 0 | SZ15: 0 | TA15: 2 | TB15: 1 | TC15: 1 | TD15: 1 | TE15: 1 | TF15: 0 | TG15: 0 | TH15: 4 | TI15: 11 | TJ15: 6 | TK15: 6 | TL15: 6 | TM15: 0 | TN15: 0 | TO15: 7 | TP15: 7 | TQ15: 7 | TR15: 6 | TS15: 7 | TT15: 0 | TU15: 0 | TV15: 5 | TW15: 5 | TX15: 5 | TY15: 6 | TZ15: 6 | UA15: 0 | UB15: 0 | UC15: 19 | UD15: 20 | UE15: 20 | UF15: 21 | UG15: 22 | UH15: 0 | UI15: 0 | UJ15: 44 | UK15: 44 | UL15: 44 | UM15: 44 | UN15: 44 | UO15: 0 | UP15: 0 | UQ15: 46 | UR15: 47 | US15: 48 | UT15: 48 | UU15: 49 | UV15: 0 | UW15: 0 | UX15: 51 | UY15: 51 | UZ15: 51 | VA15: 54 | VB15: 54 | VC15: 0 | VD15: 0 | VE15: 56 | VF15: 56 | VG15: =SUMPRODUCT((SUBTOTAL(3,INDIRECT("C"&ROW(VG35:VG135))))*(VG35:VG135=36)) -> 56 | VH15: 57 | VI15: 40 | VJ15: 0 | VK15: 0 | VL15: 57 | VM15: 58 | VN15: 58 | VO15: 57 | VP15: 57 | VQ15: 0 | VR15: 0 | VS15: 46 | VT15: 45 | VU15: 45 | VV15: 43 | VW15: 25 | VX15: 0 | VY15: 0 | VZ15: 30 | WA15: 30 | WB15: 30 | WC15: 30 | WD15: 30 | WE15: 0 | WF15: 0 | WG15: 28 | WH15: 29 | WI15: 29 | WJ15: 29 | WK15: 28 | WL15: 0 | WM15: 0 | WN15: 20 | WO15: 20 | WP15: 19 | WQ15: 18 | WR15: 18 | WS15: 0 | WT15: 0 | WU15: 7 | WV15: 7 | WW15: 6 | WX15: 5 | WY15: 5 | WZ15: 0 | XA15: 0 | XB15: 1 | XC15: 0 | XD15: 0 | XE15: 0 | XF15: 0 | XG15: 0 | XH15: 0 | XI15: 1 | XJ15: 1 | XK15: 2 | XL15: 1 | XM15: 1 | XN15: 0 | XO15: 0 | XP15: 10 | XQ15: 10 | XR15: 10 | XS15: =SUMPRODUCT((SUBTOTAL(3,INDIRECT("C"&ROW(XS35:XS135))))*(XS35:XS135=36)) -> 10 | XT15: 10 | XU15: 0 | XV15: 0 | XW15: 17 | XX15: 17 | XY15: 17 | XZ15: 17 | YA15: 17 | YB15: 0 | YC15: 0 | YD15: 19 | YE15: 18 | YF15: 18 | YG15: 18 | YH15: 18 | YI15: 0 | YJ15: 0 | YK15: 13 | YL15: 15 | YM15: 15 | YN15: 15 | YO15: 16 | YP15: 0 | YQ15: 0 | YR15: 19 | YS15: 18 | YT15: 19 | YU15: 18 | YV15: 16 | YW15: 0 | YX15: 0 | YY15: 3 | YZ15: 2 | ZA15: 2 | ZB15: 2 | ZC15: 2 | ZD15: 0 | ZE15: 0 | ZF15: 0 | ZG15: 1 | ZH15: 0 | ZI15: 0 | ZJ15: 0 | ZK15: 0 | ZL15: 0 | ZM15: 0 | ZN15: 0 | ZO15: 0 | ZP15: 0 | ZQ15: 0 | ZR15: 0 | ZS15: 0 | ZT15: 0 | ZU15: 0 | ZV15: 0 | ZW15: 0 | ZX15: 0 | ZY15: 0 | ZZ15: 0 | AAA15: 0 | AAB15: 0 | AAC15: 0 | AAD15: 0 | AAE15: =SUMPRODUCT((SUBTOTAL(3,INDIRECT("C"&ROW(AAE35:AAE135))))*(AAE35:AAE135=36)) -> 0 | AAF15: 0 | AAG15: 0 | AAH15: 0 | AAI15: 0 | AAJ15: 0 | AAK15: 0 | AAL15: 0 | AAM15: 0 | AAN15: 0 | AAO15: 1 | AAP15: 1 | AAQ15: 2 | AAR15: 2 | AAS15: 3 | AAT15: 0 | AAU15: 0 | AAV15: 50 | AAW15: 52 | AAX15: 66 | AAY15: 0 | AAZ15: 10 | ABA15: 0 | ABB15: 0 | ABC15: 66 | ABD15: 66 | ABE15: 65 | ABF15: 0 | ABG15: 51 | ABH15: 0 | ABI15: 0 | ABJ15: 28 | ABK15: 6 | ABL15: 2 | ABM15: 1 | ABN15: 1 | ABO15: 0 | ABP15: 0 | ABQ15: 0 | ABR15: 0 | ABS15: 0 | ABT15: 0 | ABU15: 0 | ABV15: 0 | ABW15: 0 | ABX15: 1 | ABY15: 1 | ABZ15: 1 | ACA15: 1 | ACB15: 1 | ACC15: 0 | ACD15: 0 | ACE15: 4 | ACF15: 4 | ACG15: 4 | ACH15: 2 | ACI15: 4 | ACJ15: 0 | ACK15: 0 | ACL15: 11 | ACM15: 12 | ACN15: 10 | ACO15: 10 | ACP15: 10 | ACQ15: =SUMPRODUCT((SUBTOTAL(3,INDIRECT("C"&ROW(ACQ35:ACQ135))))*(ACQ35:ACQ135=36)) -> 0 | ACR15: 0 | ACS15: 18 | ACT15: 18 | ACU15: 18 | ACV15: 19 | ACW15: 19 | ACX15: 0 | ACY15: 0 | ACZ15: 30 | ADA15: 31 | ADB15: 30 | ADC15: 30 | ADD15: 29 | ADE15: 0 | ADF15: 0 | ADG15: 12 | ADH15: 11 | ADI15: 11 | ADJ15: 11 | ADK15: 11 | ADL15: 0 | ADM15: 0 | ADN15: 6 | ADO15: 5 | ADP15: 5 | ADQ15: 5 | ADR15: 5 | ADS15: 0 | ADT15: 0 | ADU15: 4 | ADV15: 2 | ADW15: 2 | ADX15: 2 | ADY15: 2 | ADZ15: 0 | AEA15: 0 | AEB15: 1 | AEC15: 0 | AED15: 0 | AEE15: 4 | AEF15: 0 | AEG15: 0 | AEH15: 0 | AEI15: 2 | AEJ15: 2 | AEK15: 2 | AEL15: 3 | AEM15: 3 | AEN15: 0 | AEO15: 0 | AEP15: 26 | AEQ15: 26 | AER15: 26 | AES15: 30 | AET15: 13 | AEU15: 0 | AEV15: 0 | AEW15: 2 | AEX15: 41 | AEY15: 35 | AEZ15: 36 | AFA15: 35 | AFB15: 0 | AFC15: =SUMPRODUCT((SUBTOTAL(3,INDIRECT("C"&ROW(AFC35:AFC135))))*(AFC35:AFC135=36)) -> 0 | AFD15: 26 | AFE15: 25 | AFF15: 24 | AFG15: 24 | AFH15: 24 | AFI15: 0 | AFJ15: 0 | AFK15: 8 | AFL15: 6 | AFM15: 5 | AFN15: 5 | AFO15: 5 | AFP15: 0 | AFQ15: 0 | AFR15: 4 | AFS15: 7 | AFT15: 7 | AFU15: 7 | AFV15: 5 | AFW15: 0 | AFX15: 0 | AFY15: 5 | AFZ15: 3 | AGA15: 3 | AGB15: 3 | AGC15: 3 | AGD15: 0 | AGE15: 0 | AGF15: 2 | AGG15: 2 | AGH15: 2 | AGI15: 0 | AGJ15: 8 | AGK15: 0 | AGL15: 0 | AGM15: 3 | AGN15: 3 | AGO15: 3 | AGP15: 3 | AGQ15: 3 | AGR15: 0 | AGS15: 0 | AGT15: 0 | AGU15: 8 | AGV15: 4 | AGW15: 4 | AGX15: 4 | AGY15: 0 | AGZ15: 0 | AHA15: 2 | AHB15: 2 | AHC15: 2 | AHD15: 0 | AHE15: 2 | AHF15: 0 | AHG15: 0 | AHH15: 1 | AHI15: 1 | AHJ15: 1 | AHK15: 1 | AHL15: 1 | AHM15: 0 | AHN15: 0 | AHO15: =SUMPRODUCT((SUBTOTAL(3,INDIRECT("C"&ROW(AHO35:AHO135))))*(AHO35:AHO135=36)) -> 2 | AHP15: 2 | AHQ15: 6 | AHR15: 6 | AHS15: 7 | AHT15: 0 | AHU15: 0 | AHV15: 7 | AHW15: 7 | AHX15: 7 | AHY15: 7 | AHZ15: 7 | AIA15: 0 | AIB15: 0 | AIC15: 19 | AID15: 19 | AIE15: 20 | AIF15: 22 | AIG15: 22 | AIH15: 0 | AII15: 0 | AIJ15: 46 | AIK15: 47 | AIL15: 47 | AIM15: 50 | AIN15: 50 | AIO15: 0 | AIP15: 0 | AIQ15: 60 | AIR15: 59 | AIS15: 60 | AIT15: 61 | AIU15: 60 | AIV15: 0 | AIW15: 0 | AIX15: 62 | AIY15: 61 | AIZ15: 62 | AJA15: 62 | AJB15: 62 | AJC15: 0 | AJD15: 0 | AJE15: 62 | AJF15: 62 | AJG15: 62 | AJH15: 63 | AJI15: 63 | AJJ15: 0 | AJK15: 0 | AJL15: 64 | AJM15: 64 | AJN15: 63 | AJO15: 63 | AJP15: 63 | AJQ15: 0 | AJR15: 0 | AJS15: 49 | AJT15: 48 | AJU15: 48 | AJV15: 46 | AJW15: 46 | AJX15: 0 | AJY15: 0 | AJZ15: 34 | AKA15: =SUMPRODUCT((SUBTOTAL(3,INDIRECT("C"&ROW(AKA35:AKA135))))*(AKA35:AKA135=36)) -> 33 | AKB15: 33 | AKC15: 31 | AKD15: 31 | AKE15: 0 | AKF15: 0 | AKG15: 24 | AKH15: 24 | AKI15: 24 | AKJ15: 24 | AKK15: 24 | AKL15: 0 | AKM15: 0 | AKN15: 23 | AKO15: 20 | AKP15: 18 | AKQ15: 17 | AKR15: 17 | AKS15: 0 | AKT15: 0 | AKU15: 10 | AKV15: 10 | AKW15: 10 | AKX15: 10 | AKY15: 10 | AKZ15: 0 | ALA15: 0 | ALB15: 2 | ALC15: 0 | ALD15: 0 | ALE15: 0 | ALF15: 0 | ALG15: 0 | ALH15: 0 | ALI15: 1 | ALJ15: 1 | ALK15: 1 | ALL15: 2 | ALM15: 1 | ALN15: 0 | ALO15: 0 | ALP15: 13 | ALQ15: 13 | ALR15: 13 | ALS15: 13 | ALT15: 13 | ALU15: 0 | ALV15: 0 | ALW15: 22 | ALX15: 22 | ALY15: 22 | ALZ15: 22 | AMA15: 22 | AMB15: 0 | AMC15: 0 | AMD15: 23 | AME15: 22 | AMF15: 22 | AMG15: 22 | AMH15: 22 | AMI15: 0 | AMJ15: 0 | AMK15: 19 | AML15: 20 | AMM15: =SUMPRODUCT((SUBTOTAL(3,INDIRECT("C"&ROW(AMM35:AMM135))))*(AMM35:AMM135=36)) -> 20 | AMN15: 20 | AMO15: 20 | AMP15: 0 | AMQ15: 0 | AMR15: 11 | AMS15: 20 | AMT15: 20 | AMU15: 20 | AMV15: 20 | AMW15: 0 | AMX15: 0 | AMY15: 7 | AMZ15: 7 | ANA15: 7 | ANB15: 7 | ANC15: 7 | AND15: 0 | ANE15: 0 | ANF15: 0 | ANG15: 0 | ANH15: 1 | ANI15: 0 | ANJ15: 0 | ANK15: 0 | ANL15: 0 | ANM15: 0 | ANN15: 0 | ANO15: 0 | ANP15: 0 | ANQ15: 0 | ANR15: 0 | ANS15: 0 | ANT15: 0 | ANU15: 0 | ANV15: 1 | ANW15: 1 | ANX15: 1 | ANY15: 0 | ANZ15: 0 | AOA15: 0 | AOB15: 0 | AOC15: 0 | AOD15: 0 | AOE15: 0 | AOF15: 0 | AOG15: 0 | AOH15: 0 | AOI15: 0 | AOJ15: 0 | AOK15: 0 | AOL15: 0 | AOM15: 0 | AON15: 0 | AOO15: 0 | AOP15: 0 | AOQ15: 0 | AOR15: 0 | AOS15: 1 | AOT15: 0 | AOU15: 0 | AOV15: 20 | AOW15: 21 | AOX15: 34 | AOY15: =SUMPRODUCT((SUBTOTAL(3,INDIRECT("C"&ROW(AOY35:AOY135))))*(AOY35:AOY135=36)) -> 64 | AOZ15: 0 | APA15: 0 | APB15: 0 | APC15: 65 | APD15: 65 | APE15: 64 | APF15: 64 | APG15: 0 | APH15: 0 | API15: 0 | APJ15: 34 | APK15: 26 | APL15: 8 | APM15: 9 | APN15: 9 | APO15: 0 | APP15: 0 | APQ15: 1 | APR15: 1 | APS15: 0 | APT15: 0 | APU15: 0 | APV15: 0 | APW15: 0 | APX15: 0 | APY15: 0 | APZ15: 0 | AQA15: 0 | AQB15: 0 | AQC15: 0 | AQD15: 0 | AQE15: 0 | AQF15: 0 | AQG15: 0 | AQH15: 0 | AQI15: 0 | AQJ15: 0 | AQK15: 0
B16: Wochenende | C16: =SUMPRODUCT((SUBTOTAL(3,INDIRECT("C"&ROW(C35:C135))))*(C35:C135=15)) -> 0 | D16: 0 | E16: 0 | F16: 0 | G16: 0 | H16: 49 | I16: 68 | J16: 0 | K16: 0 | L16: 0 | M16: 0 | N16: 0 | O16: 68 | P16: 68 | Q16: 0 | R16: 0 | S16: 0 | T16: 0 | U16: 0 | V16: 68 | W16: 68 | X16: 0 | Y16: 0 | Z16: 0 | AA16: 0 | AB16: 0 | AC16: 68 | AD16: 68 | AE16: 0 | AF16: 0 | AG16: 0 | AH16: 0 | AI16: 0 | AJ16: 68 | AK16: 68 | AL16: 0 | AM16: 0 | AN16: 0 | AO16: 0 | AP16: 0 | AQ16: 68 | AR16: 68 | AS16: 0 | AT16: 0 | AU16: 0 | AV16: 0 | AW16: 0 | AX16: 68 | AY16: 68 | AZ16: 0 | BA16: 0 | BB16: 0 | BC16: 0 | BD16: 0 | BE16: 67 | BF16: 68 | BG16: 0 | BH16: 0 | BI16: 0 | BJ16: 0 | BK16: 0 | BL16: 65 | BM16: 65 | BN16: 0 | BO16: =SUMPRODUCT((SUBTOTAL(3,INDIRECT("C"&ROW(BO35:BO135))))*(BO35:BO135=15)) -> 0 | BP16: 0 | BQ16: 0 | BR16: 0 | BS16: 65 | BT16: 65 | BU16: 0 | BV16: 0 | BW16: 0 | BX16: 0 | BY16: 0 | BZ16: 68 | CA16: 67 | CB16: 0 | CC16: 0 | CD16: 0 | CE16: 0 | CF16: 0 | CG16: 68 | CH16: 68 | CI16: 0 | CJ16: 0 | CK16: 0 | CL16: 0 | CM16: 0 | CN16: 68 | CO16: 62 | CP16: 0 | CQ16: 0 | CR16: 0 | CS16: 0 | CT16: 0 | CU16: 68 | CV16: 68 | CW16: 0 | CX16: 0 | CY16: 0 | CZ16: 0 | DA16: 0 | DB16: 65 | DC16: 65 | DD16: 0 | DE16: 0 | DF16: 0 | DG16: 0 | DH16: 0 | DI16: 68 | DJ16: 68 | DK16: 0 | DL16: 0 | DM16: 0 | DN16: 0 | DO16: 0 | DP16: 65 | DQ16: 68 | DR16: 0 | DS16: 0 | DT16: 0 | DU16: 0 | DV16: 0 | DW16: 67 | DX16: 65 | DY16: 0 | DZ16: 0 | EA16: =SUMPRODUCT((SUBTOTAL(3,INDIRECT("C"&ROW(EA35:EA135))))*(EA35:EA135=15)) -> 0 | EB16: 0 | EC16: 0 | ED16: 68 | EE16: 68 | EF16: 0 | EG16: 0 | EH16: 0 | EI16: 0 | EJ16: 0 | EK16: 54 | EL16: 64 | EM16: 0 | EN16: 0 | EO16: 0 | EP16: 0 | EQ16: 0 | ER16: 68 | ES16: 68 | ET16: 0 | EU16: 0 | EV16: 0 | EW16: 0 | EX16: 0 | EY16: 67 | EZ16: 65 | FA16: 0 | FB16: 0 | FC16: 0 | FD16: 0 | FE16: 0 | FF16: 68 | FG16: 68 | FH16: 0 | FI16: 0 | FJ16: 0 | FK16: 0 | FL16: 0 | FM16: 68 | FN16: 68 | FO16: 0 | FP16: 0 | FQ16: 0 | FR16: 0 | FS16: 0 | FT16: 68 | FU16: 66 | FV16: 0 | FW16: 0 | FX16: 0 | FY16: 0 | FZ16: 0 | GA16: 65 | GB16: 68 | GC16: 0 | GD16: 0 | GE16: 0 | GF16: 0 | GG16: 0 | GH16: 67 | GI16: 68 | GJ16: 0 | GK16: 0 | GL16: 0 | GM16: =SUMPRODUCT((SUBTOTAL(3,INDIRECT("C"&ROW(GM35:GM135))))*(GM35:GM135=15)) -> 0 | GN16: 0 | GO16: 68 | GP16: 67 | GQ16: 0 | GR16: 0 | GS16: 0 | GT16: 0 | GU16: 0 | GV16: 68 | GW16: 67 | GX16: 0 | GY16: 0 | GZ16: 0 | HA16: 0 | HB16: 0 | HC16: 68 | HD16: 68 | HE16: 0 | HF16: 0 | HG16: 0 | HH16: 0 | HI16: 0 | HJ16: 68 | HK16: 68 | HL16: 0 | HM16: 0 | HN16: 0 | HO16: 0 | HP16: 0 | HQ16: 68 | HR16: 68 | HS16: 0 | HT16: 0 | HU16: 0 | HV16: 0 | HW16: 0 | HX16: 68 | HY16: 68 | HZ16: 0 | IA16: 0 | IB16: 0 | IC16: 0 | ID16: 0 | IE16: 67 | IF16: 67 | IG16: 0 | IH16: 0 | II16: 0 | IJ16: 0 | IK16: 0 | IL16: 66 | IM16: 65 | IN16: 0 | IO16: 0 | IP16: 0 | IQ16: 0 | IR16: 0 | IS16: 65 | IT16: 65 | IU16: 0 | IV16: 0 | IW16: 0 | IX16: 0 | IY16: =SUMPRODUCT((SUBTOTAL(3,INDIRECT("C"&ROW(IY35:IY135))))*(IY35:IY135=15)) -> 0 | IZ16: 68 | JA16: 68 | JB16: 0 | JC16: 0 | JD16: 0 | JE16: 0 | JF16: 0 | JG16: 68 | JH16: 66 | JI16: 0 | JJ16: 0 | JK16: 0 | JL16: 0 | JM16: 0 | JN16: 67 | JO16: 68 | JP16: 0 | JQ16: 0 | JR16: 0 | JS16: 0 | JT16: 0 | JU16: 68 | JV16: 68 | JW16: 0 | JX16: 0 | JY16: 0 | JZ16: 0 | KA16: 0 | KB16: 68 | KC16: 68 | KD16: 0 | KE16: 0 | KF16: 0 | KG16: 0 | KH16: 0 | KI16: 67 | KJ16: 67 | KK16: 0 | KL16: 0 | KM16: 0 | KN16: 0 | KO16: 0 | KP16: 59 | KQ16: 68 | KR16: 0 | KS16: 0 | KT16: 0 | KU16: 0 | KV16: 0 | KW16: 67 | KX16: 67 | KY16: 0 | KZ16: 0 | LA16: 0 | LB16: 0 | LC16: 0 | LD16: 68 | LE16: 68 | LF16: 0 | LG16: 0 | LH16: 0 | LI16: 0 | LJ16: 0 | LK16: =SUMPRODUCT((SUBTOTAL(3,INDIRECT("C"&ROW(LK35:LK135))))*(LK35:LK135=15)) -> 68 | LL16: 67 | LM16: 0 | LN16: 0 | LO16: 0 | LP16: 0 | LQ16: 0 | LR16: 68 | LS16: 68 | LT16: 0 | LU16: 0 | LV16: 0 | LW16: 0 | LX16: 0 | LY16: 67 | LZ16: 68 | MA16: 0 | MB16: 0 | MC16: 0 | MD16: 0 | ME16: 0 | MF16: 65 | MG16: 42 | MH16: 0 | MI16: 0 | MJ16: 0 | MK16: 0 | ML16: 0 | MM16: 65 | MN16: 65 | MO16: 0 | MP16: 0 | MQ16: 0 | MR16: 0 | MS16: 0 | MT16: 68 | MU16: 68 | MV16: 0 | MW16: 0 | MX16: 0 | MY16: 0 | MZ16: 0 | NA16: 68 | NB16: 68 | NC16: 0 | ND16: 0 | NE16: 0 | NF16: 0 | NG16: 0 | NH16: 68 | NI16: 68 | NJ16: 0 | NK16: 0 | NL16: 0 | NM16: 0 | NN16: 0 | NO16: 68 | NP16: 68 | NQ16: 0 | NR16: 0 | NS16: 0 | NT16: 0 | NU16: 0 | NV16: 68 | NW16: =SUMPRODUCT((SUBTOTAL(3,INDIRECT("C"&ROW(NW35:NW135))))*(NW35:NW135=15)) -> 68 | NX16: 0 | NY16: 0 | NZ16: 0 | OA16: 0 | OB16: 0 | OC16: 68 | OD16: 68 | OE16: 0 | OF16: 0 | OG16: 0 | OH16: 0 | OI16: 0 | OJ16: 68 | OK16: 68 | OL16: 0 | OM16: 0 | ON16: 0 | OO16: 0 | OP16: 0 | OQ16: 68 | OR16: 68 | OS16: 0 | OT16: 0 | OU16: 0 | OV16: 0 | OW16: 0 | OX16: 68 | OY16: 68 | OZ16: 0 | PA16: 0 | PB16: 0 | PC16: 0 | PD16: 0 | PE16: 68 | PF16: 68 | PG16: 0 | PH16: 0 | PI16: 0 | PJ16: 0 | PK16: 0 | PL16: 68 | PM16: 68 | PN16: 0 | PO16: 0 | PP16: 0 | PQ16: 0 | PR16: 0 | PS16: 67 | PT16: 68 | PU16: 0 | PV16: 0 | PW16: 0 | PX16: 0 | PY16: 0 | PZ16: 68 | QA16: 68 | QB16: 0 | QC16: 0 | QD16: 0 | QE16: 0 | QF16: 0 | QG16: 68 | QH16: 68 | QI16: =SUMPRODUCT((SUBTOTAL(3,INDIRECT("C"&ROW(QI35:QI135))))*(QI35:QI135=15)) -> 0 | QJ16: 0 | QK16: 0 | QL16: 0 | QM16: 0 | QN16: 68 | QO16: 68 | QP16: 0 | QQ16: 0 | QR16: 0 | QS16: 0 | QT16: 0 | QU16: 68 | QV16: 68 | QW16: 0 | QX16: 0 | QY16: 0 | QZ16: 0 | RA16: 1 | RB16: 68 | RC16: 68 | RD16: 0 | RE16: 0 | RF16: 0 | RG16: 0 | RH16: 0 | RI16: 68 | RJ16: 31 | RK16: 0 | RL16: 0 | RM16: 0 | RN16: 0 | RO16: 0 | RP16: 67 | RQ16: 65 | RR16: 0 | RS16: 0 | RT16: 0 | RU16: 0 | RV16: 0 | RW16: 67 | RX16: 67 | RY16: 0 | RZ16: 0 | SA16: 0 | SB16: 0 | SC16: 0 | SD16: 68 | SE16: 52 | SF16: 0 | SG16: 0 | SH16: 0 | SI16: 0 | SJ16: 0 | SK16: 68 | SL16: 68 | SM16: 0 | SN16: 0 | SO16: 0 | SP16: 0 | SQ16: 0 | SR16: 68 | SS16: 68 | ST16: 0 | SU16: =SUMPRODUCT((SUBTOTAL(3,INDIRECT("C"&ROW(SU35:SU135))))*(SU35:SU135=15)) -> 0 | SV16: 0 | SW16: 0 | SX16: 0 | SY16: 68 | SZ16: 68 | TA16: 0 | TB16: 0 | TC16: 0 | TD16: 0 | TE16: 0 | TF16: 68 | TG16: 56 | TH16: 0 | TI16: 0 | TJ16: 0 | TK16: 0 | TL16: 0 | TM16: 68 | TN16: 68 | TO16: 0 | TP16: 0 | TQ16: 0 | TR16: 0 | TS16: 0 | TT16: 68 | TU16: 68 | TV16: 0 | TW16: 0 | TX16: 0 | TY16: 0 | TZ16: 0 | UA16: 68 | UB16: 65 | UC16: 0 | UD16: 0 | UE16: 0 | UF16: 0 | UG16: 0 | UH16: 67 | UI16: 67 | UJ16: 0 | UK16: 0 | UL16: 0 | UM16: 0 | UN16: 0 | UO16: 67 | UP16: 68 | UQ16: 0 | UR16: 0 | US16: 0 | UT16: 0 | UU16: 0 | UV16: 68 | UW16: 68 | UX16: 0 | UY16: 0 | UZ16: 0 | VA16: 0 | VB16: 0 | VC16: 68 | VD16: 68 | VE16: 0 | VF16: 0 | VG16: =SUMPRODUCT((SUBTOTAL(3,INDIRECT("C"&ROW(VG35:VG135))))*(VG35:VG135=15)) -> 0 | VH16: 0 | VI16: 0 | VJ16: 66 | VK16: 66 | VL16: 0 | VM16: 0 | VN16: 0 | VO16: 0 | VP16: 0 | VQ16: 66 | VR16: 66 | VS16: 0 | VT16: 0 | VU16: 0 | VV16: 0 | VW16: 0 | VX16: 66 | VY16: 66 | VZ16: 0 | WA16: 0 | WB16: 0 | WC16: 0 | WD16: 0 | WE16: 65 | WF16: 65 | WG16: 0 | WH16: 0 | WI16: 0 | WJ16: 0 | WK16: 0 | WL16: 68 | WM16: 68 | WN16: 0 | WO16: 0 | WP16: 0 | WQ16: 0 | WR16: 0 | WS16: 66 | WT16: 66 | WU16: 0 | WV16: 0 | WW16: 0 | WX16: 0 | WY16: 0 | WZ16: 68 | XA16: 68 | XB16: 0 | XC16: 0 | XD16: 0 | XE16: 0 | XF16: 0 | XG16: 68 | XH16: 43 | XI16: 0 | XJ16: 0 | XK16: 0 | XL16: 0 | XM16: 0 | XN16: 68 | XO16: 67 | XP16: 0 | XQ16: 0 | XR16: 0 | XS16: =SUMPRODUCT((SUBTOTAL(3,INDIRECT("C"&ROW(XS35:XS135))))*(XS35:XS135=15)) -> 0 | XT16: 0 | XU16: 68 | XV16: 68 | XW16: 0 | XX16: 0 | XY16: 0 | XZ16: 0 | YA16: 0 | YB16: 68 | YC16: 68 | YD16: 0 | YE16: 0 | YF16: 0 | YG16: 0 | YH16: 0 | YI16: 67 | YJ16: 68 | YK16: 0 | YL16: 0 | YM16: 0 | YN16: 0 | YO16: 0 | YP16: 68 | YQ16: 68 | YR16: 0 | YS16: 0 | YT16: 0 | YU16: 0 | YV16: 0 | YW16: 43 | YX16: 62 | YY16: 0 | YZ16: 0 | ZA16: 0 | ZB16: 0 | ZC16: 0 | ZD16: 68 | ZE16: 68 | ZF16: 0 | ZG16: 0 | ZH16: 0 | ZI16: 0 | ZJ16: 0 | ZK16: 68 | ZL16: 68 | ZM16: 0 | ZN16: 0 | ZO16: 0 | ZP16: 0 | ZQ16: 0 | ZR16: 68 | ZS16: 68 | ZT16: 0 | ZU16: 0 | ZV16: 0 | ZW16: 0 | ZX16: 0 | ZY16: 68 | ZZ16: 68 | AAA16: 0 | AAB16: 0 | AAC16: 0 | AAD16: 0 | AAE16: =SUMPRODUCT((SUBTOTAL(3,INDIRECT("C"&ROW(AAE35:AAE135))))*(AAE35:AAE135=15)) -> 0 | AAF16: 68 | AAG16: 68 | AAH16: 0 | AAI16: 0 | AAJ16: 0 | AAK16: 0 | AAL16: 0 | AAM16: 68 | AAN16: 68 | AAO16: 0 | AAP16: 0 | AAQ16: 0 | AAR16: 0 | AAS16: 0 | AAT16: 68 | AAU16: 68 | AAV16: 0 | AAW16: 0 | AAX16: 0 | AAY16: 0 | AAZ16: 0 | ABA16: 66 | ABB16: 66 | ABC16: 0 | ABD16: 0 | ABE16: 0 | ABF16: 0 | ABG16: 0 | ABH16: 62 | ABI16: 56 | ABJ16: 0 | ABK16: 0 | ABL16: 0 | ABM16: 0 | ABN16: 0 | ABO16: 68 | ABP16: 67 | ABQ16: 0 | ABR16: 0 | ABS16: 0 | ABT16: 0 | ABU16: 0 | ABV16: 68 | ABW16: 68 | ABX16: 0 | ABY16: 0 | ABZ16: 0 | ACA16: 0 | ACB16: 0 | ACC16: 68 | ACD16: 68 | ACE16: 0 | ACF16: 0 | ACG16: 0 | ACH16: 0 | ACI16: 0 | ACJ16: 68 | ACK16: 68 | ACL16: 0 | ACM16: 0 | ACN16: 0 | ACO16: 0 | ACP16: 0 | ACQ16: =SUMPRODUCT((SUBTOTAL(3,INDIRECT("C"&ROW(ACQ35:ACQ135))))*(ACQ35:ACQ135=15)) -> 68 | ACR16: 68 | ACS16: 0 | ACT16: 0 | ACU16: 0 | ACV16: 0 | ACW16: 0 | ACX16: 68 | ACY16: 68 | ACZ16: 0 | ADA16: 0 | ADB16: 0 | ADC16: 0 | ADD16: 0 | ADE16: 68 | ADF16: 68 | ADG16: 0 | ADH16: 0 | ADI16: 0 | ADJ16: 0 | ADK16: 0 | ADL16: 68 | ADM16: 68 | ADN16: 0 | ADO16: 0 | ADP16: 0 | ADQ16: 0 | ADR16: 0 | ADS16: 68 | ADT16: 66 | ADU16: 0 | ADV16: 0 | ADW16: 0 | ADX16: 0 | ADY16: 0 | ADZ16: 68 | AEA16: 67 | AEB16: 0 | AEC16: 0 | AED16: 0 | AEE16: 0 | AEF16: 0 | AEG16: 68 | AEH16: 68 | AEI16: 0 | AEJ16: 0 | AEK16: 0 | AEL16: 0 | AEM16: 0 | AEN16: 68 | AEO16: 68 | AEP16: 0 | AEQ16: 0 | AER16: 0 | AES16: 0 | AET16: 0 | AEU16: 68 | AEV16: 42 | AEW16: 0 | AEX16: 0 | AEY16: 0 | AEZ16: 0 | AFA16: 0 | AFB16: 68 | AFC16: =SUMPRODUCT((SUBTOTAL(3,INDIRECT("C"&ROW(AFC35:AFC135))))*(AFC35:AFC135=15)) -> 68 | AFD16: 0 | AFE16: 0 | AFF16: 0 | AFG16: 0 | AFH16: 0 | AFI16: 68 | AFJ16: 68 | AFK16: 0 | AFL16: 0 | AFM16: 0 | AFN16: 0 | AFO16: 0 | AFP16: 60 | AFQ16: 67 | AFR16: 0 | AFS16: 0 | AFT16: 0 | AFU16: 0 | AFV16: 0 | AFW16: 67 | AFX16: 68 | AFY16: 0 | AFZ16: 0 | AGA16: 0 | AGB16: 0 | AGC16: 0 | AGD16: 67 | AGE16: 67 | AGF16: 0 | AGG16: 0 | AGH16: 0 | AGI16: 0 | AGJ16: 0 | AGK16: 67 | AGL16: 67 | AGM16: 0 | AGN16: 0 | AGO16: 0 | AGP16: 0 | AGQ16: 0 | AGR16: 68 | AGS16: 51 | AGT16: 0 | AGU16: 0 | AGV16: 0 | AGW16: 0 | AGX16: 0 | AGY16: 68 | AGZ16: 68 | AHA16: 0 | AHB16: 0 | AHC16: 0 | AHD16: 0 | AHE16: 0 | AHF16: 68 | AHG16: 68 | AHH16: 0 | AHI16: 0 | AHJ16: 0 | AHK16: 0 | AHL16: 0 | AHM16: 68 | AHN16: 68 | AHO16: =SUMPRODUCT((SUBTOTAL(3,INDIRECT("C"&ROW(AHO35:AHO135))))*(AHO35:AHO135=15)) -> 0 | AHP16: 0 | AHQ16: 0 | AHR16: 0 | AHS16: 0 | AHT16: 68 | AHU16: 68 | AHV16: 0 | AHW16: 0 | AHX16: 0 | AHY16: 0 | AHZ16: 0 | AIA16: 68 | AIB16: 68 | AIC16: 0 | AID16: 0 | AIE16: 0 | AIF16: 0 | AIG16: 0 | AIH16: 68 | AII16: 67 | AIJ16: 0 | AIK16: 0 | AIL16: 0 | AIM16: 0 | AIN16: 0 | AIO16: 67 | AIP16: 67 | AIQ16: 0 | AIR16: 0 | AIS16: 0 | AIT16: 0 | AIU16: 0 | AIV16: 68 | AIW16: 68 | AIX16: 0 | AIY16: 0 | AIZ16: 0 | AJA16: 0 | AJB16: 0 | AJC16: 68 | AJD16: 68 | AJE16: 0 | AJF16: 0 | AJG16: 0 | AJH16: 0 | AJI16: 0 | AJJ16: 42 | AJK16: 68 | AJL16: 0 | AJM16: 0 | AJN16: 0 | AJO16: 0 | AJP16: 0 | AJQ16: 64 | AJR16: 64 | AJS16: 0 | AJT16: 0 | AJU16: 0 | AJV16: 0 | AJW16: 0 | AJX16: 30 | AJY16: 68 | AJZ16: 0 | AKA16: =SUMPRODUCT((SUBTOTAL(3,INDIRECT("C"&ROW(AKA35:AKA135))))*(AKA35:AKA135=15)) -> 0 | AKB16: 0 | AKC16: 0 | AKD16: 0 | AKE16: 68 | AKF16: 68 | AKG16: 0 | AKH16: 0 | AKI16: 0 | AKJ16: 0 | AKK16: 0 | AKL16: 68 | AKM16: 68 | AKN16: 0 | AKO16: 0 | AKP16: 0 | AKQ16: 0 | AKR16: 0 | AKS16: 68 | AKT16: 68 | AKU16: 0 | AKV16: 0 | AKW16: 0 | AKX16: 0 | AKY16: 0 | AKZ16: 68 | ALA16: 68 | ALB16: 0 | ALC16: 0 | ALD16: 0 | ALE16: 0 | ALF16: 0 | ALG16: 68 | ALH16: 41 | ALI16: 0 | ALJ16: 0 | ALK16: 0 | ALL16: 0 | ALM16: 0 | ALN16: 68 | ALO16: 67 | ALP16: 0 | ALQ16: 0 | ALR16: 0 | ALS16: 0 | ALT16: 0 | ALU16: 52 | ALV16: 68 | ALW16: 0 | ALX16: 0 | ALY16: 0 | ALZ16: 0 | AMA16: 0 | AMB16: 68 | AMC16: 68 | AMD16: 0 | AME16: 0 | AMF16: 0 | AMG16: 0 | AMH16: 0 | AMI16: 68 | AMJ16: 68 | AMK16: 0 | AML16: 0 | AMM16: =SUMPRODUCT((SUBTOTAL(3,INDIRECT("C"&ROW(AMM35:AMM135))))*(AMM35:AMM135=15)) -> 0 | AMN16: 0 | AMO16: 0 | AMP16: 68 | AMQ16: 68 | AMR16: 0 | AMS16: 0 | AMT16: 0 | AMU16: 0 | AMV16: 0 | AMW16: 60 | AMX16: 28 | AMY16: 0 | AMZ16: 0 | ANA16: 0 | ANB16: 0 | ANC16: 0 | AND16: 68 | ANE16: 68 | ANF16: 0 | ANG16: 0 | ANH16: 0 | ANI16: 0 | ANJ16: 0 | ANK16: 68 | ANL16: 68 | ANM16: 0 | ANN16: 0 | ANO16: 0 | ANP16: 0 | ANQ16: 0 | ANR16: 68 | ANS16: 68 | ANT16: 0 | ANU16: 0 | ANV16: 0 | ANW16: 0 | ANX16: 0 | ANY16: 68 | ANZ16: 68 | AOA16: 0 | AOB16: 0 | AOC16: 0 | AOD16: 0 | AOE16: 0 | AOF16: 68 | AOG16: 67 | AOH16: 0 | AOI16: 0 | AOJ16: 0 | AOK16: 0 | AOL16: 0 | AOM16: 68 | AON16: 68 | AOO16: 0 | AOP16: 0 | AOQ16: 0 | AOR16: 0 | AOS16: 0 | AOT16: 68 | AOU16: 68 | AOV16: 0 | AOW16: 0 | AOX16: 0 | AOY16: =SUMPRODUCT((SUBTOTAL(3,INDIRECT("C"&ROW(AOY35:AOY135))))*(AOY35:AOY135=15)) -> 0 | AOZ16: 0 | APA16: 11 | APB16: 68 | APC16: 0 | APD16: 0 | APE16: 0 | APF16: 0 | APG16: 0 | APH16: 57 | API16: 66 | APJ16: 0 | APK16: 0 | APL16: 0 | APM16: 0 | APN16: 0 | APO16: 68 | APP16: 68 | APQ16: 0 | APR16: 0 | APS16: 0 | APT16: 0 | APU16: 0 | APV16: 68 | APW16: 68 | APX16: 0 | APY16: 0 | APZ16: 0 | AQA16: 0 | AQB16: 0 | AQC16: 68 | AQD16: 68 | AQE16: 0 | AQF16: 0 | AQG16: 0 | AQH16: 0 | AQI16: 0 | AQJ16: 68 | AQK16: 68
A18: 0
A19: 1 | B19: Feiertag | C19: =B2/(B2+B3+B4) -> 0.3333333333
A20: 2 | B20: Ferien | C20: =B3/(B2+B3+B4) -> 0.1111111111
A21: 3 | B21: Wochenende | C21: =B4/(B2+B3+B4) -> 0.5555555556
A22: 4
A23: 5
C26: 2024-01-01 | AH26: 2024-02-01 | BK26: 2024-03-01 | CP26: 2024-04-01 | DT26: 2024-05-01 | EY26: 2024-06-01 | GC26: 2024-07-01 | HH26: 2024-08-01 | IM26: 2024-09-01 | JQ26: 2024-10-01 | KV26: 2024-11-01 | LZ26: 2024-12-01 | NE26: 2025-01-01 | OJ26: 2025-02-01 | PL26: 2025-03-01 | QQ26: 2025-04-01 | RU26: 2025-05-01 | SZ26: 2025-06-01 | UD26: 2025-07-01 | VI26: 2025-08-01 | WN26: 2025-09-01 | XR26: 2025-10-01 | YW26: 2025-11-01 | AAA26: 2025-12-01 | ABF26: Jan.25
C29: =UPPER(C30) -> MO | D29: =UPPER(D30) -> DI | E29: MI | F29: DO | G29: FR | H29: SA | I29: SO | J29: MO | K29: DI | L29: MI | M29: DO | N29: FR | O29: SA | P29: SO | Q29: MO | R29: DI | S29: MI | T29: DO | U29: FR | V29: SA | W29: SO | X29: MO | Y29: DI | Z29: MI | AA29: DO | AB29: FR | AC29: SA | AD29: SO | AE29: MO | AF29: DI | AG29: MI | AH29: DO | AI29: FR | AJ29: SA | AK29: SO | AL29: MO | AM29: DI | AN29: MI | AO29: DO | AP29: FR | AQ29: SA | AR29: SO | AS29: MO | AT29: DI | AU29: MI | AV29: DO | AW29: FR | AX29: SA | AY29: SO | AZ29: MO | BA29: DI | BB29: MI | BC29: DO | BD29: FR | BE29: SA | BF29: SO | BG29: MO | BH29: DI | BI29: MI | BJ29: DO | BK29: FR | BL29: SA | BM29: SO | BN29: MO | BO29: DI | BP29: =UPPER(BP30) -> MI | BQ29: DO | BR29: FR | BS29: SA | BT29: SO | BU29: MO | BV29: DI | BW29: MI | BX29: DO | BY29: FR | BZ29: SA | CA29: SO | CB29: MO | CC29: DI | CD29: MI | CE29: DO | CF29: FR | CG29: SA | CH29: SO | CI29: MO | CJ29: DI | CK29: MI | CL29: DO | CM29: FR | CN29: SA | CO29: SO | CP29: MO | CQ29: DI | CR29: MI | CS29: DO | CT29: FR | CU29: SA | CV29: SO | CW29: MO | CX29: DI | CY29: MI | CZ29: DO | DA29: FR | DB29: SA | DC29: SO | DD29: MO | DE29: DI | DF29: MI | DG29: DO | DH29: FR | DI29: SA | DJ29: SO | DK29: MO | DL29: DI | DM29: MI | DN29: DO | DO29: FR | DP29: SA | DQ29: SO | DR29: MO | DS29: DI | DT29: MI | DU29: DO | DV29: FR | DW29: SA | DX29: SO | DY29: MO | DZ29: DI | EA29: MI | EB29: =UPPER(EB30) -> DO | EC29: FR | ED29: SA | EE29: SO | EF29: MO | EG29: DI | EH29: MI | EI29: DO | EJ29: FR | EK29: SA | EL29: SO | EM29: MO | EN29: DI | EO29: MI | EP29: DO | EQ29: FR | ER29: SA | ES29: SO | ET29: MO | EU29: DI | EV29: MI | EW29: DO | EX29: FR | EY29: SA | EZ29: SO | FA29: MO | FB29: DI | FC29: MI | FD29: DO | FE29: FR | FF29: SA | FG29: SO | FH29: MO | FI29: DI | FJ29: MI | FK29: DO | FL29: FR | FM29: SA | FN29: SO | FO29: MO | FP29: DI | FQ29: MI | FR29: DO | FS29: FR | FT29: SA | FU29: SO | FV29: MO | FW29: DI | FX29: MI | FY29: DO | FZ29: FR | GA29: SA | GB29: SO | GC29: MO | GD29: DI | GE29: MI | GF29: DO | GG29: FR | GH29: SA | GI29: SO | GJ29: MO | GK29: DI | GL29: MI | GM29: DO | GN29: =UPPER(GN30) -> FR | GO29: SA | GP29: SO | GQ29: MO | GR29: DI | GS29: MI | GT29: DO | GU29: FR | GV29: SA | GW29: SO | GX29: MO | GY29: DI | GZ29: MI | HA29: DO | HB29: FR | HC29: SA | HD29: SO | HE29: MO | HF29: DI | HG29: MI | HH29: DO | HI29: FR | HJ29: SA | HK29: SO | HL29: MO | HM29: DI | HN29: MI | HO29: DO | HP29: FR | HQ29: SA | HR29: SO | HS29: MO | HT29: DI | HU29: MI | HV29: DO | HW29: FR | HX29: SA | HY29: SO | HZ29: MO | IA29: DI | IB29: MI | IC29: DO | ID29: FR | IE29: SA | IF29: SO | IG29: MO | IH29: DI | II29: MI | IJ29: DO | IK29: FR | IL29: SA | IM29: SO | IN29: MO | IO29: DI | IP29: MI | IQ29: DO | IR29: FR | IS29: SA | IT29: SO | IU29: MO | IV29: DI | IW29: MI | IX29: DO | IY29: FR | IZ29: =UPPER(IZ30) -> SA | JA29: SO | JB29: MO | JC29: DI | JD29: MI | JE29: DO | JF29: FR | JG29: SA | JH29: SO | JI29: MO | JJ29: DI | JK29: MI | JL29: DO | JM29: FR | JN29: SA | JO29: SO | JP29: MO | JQ29: DI | JR29: MI | JS29: DO | JT29: FR | JU29: SA | JV29: SO | JW29: MO | JX29: DI | JY29: MI | JZ29: DO | KA29: FR | KB29: SA | KC29: SO | KD29: MO | KE29: DI | KF29: MI | KG29: DO | KH29: FR | KI29: SA | KJ29: SO | KK29: MO | KL29: DI | KM29: MI | KN29: DO | KO29: FR | KP29: SA | KQ29: SO | KR29: MO | KS29: DI | KT29: MI | KU29: DO | KV29: FR | KW29: SA | KX29: SO | KY29: MO | KZ29: DI | LA29: MI | LB29: DO | LC29: FR | LD29: SA | LE29: SO | LF29: MO | LG29: DI | LH29: MI | LI29: DO | LJ29: FR | LK29: SA | LL29: =UPPER(LL30) -> SO | LM29: MO | LN29: DI | LO29: MI | LP29: DO | LQ29: FR | LR29: SA | LS29: SO | LT29: MO | LU29: DI | LV29: MI | LW29: DO | LX29: FR | LY29: SA | LZ29: SO | MA29: MO | MB29: DI | MC29: MI | MD29: DO | ME29: FR | MF29: SA | MG29: SO | MH29: MO | MI29: DI | MJ29: MI | MK29: DO | ML29: FR | MM29: SA | MN29: SO | MO29: MO | MP29: DI | MQ29: MI | MR29: DO | MS29: FR | MT29: SA | MU29: SO | MV29: MO | MW29: DI | MX29: MI | MY29: DO | MZ29: FR | NA29: SA | NB29: SO | NC29: MO | ND29: DI | NE29: MI | NF29: DO | NG29: FR | NH29: SA | NI29: SO | NJ29: MO | NK29: DI | NL29: MI | NM29: DO | NN29: FR | NO29: SA | NP29: SO | NQ29: MO | NR29: DI | NS29: MI | NT29: DO | NU29: FR | NV29: SA | NW29: SO | NX29: =UPPER(NX30) -> MO | NY29: DI | NZ29: MI | OA29: DO | OB29: FR | OC29: SA | OD29: SO | OE29: MO | OF29: DI | OG29: MI | OH29: DO | OI29: FR | OJ29: SA | OK29: SO | OL29: MO | OM29: DI | ON29: MI | OO29: DO | OP29: FR | OQ29: SA | OR29: SO | OS29: MO | OT29: DI | OU29: MI | OV29: DO | OW29: FR | OX29: SA | OY29: SO | OZ29: MO | PA29: DI | PB29: MI | PC29: DO | PD29: FR | PE29: SA | PF29: SO | PG29: MO | PH29: DI | PI29: MI | PJ29: DO | PK29: FR | PL29: SA | PM29: SO | PN29: MO | PO29: DI | PP29: MI | PQ29: DO | PR29: FR | PS29: SA | PT29: SO | PU29: MO | PV29: DI | PW29: MI | PX29: DO | PY29: FR | PZ29: SA | QA29: SO | QB29: MO | QC29: DI | QD29: MI | QE29: DO | QF29: FR | QG29: SA | QH29: SO | QI29: MO | QJ29: =UPPER(QJ30) -> DI | QK29: MI | QL29: DO | QM29: FR | QN29: SA | QO29: SO | QP29: MO | QQ29: DI | QR29: MI | QS29: DO | QT29: FR | QU29: SA | QV29: SO | QW29: MO | QX29: DI | QY29: MI | QZ29: DO | RA29: FR | RB29: SA | RC29: SO | RD29: MO | RE29: DI | RF29: MI | RG29: DO | RH29: FR | RI29: SA | RJ29: SO | RK29: MO | RL29: DI | RM29: MI | RN29: DO | RO29: FR | RP29: SA | RQ29: SO | RR29: MO | RS29: DI | RT29: MI | RU29: DO | RV29: FR | RW29: SA | RX29: SO | RY29: MO | RZ29: DI | SA29: MI | SB29: DO | SC29: FR | SD29: SA | SE29: SO | SF29: MO | SG29: DI | SH29: MI | SI29: DO | SJ29: FR | SK29: SA | SL29: SO | SM29: MO | SN29: DI | SO29: MI | SP29: DO | SQ29: FR | SR29: SA | SS29: SO | ST29: MO | SU29: DI | SV29: =UPPER(SV30) -> MI | SW29: DO | SX29: FR | SY29: SA | SZ29: SO | TA29: MO | TB29: DI | TC29: MI | TD29: DO | TE29: FR | TF29: SA | TG29: SO | TH29: MO | TI29: DI | TJ29: MI | TK29: DO | TL29: FR | TM29: SA | TN29: SO | TO29: MO | TP29: DI | TQ29: MI | TR29: DO | TS29: FR | TT29: SA | TU29: SO | TV29: MO | TW29: DI | TX29: MI | TY29: DO | TZ29: FR | UA29: SA | UB29: SO | UC29: MO | UD29: DI | UE29: MI | UF29: DO | UG29: FR | UH29: SA | UI29: SO | UJ29: MO | UK29: DI | UL29: MI | UM29: DO | UN29: FR | UO29: SA | UP29: SO | UQ29: MO | UR29: DI | US29: MI | UT29: DO | UU29: FR | UV29: SA | UW29: SO | UX29: MO | UY29: DI | UZ29: MI | VA29: DO | VB29: FR | VC29: SA | VD29: SO | VE29: MO | VF29: DI | VG29: MI | VH29: =UPPER(VH30) -> DO | VI29: FR | VJ29: SA | VK29: SO | VL29: MO | VM29: DI | VN29: MI | VO29: DO | VP29: FR | VQ29: SA | VR29: SO | VS29: MO | VT29: DI | VU29: MI | VV29: DO | VW29: FR | VX29: SA | VY29: SO | VZ29: MO | WA29: DI | WB29: MI | WC29: DO | WD29: FR | WE29: SA | WF29: SO | WG29: MO | WH29: DI | WI29: MI | WJ29: DO | WK29: FR | WL29: SA | WM29: SO | WN29: MO | WO29: DI | WP29: MI | WQ29: DO | WR29: FR | WS29: SA | WT29: SO | WU29: MO | WV29: DI | WW29: MI | WX29: DO | WY29: FR | WZ29: SA | XA29: SO | XB29: MO | XC29: DI | XD29: MI | XE29: DO | XF29: FR | XG29: SA | XH29: SO | XI29: MO | XJ29: DI | XK29: MI | XL29: DO | XM29: FR | XN29: SA | XO29: SO | XP29: MO | XQ29: DI | XR29: MI | XS29: DO | XT29: =UPPER(XT30) -> FR | XU29: SA | XV29: SO | XW29: MO | XX29: DI | XY29: MI | XZ29: DO | YA29: FR | YB29: SA | YC29: SO | YD29: MO | YE29: DI | YF29: MI | YG29: DO | YH29: FR | YI29: SA | YJ29: SO | YK29: MO | YL29: DI | YM29: MI | YN29: DO | YO29: FR | YP29: SA | YQ29: SO | YR29: MO | YS29: DI | YT29: MI | YU29: DO | YV29: FR | YW29: SA | YX29: SO | YY29: MO | YZ29: DI | ZA29: MI | ZB29: DO | ZC29: FR | ZD29: SA | ZE29: SO | ZF29: MO | ZG29: DI | ZH29: MI | ZI29: DO | ZJ29: FR | ZK29: SA | ZL29: SO | ZM29: MO | ZN29: DI | ZO29: MI | ZP29: DO | ZQ29: FR | ZR29: SA | ZS29: SO | ZT29: MO | ZU29: DI | ZV29: MI | ZW29: DO | ZX29: FR | ZY29: SA | ZZ29: SO | AAA29: MO | AAB29: DI | AAC29: MI | AAD29: DO | AAE29: FR | AAF29: =UPPER(AAF30) -> SA | AAG29: SO | AAH29: MO | AAI29: DI | AAJ29: MI | AAK29: DO | AAL29: FR | AAM29: SA | AAN29: SO | AAO29: MO | AAP29: DI | AAQ29: MI | AAR29: DO | AAS29: FR | AAT29: SA | AAU29: SO | AAV29: MO | AAW29: DI | AAX29: MI | AAY29: DO | AAZ29: FR | ABA29: SA | ABB29: SO | ABC29: MO | ABD29: DI | ABE29: MI | ABF29: DO | ABG29: FR | ABH29: SA | ABI29: SO | ABJ29: MO | ABK29: DI | ABL29: MI | ABM29: DO | ABN29: FR | ABO29: SA | ABP29: SO | ABQ29: MO | ABR29: DI | ABS29: MI | ABT29: DO | ABU29: FR | ABV29: SA | ABW29: SO | ABX29: MO | ABY29: DI | ABZ29: MI | ACA29: DO | ACB29: FR | ACC29: SA | ACD29: SO | ACE29: MO | ACF29: DI | ACG29: MI | ACH29: DO | ACI29: FR | ACJ29: SA | ACK29: SO | ACL29: MO | ACM29: DI | ACN29: MI | ACO29: DO | ACP29: FR | ACQ29: SA | ACR29: =UPPER(ACR30) -> SO | ACS29: MO | ACT29: =UPPER(ACT30) -> DI | ACU29: MI | ACV29: DO | ACW29: FR | ACX29: SA | ACY29: SO | ACZ29: MO | ADA29: DI | ADB29: MI | ADC29: DO | ADD29: FR | ADE29: SA | ADF29: SO | ADG29: MO | ADH29: DI | ADI29: MI | ADJ29: DO | ADK29: FR | ADL29: SA | ADM29: SO | ADN29: MO | ADO29: DI | ADP29: MI | ADQ29: DO | ADR29: FR | ADS29: SA | ADT29: SO | ADU29: MO | ADV29: DI | ADW29: MI | ADX29: DO | ADY29: FR | ADZ29: SA | AEA29: SO | AEB29: MO | AEC29: DI | AED29: MI | AEE29: DO | AEF29: FR | AEG29: SA | AEH29: SO | AEI29: MO | AEJ29: DI | AEK29: MI | AEL29: DO | AEM29: FR | AEN29: SA | AEO29: SO | AEP29: MO | AEQ29: DI | AER29: MI | AES29: DO | AET29: FR | AEU29: SA | AEV29: SO | AEW29: MO | AEX29: DI | AEY29: MI | AEZ29: DO | AFA29: FR | AFB29: SA | AFC29: SO | AFD29: MO | AFE29: DI | AFF29: =UPPER(AFF30) -> MI | AFG29: DO | AFH29: FR | AFI29: SA | AFJ29: SO | AFK29: MO | AFL29: DI | AFM29: MI | AFN29: DO | AFO29: FR | AFP29: SA | AFQ29: SO | AFR29: MO | AFS29: DI | AFT29: MI | AFU29: DO | AFV29: FR | AFW29: SA | AFX29: SO | AFY29: MO | AFZ29: DI | AGA29: MI | AGB29: DO | AGC29: FR | AGD29: SA | AGE29: SO | AGF29: MO | AGG29: DI | AGH29: MI | AGI29: DO | AGJ29: FR | AGK29: SA | AGL29: SO | AGM29: MO | AGN29: DI | AGO29: MI | AGP29: DO | AGQ29: FR | AGR29: SA | AGS29: SO | AGT29: MO | AGU29: DI | AGV29: MI | AGW29: DO | AGX29: FR | AGY29: SA | AGZ29: SO | AHA29: MO | AHB29: DI | AHC29: MI | AHD29: DO | AHE29: FR | AHF29: SA | AHG29: SO | AHH29: MO | AHI29: DI | AHJ29: MI | AHK29: DO | AHL29: FR | AHM29: SA | AHN29: SO | AHO29: MO | AHP29: DI | AHQ29: MI | AHR29: =UPPER(AHR30) -> DO | AHS29: FR | AHT29: SA | AHU29: SO | AHV29: MO | AHW29: DI | AHX29: MI | AHY29: DO | AHZ29: FR | AIA29: SA | AIB29: SO | AIC29: MO | AID29: DI | AIE29: MI | AIF29: DO | AIG29: FR | AIH29: SA | AII29: SO | AIJ29: MO | AIK29: DI | AIL29: MI | AIM29: DO | AIN29: FR | AIO29: SA | AIP29: SO | AIQ29: MO | AIR29: DI | AIS29: MI | AIT29: DO | AIU29: FR | AIV29: SA | AIW29: SO | AIX29: MO | AIY29: DI | AIZ29: MI | AJA29: DO | AJB29: FR | AJC29: SA | AJD29: SO | AJE29: MO | AJF29: DI | AJG29: MI | AJH29: DO | AJI29: FR | AJJ29: SA | AJK29: SO | AJL29: MO | AJM29: DI | AJN29: MI | AJO29: DO | AJP29: FR | AJQ29: SA | AJR29: SO | AJS29: MO | AJT29: DI | AJU29: MI | AJV29: DO | AJW29: FR | AJX29: SA | AJY29: SO | AJZ29: MO | AKA29: DI | AKB29: MI | AKC29: DO | AKD29: =UPPER(AKD30) -> FR | AKE29: SA | AKF29: SO | AKG29: MO | AKH29: DI | AKI29: MI | AKJ29: DO | AKK29: FR | AKL29: SA | AKM29: SO | AKN29: MO | AKO29: DI | AKP29: MI | AKQ29: DO | AKR29: FR | AKS29: SA | AKT29: SO | AKU29: MO | AKV29: DI | AKW29: MI | AKX29: DO | AKY29: FR | AKZ29: SA | ALA29: SO | ALB29: MO | ALC29: DI | ALD29: MI | ALE29: DO | ALF29: FR | ALG29: SA | ALH29: SO | ALI29: MO | ALJ29: DI | ALK29: MI | ALL29: DO | ALM29: FR | ALN29: SA | ALO29: SO | ALP29: MO | ALQ29: DI | ALR29: MI | ALS29: DO | ALT29: FR | ALU29: SA | ALV29: SO | ALW29: MO | ALX29: DI | ALY29: MI | ALZ29: DO | AMA29: FR | AMB29: SA | AMC29: SO | AMD29: MO | AME29: DI | AMF29: MI | AMG29: DO | AMH29: FR | AMI29: SA | AMJ29: SO | AMK29: MO | AML29: DI | AMM29: MI | AMN29: DO | AMO29: FR | AMP29: =UPPER(AMP30) -> SA | AMQ29: SO | AMR29: MO | AMS29: DI | AMT29: MI | AMU29: DO | AMV29: FR | AMW29: SA | AMX29: SO | AMY29: MO | AMZ29: DI | ANA29: MI | ANB29: DO | ANC29: FR | AND29: SA | ANE29: SO | ANF29: MO | ANG29: DI | ANH29: MI | ANI29: DO | ANJ29: FR | ANK29: SA | ANL29: SO | ANM29: MO | ANN29: DI | ANO29: MI | ANP29: DO | ANQ29: FR | ANR29: SA | ANS29: SO | ANT29: MO | ANU29: DI | ANV29: MI | ANW29: DO | ANX29: FR | ANY29: SA | ANZ29: SO | AOA29: MO | AOB29: DI | AOC29: MI | AOD29: DO | AOE29: FR | AOF29: SA | AOG29: SO | AOH29: MO | AOI29: DI | AOJ29: MI | AOK29: DO | AOL29: FR | AOM29: SA | AON29: SO | AOO29: MO | AOP29: DI | AOQ29: MI | AOR29: DO | AOS29: FR | AOT29: SA | AOU29: SO | AOV29: MO | AOW29: DI | AOX29: MI | AOY29: DO | AOZ29: FR | APA29: SA | APB29: =UPPER(APB30) -> SO | APC29: MO | APD29: DI | APE29: MI | APF29: DO | APG29: FR | APH29: SA | API29: SO | APJ29: MO | APK29: DI | APL29: MI | APM29: DO | APN29: FR | APO29: SA | APP29: SO | APQ29: MO | APR29: DI | APS29: MI | APT29: DO | APU29: FR | APV29: SA | APW29: SO | APX29: MO | APY29: DI | APZ29: MI | AQA29: DO | AQB29: FR | AQC29: SA | AQD29: SO | AQE29: MO | AQF29: DI | AQG29: MI | AQH29: DO | AQI29: FR | AQJ29: SA | AQK29: SO
C30: =TEXT(C31,"TTT") -> Mo | D30: Di | E30: Mi | F30: Do | G30: Fr | H30: Sa | I30: So | J30: Mo | K30: Di | L30: Mi | M30: Do | N30: Fr | O30: Sa | P30: So | Q30: Mo | R30: Di | S30: Mi | T30: Do | U30: Fr | V30: Sa | W30: So | X30: Mo | Y30: Di | Z30: Mi | AA30: Do | AB30: Fr | AC30: Sa | AD30: So | AE30: Mo | AF30: Di | AG30: Mi | AH30: Do | AI30: Fr | AJ30: Sa | AK30: So | AL30: Mo | AM30: Di | AN30: Mi | AO30: Do | AP30: Fr | AQ30: Sa | AR30: So | AS30: Mo | AT30: Di | AU30: Mi | AV30: Do | AW30: Fr | AX30: Sa | AY30: So | AZ30: Mo | BA30: Di | BB30: Mi | BC30: Do | BD30: Fr | BE30: Sa | BF30: So | BG30: Mo | BH30: Di | BI30: Mi | BJ30: Do | BK30: Fr | BL30: Sa | BM30: So | BN30: Mo | BO30: =TEXT(BO31,"TTT") -> Di | BP30: Mi | BQ30: Do | BR30: Fr | BS30: Sa | BT30: So | BU30: Mo | BV30: Di | BW30: Mi | BX30: Do | BY30: Fr | BZ30: Sa | CA30: So | CB30: Mo | CC30: Di | CD30: Mi | CE30: Do | CF30: Fr | CG30: Sa | CH30: So | CI30: Mo | CJ30: Di | CK30: Mi | CL30: Do | CM30: Fr | CN30: Sa | CO30: So | CP30: Mo | CQ30: Di | CR30: Mi | CS30: Do | CT30: Fr | CU30: Sa | CV30: So | CW30: Mo | CX30: Di | CY30: Mi | CZ30: Do | DA30: Fr | DB30: Sa | DC30: So | DD30: Mo | DE30: Di | DF30: Mi | DG30: Do | DH30: Fr | DI30: Sa | DJ30: So | DK30: Mo | DL30: Di | DM30: Mi | DN30: Do | DO30: Fr | DP30: Sa | DQ30: So | DR30: Mo | DS30: Di | DT30: Mi | DU30: Do | DV30: Fr | DW30: Sa | DX30: So | DY30: Mo | DZ30: Di | EA30: =TEXT(EA31,"TTT") -> Mi | EB30: Do | EC30: Fr | ED30: Sa | EE30: So | EF30: Mo | EG30: Di | EH30: Mi | EI30: Do | EJ30: Fr | EK30: Sa | EL30: So | EM30: Mo | EN30: Di | EO30: Mi | EP30: Do | EQ30: Fr | ER30: Sa | ES30: So | ET30: Mo | EU30: Di | EV30: Mi | EW30: Do | EX30: Fr | EY30: Sa | EZ30: So | FA30: Mo | FB30: Di | FC30: Mi | FD30: Do | FE30: Fr | FF30: Sa | FG30: So | FH30: Mo | FI30: Di | FJ30: Mi | FK30: Do | FL30: Fr | FM30: Sa | FN30: So | FO30: Mo | FP30: Di | FQ30: Mi | FR30: Do | FS30: Fr | FT30: Sa | FU30: So | FV30: Mo | FW30: Di | FX30: Mi | FY30: Do | FZ30: Fr | GA30: Sa | GB30: So | GC30: Mo | GD30: Di | GE30: Mi | GF30: Do | GG30: Fr | GH30: Sa | GI30: So | GJ30: Mo | GK30: Di | GL30: Mi | GM30: =TEXT(GM31,"TTT") -> Do | GN30: Fr | GO30: Sa | GP30: So | GQ30: Mo | GR30: Di | GS30: Mi | GT30: Do | GU30: Fr | GV30: Sa | GW30: So | GX30: Mo | GY30: Di | GZ30: Mi | HA30: Do | HB30: Fr | HC30: Sa | HD30: So | HE30: Mo | HF30: Di | HG30: Mi | HH30: Do | HI30: Fr | HJ30: Sa | HK30: So | HL30: Mo | HM30: Di | HN30: Mi | HO30: Do | HP30: Fr | HQ30: Sa | HR30: So | HS30: Mo | HT30: Di | HU30: Mi | HV30: Do | HW30: Fr | HX30: Sa | HY30: So | HZ30: Mo | IA30: Di | IB30: Mi | IC30: Do | ID30: Fr | IE30: Sa | IF30: So | IG30: Mo | IH30: Di | II30: Mi | IJ30: Do | IK30: Fr | IL30: Sa | IM30: So | IN30: Mo | IO30: Di | IP30: Mi | IQ30: Do | IR30: Fr | IS30: Sa | IT30: So | IU30: Mo | IV30: Di | IW30: Mi | IX30: Do | IY30: =TEXT(IY31,"TTT") -> Fr | IZ30: Sa | JA30: So | JB30: Mo | JC30: Di | JD30: Mi | JE30: Do | JF30: Fr | JG30: Sa | JH30: So | JI30: Mo | JJ30: Di | JK30: Mi | JL30: Do | JM30: Fr | JN30: Sa | JO30: So | JP30: Mo | JQ30: Di | JR30: Mi | JS30: Do | JT30: Fr | JU30: Sa | JV30: So | JW30: Mo | JX30: Di | JY30: Mi | JZ30: Do | KA30: Fr | KB30: Sa | KC30: So | KD30: Mo | KE30: Di | KF30: Mi | KG30: Do | KH30: Fr | KI30: Sa | KJ30: So | KK30: Mo | KL30: Di | KM30: Mi | KN30: Do | KO30: Fr | KP30: Sa | KQ30: So | KR30: Mo | KS30: Di | KT30: Mi | KU30: Do | KV30: Fr | KW30: Sa | KX30: So | KY30: Mo | KZ30: Di | LA30: Mi | LB30: Do | LC30: Fr | LD30: Sa | LE30: So | LF30: Mo | LG30: Di | LH30: Mi | LI30: Do | LJ30: Fr | LK30: =TEXT(LK31,"TTT") -> Sa | LL30: So | LM30: Mo | LN30: Di | LO30: Mi | LP30: Do | LQ30: Fr | LR30: Sa | LS30: So | LT30: Mo | LU30: Di | LV30: Mi | LW30: Do | LX30: Fr | LY30: Sa | LZ30: So | MA30: Mo | MB30: Di | MC30: Mi | MD30: Do | ME30: Fr | MF30: Sa | MG30: So | MH30: Mo | MI30: Di | MJ30: Mi | MK30: Do | ML30: Fr | MM30: Sa | MN30: So | MO30: Mo | MP30: Di | MQ30: Mi | MR30: Do | MS30: Fr | MT30: Sa | MU30: So | MV30: Mo | MW30: Di | MX30: Mi | MY30: Do | MZ30: Fr | NA30: Sa | NB30: So | NC30: Mo | ND30: Di | NE30: Mi | NF30: Do | NG30: Fr | NH30: Sa | NI30: So | NJ30: Mo | NK30: Di | NL30: Mi | NM30: Do | NN30: Fr | NO30: Sa | NP30: So | NQ30: Mo | NR30: Di | NS30: Mi | NT30: Do | NU30: Fr | NV30: Sa | NW30: =TEXT(NW31,"TTT") -> So | NX30: Mo | NY30: Di | NZ30: Mi | OA30: Do | OB30: Fr | OC30: Sa | OD30: So | OE30: Mo | OF30: Di | OG30: Mi | OH30: Do | OI30: Fr | OJ30: Sa | OK30: So | OL30: Mo | OM30: Di | ON30: Mi | OO30: Do | OP30: Fr | OQ30: Sa | OR30: So | OS30: Mo | OT30: Di | OU30: Mi | OV30: Do | OW30: Fr | OX30: Sa | OY30: So | OZ30: Mo | PA30: Di | PB30: Mi | PC30: Do | PD30: Fr | PE30: Sa | PF30: So | PG30: Mo | PH30: Di | PI30: Mi | PJ30: Do | PK30: Fr | PL30: Sa | PM30: So | PN30: Mo | PO30: Di | PP30: Mi | PQ30: Do | PR30: Fr | PS30: Sa | PT30: So | PU30: Mo | PV30: Di | PW30: Mi | PX30: Do | PY30: Fr | PZ30: Sa | QA30: So | QB30: Mo | QC30: Di | QD30: Mi | QE30: Do | QF30: Fr | QG30: Sa | QH30: So | QI30: =TEXT(QI31,"TTT") -> Mo | QJ30: Di | QK30: Mi | QL30: Do | QM30: Fr | QN30: Sa | QO30: So | QP30: Mo | QQ30: Di | QR30: Mi | QS30: Do | QT30: Fr | QU30: Sa | QV30: So | QW30: Mo | QX30: Di | QY30: Mi | QZ30: Do | RA30: Fr | RB30: Sa | RC30: So | RD30: Mo | RE30: Di | RF30: Mi | RG30: Do | RH30: Fr | RI30: Sa | RJ30: So | RK30: Mo | RL30: Di | RM30: Mi | RN30: Do | RO30: Fr | RP30: Sa | RQ30: So | RR30: Mo | RS30: Di | RT30: Mi | RU30: Do | RV30: Fr | RW30: Sa | RX30: So | RY30: Mo | RZ30: Di | SA30: Mi | SB30: Do | SC30: Fr | SD30: Sa | SE30: So | SF30: Mo | SG30: Di | SH30: Mi | SI30: Do | SJ30: Fr | SK30: Sa | SL30: So | SM30: Mo | SN30: Di | SO30: Mi | SP30: Do | SQ30: Fr | SR30: Sa | SS30: So | ST30: Mo | SU30: =TEXT(SU31,"TTT") -> Di | SV30: Mi | SW30: Do | SX30: Fr | SY30: Sa | SZ30: So | TA30: Mo | TB30: Di | TC30: Mi | TD30: Do | TE30: Fr | TF30: Sa | TG30: So | TH30: Mo | TI30: Di | TJ30: Mi | TK30: Do | TL30: Fr | TM30: Sa | TN30: So | TO30: Mo | TP30: Di | TQ30: Mi | TR30: Do | TS30: Fr | TT30: Sa | TU30: So | TV30: Mo | TW30: Di | TX30: Mi | TY30: Do | TZ30: Fr | UA30: Sa | UB30: So | UC30: Mo | UD30: Di | UE30: Mi | UF30: Do | UG30: Fr | UH30: Sa | UI30: So | UJ30: Mo | UK30: Di | UL30: Mi | UM30: Do | UN30: Fr | UO30: Sa | UP30: So | UQ30: Mo | UR30: Di | US30: Mi | UT30: Do | UU30: Fr | UV30: Sa | UW30: So | UX30: Mo | UY30: Di | UZ30: Mi | VA30: Do | VB30: Fr | VC30: Sa | VD30: So | VE30: Mo | VF30: Di | VG30: =TEXT(VG31,"TTT") -> Mi | VH30: Do | VI30: Fr | VJ30: Sa | VK30: So | VL30: Mo | VM30: Di | VN30: Mi | VO30: Do | VP30: Fr | VQ30: Sa | VR30: So | VS30: Mo | VT30: Di | VU30: Mi | VV30: Do | VW30: Fr | VX30: Sa | VY30: So | VZ30: Mo | WA30: Di | WB30: Mi | WC30: Do | WD30: Fr | WE30: Sa | WF30: So | WG30: Mo | WH30: Di | WI30: Mi | WJ30: Do | WK30: Fr | WL30: Sa | WM30: So | WN30: Mo | WO30: Di | WP30: Mi | WQ30: Do | WR30: Fr | WS30: Sa | WT30: So | WU30: Mo | WV30: Di | WW30: Mi | WX30: Do | WY30: Fr | WZ30: Sa | XA30: So | XB30: Mo | XC30: Di | XD30: Mi | XE30: Do | XF30: Fr | XG30: Sa | XH30: So | XI30: Mo | XJ30: Di | XK30: Mi | XL30: Do | XM30: Fr | XN30: Sa | XO30: So | XP30: Mo | XQ30: Di | XR30: Mi | XS30: =TEXT(XS31,"TTT") -> Do | XT30: Fr | XU30: Sa | XV30: So | XW30: Mo | XX30: Di | XY30: Mi | XZ30: Do | YA30: Fr | YB30: Sa | YC30: So | YD30: Mo | YE30: Di | YF30: Mi | YG30: Do | YH30: Fr | YI30: Sa | YJ30: So | YK30: Mo | YL30: Di | YM30: Mi | YN30: Do | YO30: Fr | YP30: Sa | YQ30: So | YR30: Mo | YS30: Di | YT30: Mi | YU30: Do | YV30: Fr | YW30: Sa | YX30: So | YY30: Mo | YZ30: Di | ZA30: Mi | ZB30: Do | ZC30: Fr | ZD30: Sa | ZE30: So | ZF30: Mo | ZG30: Di | ZH30: Mi | ZI30: Do | ZJ30: Fr | ZK30: Sa | ZL30: So | ZM30: Mo | ZN30: Di | ZO30: Mi | ZP30: Do | ZQ30: Fr | ZR30: Sa | ZS30: So | ZT30: Mo | ZU30: Di | ZV30: Mi | ZW30: Do | ZX30: Fr | ZY30: Sa | ZZ30: So | AAA30: Mo | AAB30: Di | AAC30: Mi | AAD30: Do | AAE30: =TEXT(AAE31,"TTT") -> Fr | AAF30: Sa | AAG30: So | AAH30: Mo | AAI30: Di | AAJ30: Mi | AAK30: Do | AAL30: Fr | AAM30: Sa | AAN30: So | AAO30: Mo | AAP30: Di | AAQ30: Mi | AAR30: Do | AAS30: Fr | AAT30: Sa | AAU30: So | AAV30: Mo | AAW30: Di | AAX30: Mi | AAY30: Do | AAZ30: Fr | ABA30: Sa | ABB30: So | ABC30: Mo | ABD30: Di | ABE30: Mi | ABF30: Do | ABG30: Fr | ABH30: Sa | ABI30: So | ABJ30: Mo | ABK30: Di | ABL30: Mi | ABM30: Do | ABN30: Fr | ABO30: Sa | ABP30: So | ABQ30: Mo | ABR30: Di | ABS30: Mi | ABT30: Do | ABU30: Fr | ABV30: Sa | ABW30: So | ABX30: Mo | ABY30: Di | ABZ30: Mi | ACA30: Do | ACB30: Fr | ACC30: Sa | ACD30: So | ACE30: Mo | ACF30: Di | ACG30: Mi | ACH30: Do | ACI30: Fr | ACJ30: Sa | ACK30: So | ACL30: Mo | ACM30: Di | ACN30: Mi | ACO30: Do | ACP30: Fr | ACQ30: =TEXT(ACQ31,"TTT") -> Sa | ACR30: So | ACS30: Mo | ACT30: Di | ACU30: Mi | ACV30: Do | ACW30: Fr | ACX30: Sa | ACY30: So | ACZ30: Mo | ADA30: Di | ADB30: Mi | ADC30: Do | ADD30: Fr | ADE30: Sa | ADF30: So | ADG30: Mo | ADH30: Di | ADI30: Mi | ADJ30: Do | ADK30: Fr | ADL30: Sa | ADM30: So | ADN30: Mo | ADO30: Di | ADP30: Mi | ADQ30: Do | ADR30: Fr | ADS30: Sa | ADT30: So | ADU30: Mo | ADV30: Di | ADW30: Mi | ADX30: Do | ADY30: Fr | ADZ30: Sa | AEA30: So | AEB30: Mo | AEC30: Di | AED30: Mi | AEE30: Do | AEF30: Fr | AEG30: Sa | AEH30: So | AEI30: Mo | AEJ30: Di | AEK30: Mi | AEL30: Do | AEM30: Fr | AEN30: Sa | AEO30: So | AEP30: Mo | AEQ30: Di | AER30: Mi | AES30: Do | AET30: Fr | AEU30: Sa | AEV30: So | AEW30: Mo | AEX30: Di | AEY30: Mi | AEZ30: Do | AFA30: Fr | AFB30: Sa | AFC30: =TEXT(AFC31,"TTT") -> So | AFD30: Mo | AFE30: Di | AFF30: Mi | AFG30: Do | AFH30: Fr | AFI30: Sa | AFJ30: So | AFK30: Mo | AFL30: Di | AFM30: Mi | AFN30: Do | AFO30: Fr | AFP30: Sa | AFQ30: So | AFR30: Mo | AFS30: Di | AFT30: Mi | AFU30: Do | AFV30: Fr | AFW30: Sa | AFX30: So | AFY30: Mo | AFZ30: Di | AGA30: Mi | AGB30: Do | AGC30: Fr | AGD30: Sa | AGE30: So | AGF30: Mo | AGG30: Di | AGH30: Mi | AGI30: Do | AGJ30: Fr | AGK30: Sa | AGL30: So | AGM30: Mo | AGN30: Di | AGO30: Mi | AGP30: Do | AGQ30: Fr | AGR30: Sa | AGS30: So | AGT30: Mo | AGU30: Di | AGV30: Mi | AGW30: Do | AGX30: Fr | AGY30: Sa | AGZ30: So | AHA30: Mo | AHB30: Di | AHC30: Mi | AHD30: Do | AHE30: Fr | AHF30: Sa | AHG30: So | AHH30: Mo | AHI30: Di | AHJ30: Mi | AHK30: Do | AHL30: Fr | AHM30: Sa | AHN30: So | AHO30: =TEXT(AHO31,"TTT") -> Mo | AHP30: Di | AHQ30: Mi | AHR30: Do | AHS30: Fr | AHT30: Sa | AHU30: So | AHV30: Mo | AHW30: Di | AHX30: Mi | AHY30: Do | AHZ30: Fr | AIA30: Sa | AIB30: So | AIC30: Mo | AID30: Di | AIE30: Mi | AIF30: Do | AIG30: Fr | AIH30: Sa | AII30: So | AIJ30: Mo | AIK30: Di | AIL30: Mi | AIM30: Do | AIN30: Fr | AIO30: Sa | AIP30: So | AIQ30: Mo | AIR30: Di | AIS30: Mi | AIT30: Do | AIU30: Fr | AIV30: Sa | AIW30: So | AIX30: Mo | AIY30: Di | AIZ30: Mi | AJA30: Do | AJB30: Fr | AJC30: Sa | AJD30: So | AJE30: Mo | AJF30: Di | AJG30: Mi | AJH30: Do | AJI30: Fr | AJJ30: Sa | AJK30: So | AJL30: Mo | AJM30: Di | AJN30: Mi | AJO30: Do | AJP30: Fr | AJQ30: Sa | AJR30: So | AJS30: Mo | AJT30: Di | AJU30: Mi | AJV30: Do | AJW30: Fr | AJX30: Sa | AJY30: So | AJZ30: Mo | AKA30: =TEXT(AKA31,"TTT") -> Di | AKB30: Mi | AKC30: Do | AKD30: Fr | AKE30: Sa | AKF30: So | AKG30: Mo | AKH30: Di | AKI30: Mi | AKJ30: Do | AKK30: Fr | AKL30: Sa | AKM30: So | AKN30: Mo | AKO30: Di | AKP30: Mi | AKQ30: Do | AKR30: Fr | AKS30: Sa | AKT30: So | AKU30: Mo | AKV30: Di | AKW30: Mi | AKX30: Do | AKY30: Fr | AKZ30: Sa | ALA30: So | ALB30: Mo | ALC30: Di | ALD30: Mi | ALE30: Do | ALF30: Fr | ALG30: Sa | ALH30: So | ALI30: Mo | ALJ30: Di | ALK30: Mi | ALL30: Do | ALM30: Fr | ALN30: Sa | ALO30: So | ALP30: Mo | ALQ30: Di | ALR30: Mi | ALS30: Do | ALT30: Fr | ALU30: Sa | ALV30: So | ALW30: Mo | ALX30: Di | ALY30: Mi | ALZ30: Do | AMA30: Fr | AMB30: Sa | AMC30: So | AMD30: Mo | AME30: Di | AMF30: Mi | AMG30: Do | AMH30: Fr | AMI30: Sa | AMJ30: So | AMK30: Mo | AML30: Di | AMM30: =TEXT(AMM31,"TTT") -> Mi | AMN30: Do | AMO30: Fr | AMP30: Sa | AMQ30: So | AMR30: Mo | AMS30: Di | AMT30: Mi | AMU30: Do | AMV30: Fr | AMW30: Sa | AMX30: So | AMY30: Mo | AMZ30: Di | ANA30: Mi | ANB30: Do | ANC30: Fr | AND30: Sa | ANE30: So | ANF30: Mo | ANG30: Di | ANH30: Mi | ANI30: Do | ANJ30: Fr | ANK30: Sa | ANL30: So | ANM30: Mo | ANN30: Di | ANO30: Mi | ANP30: Do | ANQ30: Fr | ANR30: Sa | ANS30: So | ANT30: Mo | ANU30: Di | ANV30: Mi | ANW30: Do | ANX30: Fr | ANY30: Sa | ANZ30: So | AOA30: Mo | AOB30: Di | AOC30: Mi | AOD30: Do | AOE30: Fr | AOF30: Sa | AOG30: So | AOH30: Mo | AOI30: Di | AOJ30: Mi | AOK30: Do | AOL30: Fr | AOM30: Sa | AON30: So | AOO30: Mo | AOP30: Di | AOQ30: Mi | AOR30: Do | AOS30: Fr | AOT30: Sa | AOU30: So | AOV30: Mo | AOW30: Di | AOX30: Mi | AOY30: =TEXT(AOY31,"TTT") -> Do | AOZ30: Fr | APA30: Sa | APB30: So | APC30: Mo | APD30: Di | APE30: Mi | APF30: Do | APG30: Fr | APH30: Sa | API30: So | APJ30: Mo | APK30: Di | APL30: Mi | APM30: Do | APN30: Fr | APO30: Sa | APP30: So | APQ30: Mo | APR30: Di | APS30: Mi | APT30: Do | APU30: Fr | APV30: Sa | APW30: So | APX30: Mo | APY30: Di | APZ30: Mi | AQA30: Do | AQB30: Fr | AQC30: Sa | AQD30: So | AQE30: Mo | AQF30: Di | AQG30: Mi | AQH30: Do | AQI30: Fr | AQJ30: Sa | AQK30: So
C31: 2024-01-01 | D31: 2024-01-02 | E31: 2024-01-03 | F31: 2024-01-04 | G31: 2024-01-05 | H31: 2024-01-06 | I31: 2024-01-07 | J31: 2024-01-08 | K31: 2024-01-09 | L31: 2024-01-10 | M31: 2024-01-11 | N31: 2024-01-12 | O31: 2024-01-13 | P31: 2024-01-14 | Q31: 2024-01-15 | R31: 2024-01-16 | S31: 2024-01-17 | T31: 2024-01-18 | U31: 2024-01-19 | V31: 2024-01-20 | W31: 2024-01-21 | X31: 2024-01-22 | Y31: 2024-01-23 | Z31: 2024-01-24 | AA31: 2024-01-25 | AB31: 2024-01-26 | AC31: 2024-01-27 | AD31: 2024-01-28 | AE31: 2024-01-29 | AF31: 2024-01-30 | AG31: 2024-01-31 | AH31: 2024-02-01 | AI31: 2024-02-02 | AJ31: 2024-02-03 | AK31: 2024-02-04 | AL31: 2024-02-05 | AM31: 2024-02-06 | AN31: 2024-02-07 | AO31: 2024-02-08 | AP31: 2024-02-09 | AQ31: 2024-02-10 | AR31: 2024-02-11 | AS31: 2024-02-12 | AT31: 2024-02-13 | AU31: 2024-02-14 | AV31: 2024-02-15 | AW31: 2024-02-16 | AX31: 2024-02-17 | AY31: 2024-02-18 | AZ31: 2024-02-19 | BA31: 2024-02-20 | BB31: 2024-02-21 | BC31: 2024-02-22 | BD31: 2024-02-23 | BE31: 2024-02-24 | BF31: 2024-02-25 | BG31: 2024-02-26 | BH31: 2024-02-27 | BI31: 2024-02-28 | BJ31: 2024-02-29 | BK31: 2024-03-01 | BL31: 2024-03-02 | BM31: 2024-03-03 | BN31: 2024-03-04 | BO31: 2024-03-05 | BP31: 2024-03-06 | BQ31: 2024-03-07 | BR31: 2024-03-08 | BS31: 2024-03-09 | BT31: 2024-03-10 | BU31: 2024-03-11 | BV31: 2024-03-12 | BW31: 2024-03-13 | BX31: 2024-03-14 | BY31: 2024-03-15 | BZ31: 2024-03-16 | CA31: 2024-03-17 | CB31: 2024-03-18 | CC31: 2024-03-19 | CD31: 2024-03-20 | CE31: 2024-03-21 | CF31: 2024-03-22 | CG31: 2024-03-23 | CH31: 2024-03-24 | CI31: 2024-03-25 | CJ31: 2024-03-26 | CK31: 2024-03-27 | CL31: 2024-03-28 | CM31: 2024-03-29 | CN31: 2024-03-30 | CO31: 2024-03-31 | CP31: 2024-04-01 | CQ31: 2024-04-02 | CR31: 2024-04-03 | CS31: 2024-04-04 | CT31: 2024-04-05 | CU31: 2024-04-06 | CV31: 2024-04-07 | CW31: 2024-04-08 | CX31: 2024-04-09 | CY31: 2024-04-10 | CZ31: 2024-04-11 | DA31: 2024-04-12 | DB31: 2024-04-13 | DC31: 2024-04-14 | DD31: 2024-04-15 | DE31: 2024-04-16 | DF31: 2024-04-17 | DG31: 2024-04-18 | DH31: 2024-04-19 | DI31: 2024-04-20 | DJ31: 2024-04-21 | DK31: 2024-04-22 | DL31: 2024-04-23 | DM31: 2024-04-24 | DN31: 2024-04-25 | DO31: 2024-04-26 | DP31: 2024-04-27 | DQ31: 2024-04-28 | DR31: 2024-04-29 | DS31: 2024-04-30 | DT31: 2024-05-01 | DU31: 2024-05-02 | DV31: 2024-05-03 | DW31: 2024-05-04 | DX31: 2024-05-05 | DY31: 2024-05-06 | DZ31: 2024-05-07 | EA31: 2024-05-08 | EB31: 2024-05-09 | EC31: 2024-05-10 | ED31: 2024-05-11 | EE31: 2024-05-12 | EF31: 2024-05-13 | EG31: 2024-05-14 | EH31: 2024-05-15 | EI31: 2024-05-16 | EJ31: 2024-05-17 | EK31: 2024-05-18 | EL31: 2024-05-19 | EM31: 2024-05-20 | EN31: 2024-05-21 | EO31: 2024-05-22 | EP31: 2024-05-23 | EQ31: 2024-05-24 | ER31: 2024-05-25 | ES31: 2024-05-26 | ET31: 2024-05-27 | EU31: 2024-05-28 | EV31: 2024-05-29 | EW31: 2024-05-30 | EX31: 2024-05-31 | EY31: 2024-06-01 | EZ31: 2024-06-02 | FA31: 2024-06-03 | FB31: 2024-06-04 | FC31: 2024-06-05 | FD31: 2024-06-06 | FE31: 2024-06-07 | FF31: 2024-06-08 | FG31: 2024-06-09 | FH31: 2024-06-10 | FI31: 2024-06-11 | FJ31: 2024-06-12 | FK31: 2024-06-13 | FL31: 2024-06-14 | FM31: 2024-06-15 | FN31: 2024-06-16 | FO31: 2024-06-17 | FP31: 2024-06-18 | FQ31: 2024-06-19 | FR31: 2024-06-20 | FS31: 2024-06-21 | FT31: 2024-06-22 | FU31: 2024-06-23 | FV31: 2024-06-24 | FW31: 2024-06-25 | FX31: 2024-06-26 | FY31: 2024-06-27 | FZ31: 2024-06-28 | GA31: 2024-06-29 | GB31: 2024-06-30 | GC31: 2024-07-01 | GD31: 2024-07-02 | GE31: 2024-07-03 | GF31: 2024-07-04 | GG31: 2024-07-05 | GH31: 2024-07-06 | GI31: 2024-07-07 | GJ31: 2024-07-08 | GK31: 2024-07-09 | GL31: 2024-07-10 | GM31: 2024-07-11 | GN31: 2024-07-12 | GO31: 2024-07-13 | GP31: 2024-07-14 | GQ31: 2024-07-15 | GR31: 2024-07-16 | GS31: 2024-07-17 | GT31: 2024-07-18 | GU31: 2024-07-19 | GV31: 2024-07-20 | GW31: 2024-07-21 | GX31: 2024-07-22 | GY31: 2024-07-23 | GZ31: 2024-07-24 | HA31: 2024-07-25 | HB31: 2024-07-26 | HC31: 2024-07-27 | HD31: 2024-07-28 | HE31: 2024-07-29 | HF31: 2024-07-30 | HG31: 2024-07-31 | HH31: 2024-08-01 | HI31: 2024-08-02 | HJ31: 2024-08-03 | HK31: 2024-08-04 | HL31: 2024-08-05 | HM31: 2024-08-06 | HN31: 2024-08-07 | HO31: 2024-08-08 | HP31: 2024-08-09 | HQ31: 2024-08-10 | HR31: 2024-08-11 | HS31: 2024-08-12 | HT31: 2024-08-13 | HU31: 2024-08-14 | HV31: 2024-08-15 | HW31: 2024-08-16 | HX31: 2024-08-17 | HY31: 2024-08-18 | HZ31: 2024-08-19 | IA31: 2024-08-20 | IB31: 2024-08-21 | IC31: 2024-08-22 | ID31: 2024-08-23 | IE31: 2024-08-24 | IF31: 2024-08-25 | IG31: 2024-08-26 | IH31: 2024-08-27 | II31: 2024-08-28 | IJ31: 2024-08-29 | IK31: 2024-08-30 | IL31: 2024-08-31 | IM31: 2024-09-01 | IN31: 2024-09-02 | IO31: 2024-09-03 | IP31: 2024-09-04 | IQ31: 2024-09-05 | IR31: 2024-09-06 | IS31: 2024-09-07 | IT31: 2024-09-08 | IU31: 2024-09-09 | IV31: 2024-09-10 | IW31: 2024-09-11 | IX31: 2024-09-12 | IY31: 2024-09-13 | IZ31: 2024-09-14 | JA31: 2024-09-15 | JB31: 2024-09-16 | JC31: 2024-09-17 | JD31: 2024-09-18 | JE31: 2024-09-19 | JF31: 2024-09-20 | JG31: 2024-09-21 | JH31: 2024-09-22 | JI31: 2024-09-23 | JJ31: 2024-09-24 | JK31: 2024-09-25 | JL31: 2024-09-26 | JM31: 2024-09-27 | JN31: 2024-09-28 | JO31: 2024-09-29 | JP31: 2024-09-30 | JQ31: 2024-10-01 | JR31: 2024-10-02 | JS31: 2024-10-03 | JT31: 2024-10-04 | JU31: 2024-10-05 | JV31: 2024-10-06 | JW31: 2024-10-07 | JX31: 2024-10-08 | JY31: 2024-10-09 | JZ31: 2024-10-10 | KA31: 2024-10-11 | KB31: 2024-10-12 | KC31: 2024-10-13 | KD31: 2024-10-14 | KE31: 2024-10-15 | KF31: 2024-10-16 | KG31: 2024-10-17 | KH31: 2024-10-18 | KI31: 2024-10-19 | KJ31: 2024-10-20 | KK31: 2024-10-21 | KL31: 2024-10-22 | KM31: 2024-10-23 | KN31: 2024-10-24 | KO31: 2024-10-25 | KP31: 2024-10-26 | KQ31: 2024-10-27 | KR31: 2024-10-28 | KS31: 2024-10-29 | KT31: 2024-10-30 | KU31: 2024-10-31 | KV31: 2024-11-01 | KW31: 2024-11-02 | KX31: 2024-11-03 | KY31: 2024-11-04 | KZ31: 2024-11-05 | LA31: 2024-11-06 | LB31: 2024-11-07 | LC31: 2024-11-08 | LD31: 2024-11-09 | LE31: 2024-11-10 | LF31: 2024-11-11 | LG31: 2024-11-12 | LH31: 2024-11-13 | LI31: 2024-11-14 | LJ31: 2024-11-15 | LK31: 2024-11-16 | LL31: 2024-11-17 | LM31: 2024-11-18 | LN31: 2024-11-19 | LO31: 2024-11-20 | LP31: 2024-11-21 | LQ31: 2024-11-22 | LR31: 2024-11-23 | LS31: 2024-11-24 | LT31: 2024-11-25 | LU31: 2024-11-26 | LV31: 2024-11-27 | LW31: 2024-11-28 | LX31: 2024-11-29 | LY31: 2024-11-30 | LZ31: 2024-12-01 | MA31: 2024-12-02 | MB31: 2024-12-03 | MC31: 2024-12-04 | MD31: 2024-12-05 | ME31: 2024-12-06 | MF31: 2024-12-07 | MG31: 2024-12-08 | MH31: 2024-12-09 | MI31: 2024-12-10 | MJ31: 2024-12-11 | MK31: 2024-12-12 | ML31: 2024-12-13 | MM31: 2024-12-14 | MN31: 2024-12-15 | MO31: 2024-12-16 | MP31: 2024-12-17 | MQ31: 2024-12-18 | MR31: 2024-12-19 | MS31: 2024-12-20 | MT31: 2024-12-21 | MU31: 2024-12-22 | MV31: 2024-12-23 | MW31: 2024-12-24 | MX31: 2024-12-25 | MY31: 2024-12-26 | MZ31: 2024-12-27 | NA31: 2024-12-28 | NB31: 2024-12-29 | NC31: 2024-12-30 | ND31: 2024-12-31 | NE31: 2025-01-01 | NF31: 2025-01-02 | NG31: 2025-01-03 | NH31: 2025-01-04 | NI31: 2025-01-05 | NJ31: 2025-01-06 | NK31: 2025-01-07 | NL31: 2025-01-08 | NM31: 2025-01-09 | NN31: 2025-01-10 | NO31: 2025-01-11 | NP31: 2025-01-12 | NQ31: 2025-01-13 | NR31: 2025-01-14 | NS31: 2025-01-15 | NT31: 2025-01-16 | NU31: 2025-01-17 | NV31: 2025-01-18 | NW31: 2025-01-19 | NX31: 2025-01-20 | NY31: 2025-01-21 | NZ31: 2025-01-22 | OA31: 2025-01-23 | OB31: 2025-01-24 | OC31: 2025-01-25 | OD31: 2025-01-26 | OE31: 2025-01-27 | OF31: 2025-01-28 | OG31: 2025-01-29 | OH31: 2025-01-30 | OI31: 2025-01-31 | OJ31: 2025-02-01 | OK31: 2025-02-02 | OL31: 2025-02-03 | OM31: 2025-02-04 | ON31: 2025-02-05 | OO31: 2025-02-06 | OP31: 2025-02-07 | OQ31: 2025-02-08 | OR31: 2025-02-09 | OS31: 2025-02-10 | OT31: 2025-02-11 | OU31: 2025-02-12 | OV31: 2025-02-13 | OW31: 2025-02-14 | OX31: 2025-02-15 | OY31: 2025-02-16 | OZ31: 2025-02-17 | PA31: 2025-02-18 | PB31: 2025-02-19 | PC31: 2025-02-20 | PD31: 2025-02-21 | PE31: 2025-02-22 | PF31: 2025-02-23 | PG31: 2025-02-24 | PH31: 2025-02-25 | PI31: 2025-02-26 | PJ31: 2025-02-27 | PK31: 2025-02-28 | PL31: 2025-03-01 | PM31: 2025-03-02 | PN31: 2025-03-03 | PO31: 2025-03-04 | PP31: 2025-03-05 | PQ31: 2025-03-06 | PR31: 2025-03-07 | PS31: 2025-03-08 | PT31: 2025-03-09 | PU31: 2025-03-10 | PV31: 2025-03-11 | PW31: 2025-03-12 | PX31: 2025-03-13 | PY31: 2025-03-14 | PZ31: 2025-03-15 | QA31: 2025-03-16 | QB31: 2025-03-17 | QC31: 2025-03-18 | QD31: 2025-03-19 | QE31: 2025-03-20 | QF31: 2025-03-21 | QG31: 2025-03-22 | QH31: 2025-03-23 | QI31: 2025-03-24 | QJ31: 2025-03-25 | QK31: 2025-03-26 | QL31: 2025-03-27 | QM31: 2025-03-28 | QN31: 2025-03-29 | QO31: 2025-03-30 | QP31: 2025-03-31 | QQ31: 2025-04-01 | QR31: 2025-04-02 | QS31: 2025-04-03 | QT31: 2025-04-04 | QU31: 2025-04-05 | QV31: 2025-04-06 | QW31: 2025-04-07 | QX31: 2025-04-08 | QY31: 2025-04-09 | QZ31: 2025-04-10 | RA31: 2025-04-11 | RB31: 2025-04-12 | RC31: 2025-04-13 | RD31: 2025-04-14 | RE31: 2025-04-15 | RF31: 2025-04-16 | RG31: 2025-04-17 | RH31: 2025-04-18 | RI31: 2025-04-19 | RJ31: 2025-04-20 | RK31: 2025-04-21 | RL31: 2025-04-22 | RM31: 2025-04-23 | RN31: 2025-04-24 | RO31: 2025-04-25 | RP31: 2025-04-26 | RQ31: 2025-04-27 | RR31: 2025-04-28 | RS31: 2025-04-29 | RT31: 2025-04-30 | RU31: 2025-05-01 | RV31: 2025-05-02 | RW31: 2025-05-03 | RX31: 2025-05-04 | RY31: 2025-05-05 | RZ31: 2025-05-06 | SA31: 2025-05-07 | SB31: 2025-05-08 | SC31: 2025-05-09 | SD31: 2025-05-10 | SE31: 2025-05-11 | SF31: 2025-05-12 | SG31: 2025-05-13 | SH31: 2025-05-14 | SI31: 2025-05-15 | SJ31: 2025-05-16 | SK31: 2025-05-17 | SL31: 2025-05-18 | SM31: 2025-05-19 | SN31: 2025-05-20 | SO31: 2025-05-21 | SP31: 2025-05-22 | SQ31: 2025-05-23 | SR31: 2025-05-24 | SS31: 2025-05-25 | ST31: 2025-05-26 | SU31: 2025-05-27 | SV31: 2025-05-28 | SW31: 2025-05-29 | SX31: 2025-05-30 | SY31: 2025-05-31 | SZ31: 2025-06-01 | TA31: 2025-06-02 | TB31: 2025-06-03 | TC31: 2025-06-04 | TD31: 2025-06-05 | TE31: 2025-06-06 | TF31: 2025-06-07 | TG31: 2025-06-08 | TH31: 2025-06-09 | TI31: 2025-06-10 | TJ31: 2025-06-11 | TK31: 2025-06-12 | TL31: 2025-06-13 | TM31: 2025-06-14 | TN31: 2025-06-15 | TO31: 2025-06-16 | TP31: 2025-06-17 | TQ31: 2025-06-18 | TR31: 2025-06-19 | TS31: 2025-06-20 | TT31: 2025-06-21 | TU31: 2025-06-22 | TV31: 2025-06-23 | TW31: 2025-06-24 | TX31: 2025-06-25 | TY31: 2025-06-26 | TZ31: 2025-06-27 | UA31: 2025-06-28 | UB31: 2025-06-29 | UC31: 2025-06-30 | UD31: 2025-07-01 | UE31: 2025-07-02 | UF31: 2025-07-03 | UG31: 2025-07-04 | UH31: 2025-07-05 | UI31: 2025-07-06 | UJ31: 2025-07-07 | UK31: 2025-07-08 | UL31: 2025-07-09 | UM31: 2025-07-10 | UN31: 2025-07-11 | UO31: 2025-07-12 | UP31: 2025-07-13 | UQ31: 2025-07-14 | UR31: 2025-07-15 | US31: 2025-07-16 | UT31: 2025-07-17 | UU31: 2025-07-18 | UV31: 2025-07-19 | UW31: 2025-07-20 | UX31: 2025-07-21 | UY31: 2025-07-22 | UZ31: 2025-07-23 | VA31: 2025-07-24 | VB31: 2025-07-25 | VC31: 2025-07-26 | VD31: 2025-07-27 | VE31: 2025-07-28 | VF31: 2025-07-29 | VG31: 2025-07-30 | VH31: 2025-07-31 | VI31: 2025-08-01 | VJ31: 2025-08-02 | VK31: 2025-08-03 | VL31: 2025-08-04 | VM31: 2025-08-05 | VN31: 2025-08-06 | VO31: 2025-08-07 | VP31: 2025-08-08 | VQ31: 2025-08-09 | VR31: 2025-08-10 | VS31: 2025-08-11 | VT31: 2025-08-12 | VU31: 2025-08-13 | VV31: 2025-08-14 | VW31: 2025-08-15 | VX31: 2025-08-16 | VY31: 2025-08-17 | VZ31: 2025-08-18 | WA31: 2025-08-19 | WB31: 2025-08-20 | WC31: 2025-08-21 | WD31: 2025-08-22 | WE31: 2025-08-23 | WF31: 2025-08-24 | WG31: 2025-08-25 | WH31: 2025-08-26 | WI31: 2025-08-27 | WJ31: 2025-08-28 | WK31: 2025-08-29 | WL31: 2025-08-30 | WM31: 2025-08-31 | WN31: 2025-09-01 | WO31: 2025-09-02 | WP31: 2025-09-03 | WQ31: 2025-09-04 | WR31: 2025-09-05 | WS31: 2025-09-06 | WT31: 2025-09-07 | WU31: 2025-09-08 | WV31: 2025-09-09 | WW31: 2025-09-10 | WX31: 2025-09-11 | WY31: 2025-09-12 | WZ31: 2025-09-13 | XA31: 2025-09-14 | XB31: 2025-09-15 | XC31: 2025-09-16 | XD31: 2025-09-17 | XE31: 2025-09-18 | XF31: 2025-09-19 | XG31: 2025-09-20 | XH31: 2025-09-21 | XI31: 2025-09-22 | XJ31: 2025-09-23 | XK31: 2025-09-24 | XL31: 2025-09-25 | XM31: 2025-09-26 | XN31: 2025-09-27 | XO31: 2025-09-28 | XP31: 2025-09-29 | XQ31: 2025-09-30 | XR31: 2025-10-01 | XS31: 2025-10-02 | XT31: 2025-10-03 | XU31: 2025-10-04 | XV31: 2025-10-05 | XW31: 2025-10-06 | XX31: 2025-10-07 | XY31: 2025-10-08 | XZ31: 2025-10-09 | YA31: 2025-10-10 | YB31: 2025-10-11 | YC31: 2025-10-12 | YD31: 2025-10-13 | YE31: 2025-10-14 | YF31: 2025-10-15 | YG31: 2025-10-16 | YH31: 2025-10-17 | YI31: 2025-10-18 | YJ31: 2025-10-19 | YK31: 2025-10-20 | YL31: 2025-10-21 | YM31: 2025-10-22 | YN31: 2025-10-23 | YO31: 2025-10-24 | YP31: 2025-10-25 | YQ31: 2025-10-26 | YR31: 2025-10-27 | YS31: 2025-10-28 | YT31: 2025-10-29 | YU31: 2025-10-30 | YV31: 2025-10-31 | YW31: 2025-11-01 | YX31: 2025-11-02 | YY31: 2025-11-03 | YZ31: 2025-11-04 | ZA31: 2025-11-05 | ZB31: 2025-11-06 | ZC31: 2025-11-07 | ZD31: 2025-11-08 | ZE31: 2025-11-09 | ZF31: 2025-11-10 | ZG31: 2025-11-11 | ZH31: 2025-11-12 | ZI31: 2025-11-13 | ZJ31: 2025-11-14 | ZK31: 2025-11-15 | ZL31: 2025-11-16 | ZM31: 2025-11-17 | ZN31: 2025-11-18 | ZO31: 2025-11-19 | ZP31: 2025-11-20 | ZQ31: 2025-11-21 | ZR31: 2025-11-22 | ZS31: 2025-11-23 | ZT31: 2025-11-24 | ZU31: 2025-11-25 | ZV31: 2025-11-26 | ZW31: 2025-11-27 | ZX31: 2025-11-28 | ZY31: 2025-11-29 | ZZ31: 2025-11-30 | AAA31: 2025-12-01 | AAB31: 2025-12-02 | AAC31: 2025-12-03 | AAD31: 2025-12-04 | AAE31: 2025-12-05 | AAF31: 2025-12-06 | AAG31: 2025-12-07 | AAH31: 2025-12-08 | AAI31: 2025-12-09 | AAJ31: 2025-12-10 | AAK31: 2025-12-11 | AAL31: 2025-12-12 | AAM31: 2025-12-13 | AAN31: 2025-12-14 | AAO31: 2025-12-15 | AAP31: 2025-12-16 | AAQ31: 2025-12-17 | AAR31: 2025-12-18 | AAS31: 2025-12-19 | AAT31: 2025-12-20 | AAU31: 2025-12-21 | AAV31: 2025-12-22 | AAW31: 2025-12-23 | AAX31: 2025-12-24 | AAY31: 2025-12-25 | AAZ31: 2025-12-26 | ABA31: 2025-12-27 | ABB31: 2025-12-28 | ABC31: 2025-12-29 | ABD31: 2025-12-30 | ABE31: 2025-12-31 | ABF31: 2026-01-01 | ABG31: 2026-01-02 | ABH31: 2026-01-03 | ABI31: 2026-01-04 | ABJ31: 2026-01-05 | ABK31: 2026-01-06 | ABL31: 2026-01-07 | ABM31: 2026-01-08 | ABN31: 2026-01-09 | ABO31: 2026-01-10 | ABP31: 2026-01-11 | ABQ31: 2026-01-12 | ABR31: 2026-01-13 | ABS31: 2026-01-14 | ABT31: 2026-01-15 | ABU31: 2026-01-16 | ABV31: 2026-01-17 | ABW31: 2026-01-18 | ABX31: 2026-01-19 | ABY31: 2026-01-20 | ABZ31: 2026-01-21 | ACA31: 2026-01-22 | ACB31: 2026-01-23 | ACC31: 2026-01-24 | ACD31: 2026-01-25 | ACE31: 2026-01-26 | ACF31: 2026-01-27 | ACG31: 2026-01-28 | ACH31: 2026-01-29 | ACI31: 2026-01-30 | ACJ31: 2026-01-31 | ACK31: 2026-02-01 | ACL31: 2026-02-02 | ACM31: 2026-02-03 | ACN31: 2026-02-04 | ACO31: 2026-02-05 | ACP31: 2026-02-06 | ACQ31: 2026-02-07 | ACR31: 2026-02-08 | ACS31: 2026-02-09 | ACT31: 2026-02-10 | ACU31: 2026-02-11 | ACV31: 2026-02-12 | ACW31: 2026-02-13 | ACX31: 2026-02-14 | ACY31: 2026-02-15 | ACZ31: 2026-02-16 | ADA31: 2026-02-17 | ADB31: 2026-02-18 | ADC31: 2026-02-19 | ADD31: 2026-02-20 | ADE31: 2026-02-21 | ADF31: 2026-02-22 | ADG31: 2026-02-23 | ADH31: 2026-02-24 | ADI31: 2026-02-25 | ADJ31: 2026-02-26 | ADK31: 2026-02-27 | ADL31: 2026-02-28 | ADM31: 2026-03-01 | ADN31: 2026-03-02 | ADO31: 2026-03-03 | ADP31: 2026-03-04 | ADQ31: 2026-03-05 | ADR31: 2026-03-06 | ADS31: 2026-03-07 | ADT31: 2026-03-08 | ADU31: 2026-03-09 | ADV31: 2026-03-10 | ADW31: 2026-03-11 | ADX31: 2026-03-12 | ADY31: 2026-03-13 | ADZ31: 2026-03-14 | AEA31: 2026-03-15 | AEB31: 2026-03-16 | AEC31: 2026-03-17 | AED31: 2026-03-18 | AEE31: 2026-03-19 | AEF31: 2026-03-20 | AEG31: 2026-03-21 | AEH31: 2026-03-22 | AEI31: 2026-03-23 | AEJ31: 2026-03-24 | AEK31: 2026-03-25 | AEL31: 2026-03-26 | AEM31: 2026-03-27 | AEN31: 2026-03-28 | AEO31: 2026-03-29 | AEP31: 2026-03-30 | AEQ31: 2026-03-31 | AER31: 2026-04-01 | AES31: 2026-04-02 | AET31: 2026-04-03 | AEU31: 2026-04-04 | AEV31: 2026-04-05 | AEW31: 2026-04-06 | AEX31: 2026-04-07 | AEY31: 2026-04-08 | AEZ31: 2026-04-09 | AFA31: 2026-04-10 | AFB31: 2026-04-11 | AFC31: 2026-04-12 | AFD31: 2026-04-13 | AFE31: 2026-04-14 | AFF31: 2026-04-15 | AFG31: 2026-04-16 | AFH31: 2026-04-17 | AFI31: 2026-04-18 | AFJ31: 2026-04-19 | AFK31: 2026-04-20 | AFL31: 2026-04-21 | AFM31: 2026-04-22 | AFN31: 2026-04-23 | AFO31: 2026-04-24 | AFP31: 2026-04-25 | AFQ31: 2026-04-26 | AFR31: 2026-04-27 | AFS31: 2026-04-28 | AFT31: 2026-04-29 | AFU31: 2026-04-30 | AFV31: 2026-05-01 | AFW31: 2026-05-02 | AFX31: 2026-05-03 | AFY31: 2026-05-04 | AFZ31: 2026-05-05 | AGA31: 2026-05-06 | AGB31: 2026-05-07 | AGC31: 2026-05-08 | AGD31: 2026-05-09 | AGE31: 2026-05-10 | AGF31: 2026-05-11 | AGG31: 2026-05-12 | AGH31: 2026-05-13 | AGI31: 2026-05-14 | AGJ31: 2026-05-15 | AGK31: 2026-05-16 | AGL31: 2026-05-17 | AGM31: 2026-05-18 | AGN31: 2026-05-19 | AGO31: 2026-05-20 | AGP31: 2026-05-21 | AGQ31: 2026-05-22 | AGR31: 2026-05-23 | AGS31: 2026-05-24 | AGT31: 2026-05-25 | AGU31: 2026-05-26 | AGV31: 2026-05-27 | AGW31: 2026-05-28 | AGX31: 2026-05-29 | AGY31: 2026-05-30 | AGZ31: 2026-05-31 | AHA31: 2026-06-01 | AHB31: 2026-06-02 | AHC31: 2026-06-03 | AHD31: 2026-06-04 | AHE31: 2026-06-05 | AHF31: 2026-06-06 | AHG31: 2026-06-07 | AHH31: 2026-06-08 | AHI31: 2026-06-09 | AHJ31: 2026-06-10 | AHK31: 2026-06-11 | AHL31: 2026-06-12 | AHM31: 2026-06-13 | AHN31: 2026-06-14 | AHO31: 2026-06-15 | AHP31: 2026-06-16 | AHQ31: 2026-06-17 | AHR31: 2026-06-18 | AHS31: 2026-06-19 | AHT31: 2026-06-20 | AHU31: 2026-06-21 | AHV31: 2026-06-22 | AHW31: 2026-06-23 | AHX31: 2026-06-24 | AHY31: 2026-06-25 | AHZ31: 2026-06-26 | AIA31: 2026-06-27 | AIB31: 2026-06-28 | AIC31: 2026-06-29 | AID31: 2026-06-30 | AIE31: 2026-07-01 | AIF31: 2026-07-02 | AIG31: 2026-07-03 | AIH31: 2026-07-04 | AII31: 2026-07-05 | AIJ31: 2026-07-06 | AIK31: 2026-07-07 | AIL31: 2026-07-08 | AIM31: 2026-07-09 | AIN31: 2026-07-10 | AIO31: 2026-07-11 | AIP31: 2026-07-12 | AIQ31: 2026-07-13 | AIR31: 2026-07-14 | AIS31: 2026-07-15 | AIT31: 2026-07-16 | AIU31: 2026-07-17 | AIV31: 2026-07-18 | AIW31: 2026-07-19 | AIX31: 2026-07-20 | AIY31: 2026-07-21 | AIZ31: 2026-07-22 | AJA31: 2026-07-23 | AJB31: 2026-07-24 | AJC31: 2026-07-25 | AJD31: 2026-07-26 | AJE31: 2026-07-27 | AJF31: 2026-07-28 | AJG31: 2026-07-29 | AJH31: 2026-07-30 | AJI31: 2026-07-31 | AJJ31: 2026-08-01 | AJK31: 2026-08-02 | AJL31: 2026-08-03 | AJM31: 2026-08-04 | AJN31: 2026-08-05 | AJO31: 2026-08-06 | AJP31: 2026-08-07 | AJQ31: 2026-08-08 | AJR31: 2026-08-09 | AJS31: 2026-08-10 | AJT31: 2026-08-11 | AJU31: 2026-08-12 | AJV31: 2026-08-13 | AJW31: 2026-08-14 | AJX31: 2026-08-15 | AJY31: 2026-08-16 | AJZ31: 2026-08-17 | AKA31: 2026-08-18 | AKB31: 2026-08-19 | AKC31: 2026-08-20 | AKD31: 2026-08-21 | AKE31: 2026-08-22 | AKF31: 2026-08-23 | AKG31: 2026-08-24 | AKH31: 2026-08-25 | AKI31: 2026-08-26 | AKJ31: 2026-08-27 | AKK31: 2026-08-28 | AKL31: 2026-08-29 | AKM31: 2026-08-30 | AKN31: 2026-08-31 | AKO31: 2026-09-01 | AKP31: 2026-09-02 | AKQ31: 2026-09-03 | AKR31: 2026-09-04 | AKS31: 2026-09-05 | AKT31: 2026-09-06 | AKU31: 2026-09-07 | AKV31: 2026-09-08 | AKW31: 2026-09-09 | AKX31: 2026-09-10 | AKY31: 2026-09-11 | AKZ31: 2026-09-12 | ALA31: 2026-09-13 | ALB31: 2026-09-14 | ALC31: 2026-09-15 | ALD31: 2026-09-16 | ALE31: 2026-09-17 | ALF31: 2026-09-18 | ALG31: 2026-09-19 | ALH31: 2026-09-20 | ALI31: 2026-09-21 | ALJ31: 2026-09-22 | ALK31: 2026-09-23 | ALL31: 2026-09-24 | ALM31: 2026-09-25 | ALN31: 2026-09-26 | ALO31: 2026-09-27 | ALP31: 2026-09-28 | ALQ31: 2026-09-29 | ALR31: 2026-09-30 | ALS31: 2026-10-01 | ALT31: 2026-10-02 | ALU31: 2026-10-03 | ALV31: 2026-10-04 | ALW31: 2026-10-05 | ALX31: 2026-10-06 | ALY31: 2026-10-07 | ALZ31: 2026-10-08 | AMA31: 2026-10-09 | AMB31: 2026-10-10 | AMC31: 2026-10-11 | AMD31: 2026-10-12 | AME31: 2026-10-13 | AMF31: 2026-10-14 | AMG31: 2026-10-15 | AMH31: 2026-10-16 | AMI31: 2026-10-17 | AMJ31: 2026-10-18 | AMK31: 2026-10-19 | AML31: 2026-10-20 | AMM31: 2026-10-21 | AMN31: 2026-10-22 | AMO31: 2026-10-23 | AMP31: 2026-10-24 | AMQ31: 2026-10-25 | AMR31: 2026-10-26 | AMS31: 2026-10-27 | AMT31: 2026-10-28 | AMU31: 2026-10-29 | AMV31: 2026-10-30 | AMW31: 2026-10-31 | AMX31: 2026-11-01 | AMY31: 2026-11-02 | AMZ31: 2026-11-03 | ANA31: 2026-11-04 | ANB31: 2026-11-05 | ANC31: 2026-11-06 | AND31: 2026-11-07 | ANE31: 2026-11-08 | ANF31: 2026-11-09 | ANG31: 2026-11-10 | ANH31: 2026-11-11 | ANI31: 2026-11-12 | ANJ31: 2026-11-13 | ANK31: 2026-11-14 | ANL31: 2026-11-15 | ANM31: 2026-11-16 | ANN31: 2026-11-17 | ANO31: 2026-11-18 | ANP31: 2026-11-19 | ANQ31: 2026-11-20 | ANR31: 2026-11-21 | ANS31: 2026-11-22 | ANT31: 2026-11-23 | ANU31: 2026-11-24 | ANV31: 2026-11-25 | ANW31: 2026-11-26 | ANX31: 2026-11-27 | ANY31: 2026-11-28 | ANZ31: 2026-11-29 | AOA31: 2026-11-30 | AOB31: 2026-12-01 | AOC31: 2026-12-02 | AOD31: 2026-12-03 | AOE31: 2026-12-04 | AOF31: 2026-12-05 | AOG31: 2026-12-06 | AOH31: 2026-12-07 | AOI31: 2026-12-08 | AOJ31: 2026-12-09 | AOK31: 2026-12-10 | AOL31: 2026-12-11 | AOM31: 2026-12-12 | AON31: 2026-12-13 | AOO31: 2026-12-14 | AOP31: 2026-12-15 | AOQ31: 2026-12-16 | AOR31: 2026-12-17 | AOS31: 2026-12-18 | AOT31: 2026-12-19 | AOU31: 2026-12-20 | AOV31: 2026-12-21 | AOW31: 2026-12-22 | AOX31: 2026-12-23 | AOY31: 2026-12-24 | AOZ31: 2026-12-25 | APA31: 2026-12-26 | APB31: 2026-12-27 | APC31: 2026-12-28 | APD31: 2026-12-29 | APE31: 2026-12-30 | APF31: 2026-12-31 | APG31: 2027-01-01 | APH31: 2027-01-02 | API31: 2027-01-03 | APJ31: 2027-01-04 | APK31: 2027-01-05 | APL31: 2027-01-06 | APM31: 2027-01-07 | APN31: 2027-01-08 | APO31: 2027-01-09 | APP31: 2027-01-10 | APQ31: 2027-01-11 | APR31: 2027-01-12 | APS31: 2027-01-13 | APT31: 2027-01-14 | APU31: 2027-01-15 | APV31: 2027-01-16 | APW31: 2027-01-17 | APX31: 2027-01-18 | APY31: 2027-01-19 | APZ31: 2027-01-20 | AQA31: 2027-01-21 | AQB31: 2027-01-22 | AQC31: 2027-01-23 | AQD31: 2027-01-24 | AQE31: 2027-01-25 | AQF31: 2027-01-26 | AQG31: 2027-01-27 | AQH31: 2027-01-28 | AQI31: 2027-01-29 | AQJ31: 2027-01-30 | AQK31: 2027-01-31
... 37 more rows
